Body name,Service Area,Dept,Expenses Type,Detailed Expenses Type,Transaction number,Expense Code,Date,Amount,Capital/Revenue,Supplier Name,Supplier ID
WANDSWORTH COUNCIL,CS,ADMINISTRATION,OTH LA,CONTRIBUTION - WESTMINSTER,20265451,100044500,17-Jan-14,"89,258.00",Revenue,CITY OF WESTMINSTER,2002005
WANDSWORTH COUNCIL,CS,ADMINISTRATION,DIRECT2,AGENCY STAFF,20263885,100300510,08-Jan-14,631.80,Revenue,MATRIX SCM LIMITED,2014926
WANDSWORTH COUNCIL,CS,ADMINISTRATION,DIRECT2,AGENCY STAFF,20264749,100300510,10-Jan-14,930.16,Revenue,MATRIX SCM LIMITED,2014926
WANDSWORTH COUNCIL,CS,ADMINISTRATION,DIRECT2,AGENCY STAFF,20266710,100300510,27-Jan-14,631.80,Revenue,MATRIX SCM LIMITED,2014926
WANDSWORTH COUNCIL,CS,ADMINISTRATION,DIRECT2,AGENCY STAFF,20267577,100300510,29-Jan-14,631.81,Revenue,MATRIX SCM LIMITED,2014926
WANDSWORTH COUNCIL,CS,ADMINISTRATION,SERVICES,LEGAL & COURT COSTS,20267981,100334600,31-Jan-14,"3,360.45",Revenue,LOCAL GOVERNMENT ASSOCIATION,2006262
WANDSWORTH COUNCIL,CS,FINANCE,"REPAIRS, ALTERATIONS & MTCE","REPS, ALTS & MTCE-BUILDINGS",332581,100410000,20-Jan-14,"1,780.00",Revenue,AIR SURVEYS LTD,SP0000250
WANDSWORTH COUNCIL,CS,FINANCE,"REPAIRS, ALTERATIONS & MTCE","REPS, ALTS & MTCE-BUILDINGS",338715,100410000,28-Jan-14,800.00,Revenue,KEEP CLEAN DRAIN SERVICES,SP0000287
WANDSWORTH COUNCIL,CS,ENVIRONMENT & COMMUNITY,GROUNDS MAINTENANCE,CONSULTANTS FEE-LA TREE SURVEY,20265025,100412160,15-Jan-14,21.25,Revenue,QUADRON SERVICES LIMITED,2016712
WANDSWORTH COUNCIL,CS,ENVIRONMENT & COMMUNITY,GROUNDS MAINTENANCE,CONSULTANTS FEE-LA TREE SURVEY,20267635,100412160,30-Jan-14,21.25,Revenue,QUADRON SERVICES LIMITED,2016712
WANDSWORTH COUNCIL,CS,ENVIRONMENT & COMMUNITY,"REPAIRS, ALTERATIONS & MTCE","REPS, ALTS & MTCE-BUILDINGS",20267635,100510000,30-Jan-14,9.02,Revenue,QUADRON SERVICES LIMITED,2016712
WANDSWORTH COUNCIL,CS,ADMINISTRATION,"REPAIRS, ALTERATIONS & MTCE","REPS, ALTS & MTCE-BUILDINGS",20266159,10051000K0002P,22-Jan-14,"5,480.37",Revenue,BROADWAY MALYAN,2016482
WANDSWORTH COUNCIL,CS,ADMINISTRATION,SERVICES,CONSULTANTS FEES,20264700,100534200,13-Jan-14,"1,077.00",Revenue,JS Lewis Ltd,2991000
WANDSWORTH COUNCIL,CS,ADMINISTRATION,SERVICES,CONSULTANTS FEES,20266156,100534200,22-Jan-14,"1,500.00",Revenue,MLM Consulting Engineers Ltd,2991000
WANDSWORTH COUNCIL,CS,ADMINISTRATION,SERVICES,CONSULTANTS FEES,20267320,100534200,28-Jan-14,"1,750.00",Revenue,JNP Engineers LLP,2991000
WANDSWORTH COUNCIL,CS,ADMINISTRATION,SERVICES,CONSULTANTS FEES,20267321,100534200,28-Jan-14,"2,217.50",Revenue,Phlorum Limited,2991000
WANDSWORTH COUNCIL,CS,ADMINISTRATION,RENTS,RENTS,20266793,10061340K00951,24-Jan-14,"4,500.00",Revenue,C GOLFINGER,2007534
WANDSWORTH COUNCIL,CS,ADMINISTRATION,PRIVATE,GENERAL CONTRACT WORK,20265577,100645370,20-Jan-14,321.74,Revenue,BT PAYMENT SERVICES LTD,2009138
WANDSWORTH COUNCIL,CS,SOCIAL SERVICES,SERVICES,PROJECT WORK,20264311,102034800,09-Jan-14,"7,500.00",Revenue,WANDSWORTH CARE ALLIANCE,2006618
WANDSWORTH COUNCIL,CS,ADMINISTRATION,SERVICES,PROJECT WORK,20266635,102034800,24-Jan-14,"35,453.60",Revenue,WANDSWORTH CARE ALLIANCE,2006618
WANDSWORTH COUNCIL,ERS,ADMINISTRATION,SERVICES,PROJECT WORK,20266754,102234800,27-Jan-14,"3,750.00",Revenue,ELAYS NETWORK,2003236
WANDSWORTH COUNCIL,ERS,ADMINISTRATION,SERVICES,PROJECT WORK,20266755,102234800,27-Jan-14,"3,750.00",Revenue,ELAYS NETWORK,2003236
WANDSWORTH COUNCIL,ERS,ADMINISTRATION,SERVICES,PROJECT WORK,20266984,102234800,27-Jan-14,"7,000.00",Revenue,INSPIRE WOMEN CIC,2991000
WANDSWORTH COUNCIL,CS,ADMINISTRATION,DIRECT2,AGENCY STAFF,20263885,103000510,08-Jan-14,478.43,Revenue,MATRIX SCM LIMITED,2014926
WANDSWORTH COUNCIL,CS,ADMINISTRATION,DIRECT2,AGENCY STAFF,20263885,103000510,08-Jan-14,"1,826.88",Revenue,MATRIX SCM LIMITED,2014926
WANDSWORTH COUNCIL,CS,ADMINISTRATION,DIRECT2,AGENCY STAFF,20263886,103000510,08-Jan-14,285.73,Revenue,MATRIX SCM LIMITED,2014926
WANDSWORTH COUNCIL,CS,ADMINISTRATION,DIRECT2,AGENCY STAFF,20264749,103000510,10-Jan-14,385.40,Revenue,MATRIX SCM LIMITED,2014926
WANDSWORTH COUNCIL,CS,ADMINISTRATION,DIRECT2,AGENCY STAFF,20266710,103000510,27-Jan-14,"2,811.06",Revenue,MATRIX SCM LIMITED,2014926
WANDSWORTH COUNCIL,CS,ADMINISTRATION,DIRECT2,AGENCY STAFF,20267577,103000510,29-Jan-14,"2,816.85",Revenue,MATRIX SCM LIMITED,2014926
WANDSWORTH COUNCIL,CS,ADMINISTRATION,DIRECT2,AGENCY STAFF,20268014,103000510,31-Jan-14,"4,167.63",Revenue,MATRIX SCM LIMITED,2014926
WANDSWORTH COUNCIL,CS,ADMINISTRATION,INDIRECT,TRAINING - EXTERNAL COURSES,20265982,103000770,21-Jan-14,472.00,Revenue,THE ASSOCIATION OF ELECTORAL ADMINISTRATORS,2005404
WANDSWORTH COUNCIL,CS,ADMINISTRATION,PRINTING STAT & GEN OFFICE EXP,PRINTING REGISTRATION A FORM,20266633,103033440,24-Jan-14,"3,029.20",Revenue,BANNER MANAGED COMMUNICATION,2010795
WANDSWORTH COUNCIL,CS,ADMINISTRATION,COMMUNICATIONS & COMP,COMMUNICATIONS - POSTAGE,20265208,103036000,17-Jan-14,"2,990.35",Revenue,ROYAL MAIL,2009044
WANDSWORTH COUNCIL,CS,ADMINISTRATION,COMMUNICATIONS & COMP,COMMUNICATIONS - POSTAGE,20265983,103036000,21-Jan-14,"1,010.45",Revenue,ROYAL MAIL,2009044
WANDSWORTH COUNCIL,CS,ADMINISTRATION,COMMUNICATIONS & COMP,I.T. DEVELOPMENTS,20266631,103036200,24-Jan-14,"4,066.00",Revenue,THE ELECTORAL  REFORM SERVICE,2015578
WANDSWORTH COUNCIL,ASC,ADMINISTRATION,HEALTH,THIRD PARTY PYMT - HEALTH,20263503,105141130,03-Jan-14,795.04,Revenue,CARE UK CLINICAL SERVICES LTD,2016975
WANDSWORTH COUNCIL,ASC,ADMINISTRATION,HEALTH,THIRD PARTY PYMT - HEALTH,20267937,105141130,31-Jan-14,"2,148.00",Revenue,Wendy Majewska,2991000
WANDSWORTH COUNCIL,ASC,ADMINISTRATION,HEALTH,CHLAMYDIA SCREENING OFFICE,20264062,105141240,09-Jan-14,"14,078.34",Revenue,TERRENCE HIGGINS TRUST,2016903
WANDSWORTH COUNCIL,ASC,ADMINISTRATION,HEALTH,HIV RAPID TESTING PILOT,20266644,105141710,27-Jan-14,"1,220.00",Revenue,PASSANTE HEALTHCARE LTD,2016795
WANDSWORTH COUNCIL,ASC,ADMINISTRATION,HEALTH,CHLAMYDIA SCREENING,20267933,105141760,31-Jan-14,"1,514.00",Revenue,PREVENTX LTD,2016936
WANDSWORTH COUNCIL,ASC,ADMINISTRATION,MISC,MISCELLANEOUS EXPENSES,20267938,105238500,31-Jan-14,"4,300.00",Revenue,Hightrees Community Development Trust,2991000
WANDSWORTH COUNCIL,ASC,ADMINISTRATION,HEALTH,CONDOM DISTRIBUTION,20267225,105241720,29-Jan-14,336.29,Revenue,DURBIN PLC,2017245
WANDSWORTH COUNCIL,ASC,ADMINISTRATION,HEALTH,CONDOM DISTRIBUTION,20267225,105241720,29-Jan-14,144.00,Revenue,DURBIN PLC,2017245
WANDSWORTH COUNCIL,ASC,ADMINISTRATION,HEALTH,WGHT MGT/HLTHY LIFESTYLE SCHS,20266642,105741200,27-Jan-14,"13,333.33",Revenue,MORE LIFE (UK) LTD,2017101
WANDSWORTH COUNCIL,ASC,ADMINISTRATION,HEALTH,WGHT MGT/HLTHY LIFESTYLE SCHS,20266643,105741200,27-Jan-14,"13,333.33",Revenue,MORE LIFE (UK) LTD,2017101
WANDSWORTH COUNCIL,ASC,ADMINISTRATION,DIRECT2,AGENCY STAFF,20263885,106000510,08-Jan-14,826.54,Revenue,MATRIX SCM LIMITED,2014926
WANDSWORTH COUNCIL,ASC,ADMINISTRATION,DIRECT2,AGENCY STAFF,20263886,106000510,08-Jan-14,255.26,Revenue,MATRIX SCM LIMITED,2014926
WANDSWORTH COUNCIL,ASC,ADMINISTRATION,DIRECT2,AGENCY STAFF,20264749,106000510,10-Jan-14,158.02,Revenue,MATRIX SCM LIMITED,2014926
WANDSWORTH COUNCIL,ASC,ADMINISTRATION,DIRECT2,AGENCY STAFF,20266710,106000510,27-Jan-14,698.91,Revenue,MATRIX SCM LIMITED,2014926
WANDSWORTH COUNCIL,ASC,ADMINISTRATION,DIRECT2,AGENCY STAFF,20267577,106000510,29-Jan-14,881.25,Revenue,MATRIX SCM LIMITED,2014926
WANDSWORTH COUNCIL,ASC,ADMINISTRATION,DIRECT2,AGENCY STAFF,20268014,106000510,31-Jan-14,875.16,Revenue,MATRIX SCM LIMITED,2014926
WANDSWORTH COUNCIL,ASC,ADMINISTRATION,"EQUIPMENT, FURNITURE & MATS",TOILET AND MEDICAL SUPPLIES,20266648,106030460,27-Jan-14,851.25,Revenue,FRONTIER MEDICAL GROUP,2017365
WANDSWORTH COUNCIL,ASC,ADMINISTRATION,HEALTH,QIPP,20266654,106040540,27-Jan-14,"10,750.00",Revenue,EQUINOX,2007457
WANDSWORTH COUNCIL,ASC,ADMINISTRATION,HEALTH,TIER 2&3 COMMUNITY SERVICES,20266652,106041250,27-Jan-14,"253,661.66",Revenue,KCA,2017193
WANDSWORTH COUNCIL,ASC,ADMINISTRATION,HEALTH,FLOATING SUPPORT & OUTREACH,20265681,106041420,20-Jan-14,"15,645.80",Revenue,EQUINOX,2007457
WANDSWORTH COUNCIL,ASC,ADMINISTRATION,HEALTH,USER INVOLVEMENT,20263505,106041470,03-Jan-14,"9,500.00",Revenue,WANDSWORTH CARE ALLIANCE,2006618
WANDSWORTH COUNCIL,ASC,ADMINISTRATION,HEALTH,USER INVOLVEMENT,20263504,10604147K01865,03-Jan-14,"5,423.43",Revenue,WANDSWORTH CARE ALLIANCE,2006618
WANDSWORTH COUNCIL,ASC,ADMINISTRATION,HEALTH,PRIM CARE ALCHL CLINICS PILOTS,20266650,106141750,27-Jan-14,"9,330.00",Revenue,HEATHBRIDGE PRACTICE,2000653
WANDSWORTH COUNCIL,ASC,ADMINISTRATION,HEALTH,PRIM CARE ALCHL CLINICS PILOTS,20266649,106141750,27-Jan-14,810.00,Revenue,KCA,2017193
WANDSWORTH COUNCIL,ASC,ADMINISTRATION,PRINTING STAT & GEN OFFICE EXP,EVENTS PUBLICITY,20264836,106333140,15-Jan-14,"3,096.00",Revenue,TCM TRAILERS,2016909
WANDSWORTH COUNCIL,ASC,ADMINISTRATION,HEALTH,PHARMACY LES,20263856,106341410,07-Jan-14,66.00,Revenue,ASDA STORES LTD,2008631
WANDSWORTH COUNCIL,ASC,ADMINISTRATION,HEALTH,PHARMACY LES,20263856,106341410,07-Jan-14,679.57,Revenue,ASDA STORES LTD,2008631
WANDSWORTH COUNCIL,ASC,ADMINISTRATION,HEALTH,PHARMACY LES,20264506,106341410,10-Jan-14,773.14,Revenue,PEARL CHEMIST LTD,2015428
WANDSWORTH COUNCIL,ASC,ADMINISTRATION,HEALTH,PHARMACY LES,20264506,106341410,10-Jan-14,78.00,Revenue,PEARL CHEMIST LTD,2015428
WANDSWORTH COUNCIL,ASC,ADMINISTRATION,HEALTH,PHARMACY LES,20264508,106341410,10-Jan-14,70.00,Revenue,PEARL CHEMIST LTD,2015428
WANDSWORTH COUNCIL,ASC,ADMINISTRATION,HEALTH,PHARMACY LES,20264508,106341410,10-Jan-14,754.32,Revenue,PEARL CHEMIST LTD,2015428
WANDSWORTH COUNCIL,ASC,ADMINISTRATION,HEALTH,PHARMACY LES,20264553,106341410,10-Jan-14,448.40,Revenue,DUMLERS PHARMACY,2015434
WANDSWORTH COUNCIL,ASC,ADMINISTRATION,HEALTH,PHARMACY LES,20264553,106341410,10-Jan-14,36.00,Revenue,DUMLERS PHARMACY,2015434
WANDSWORTH COUNCIL,ASC,ADMINISTRATION,SERVICES,PROJECT WORK,20265233,107134800,15-Jan-14,"2,635.00",Revenue,IUP,2991000
WANDSWORTH COUNCIL,ASC,ADMINISTRATION,SERVICES,PROJECT WORK,20266267,107134800,22-Jan-14,"3,806.25",Revenue,Wiliams & Associates,2991000
WANDSWORTH COUNCIL,ASC,ADMINISTRATION,HEALTH,MACMILLAN GP FACILITATOR,20265680,107141260,20-Jan-14,900.00,Revenue,DR ANTHONY CUNLIFFE,2017228
WANDSWORTH COUNCIL,ASC,ADMINISTRATION,ENERGY,ENERGY COSTS - OIL,20266265,108010710,22-Jan-14,"4,944.09",Revenue,PLACES FOR THE PEOPLE LEISURE LTD,2000117
WANDSWORTH COUNCIL,ASC,ADMINISTRATION,SERVICES,PROJECT WORK,20267934,108034800,31-Jan-14,"1,200.00",Revenue,BOX N SKILLS,2001704
WANDSWORTH COUNCIL,ASC,ADMINISTRATION,SERVICES,PROJECT WORK,20267932,108034800,31-Jan-14,"5,107.84",Revenue,ROEHAMPTON METHODIST CHURCH,2018311
WANDSWORTH COUNCIL,ASC,ADMINISTRATION,SERVICES,PROJECT WORK,20264737,108034800,10-Jan-14,"6,000.00",Revenue,ROEHAMPTON METHODIST CHURCH,2991000
WANDSWORTH COUNCIL,NGF HS,ADMINISTRATION,DIRECT2,AGENCY STAFF,20266710,110000510,27-Jan-14,29.32,Revenue,MATRIX SCM LIMITED,2014926
WANDSWORTH COUNCIL,NGF HS,ADMINISTRATION,DIRECT2,AGENCY STAFF,20267577,110000510,29-Jan-14,244.03,Revenue,MATRIX SCM LIMITED,2014926
WANDSWORTH COUNCIL,NGF HS,ADMINISTRATION,DIRECT2,AGENCY STAFF,20268014,110000510,31-Jan-14,283.40,Revenue,MATRIX SCM LIMITED,2014926
WANDSWORTH COUNCIL,NGF CS,ADMINISTRATION,PRIVATE,GENERAL CONTRACT WORK,20267005,111045370,27-Jan-14,"1,125.43",Revenue,SITA UK LTD,2003271
WANDSWORTH COUNCIL,NGF CS,ENVIRONMENT & COMMUNITY,PRIVATE,GENERAL CONTRACT WORK,20265025,111045370,15-Jan-14,83.98,Revenue,QUADRON SERVICES LIMITED,2016712
WANDSWORTH COUNCIL,NGF CS,ENVIRONMENT & COMMUNITY,PRIVATE,GENERAL CONTRACT WORK,20267635,111045370,30-Jan-14,83.98,Revenue,QUADRON SERVICES LIMITED,2016712
WANDSWORTH COUNCIL,NGF CS,ENVIRONMENT & COMMUNITY,PRIVATE,GENERAL CONTRACT WORK,20265025,111245370,15-Jan-14,2.44,Revenue,QUADRON SERVICES LIMITED,2016712
WANDSWORTH COUNCIL,NGF CS,ENVIRONMENT & COMMUNITY,PRIVATE,GENERAL CONTRACT WORK,20267635,111245370,30-Jan-14,2.44,Revenue,QUADRON SERVICES LIMITED,2016712
WANDSWORTH COUNCIL,NGF CS,ENVIRONMENT & COMMUNITY,PRIVATE,GENERAL CONTRACT WORK,20265025,111345370,15-Jan-14,0.51,Revenue,QUADRON SERVICES LIMITED,2016712
WANDSWORTH COUNCIL,NGF CS,ENVIRONMENT & COMMUNITY,PRIVATE,GENERAL CONTRACT WORK,20267635,111345370,30-Jan-14,0.51,Revenue,QUADRON SERVICES LIMITED,2016712
WANDSWORTH COUNCIL,NGF CS,ADMINISTRATION,GROUNDS MAINTENANCE,CONSULTANTS FEE-LA TREE SURVEY,20267009,111512160,27-Jan-14,583.52,Revenue,SITA UK LTD,2003271
WANDSWORTH COUNCIL,NGF CS,FINANCE,"REPAIRS, ALTERATIONS & MTCE","REPS, ALTS & MTCE-BUILDINGS",338712,11181000L08301,28-Jan-14,922.50,Revenue,DOORWISE LTD,SP0000017
WANDSWORTH COUNCIL,NGF CS,FINANCE,"REPAIRS, ALTERATIONS & MTCE","REPS, ALTS & MTCE-BUILDINGS",341322,11181000L08301,31-Jan-14,661.79,Revenue,D H CROFTS LTD,SP0000076
WANDSWORTH COUNCIL,NGF CS,FINANCE,"REPAIRS, ALTERATIONS & MTCE","REPS, ALTS & MTCE-BUILDINGS",327877,11181000L08301,08-Jan-14,300.00,Revenue,DOWNS FLOORING SPECIALIST,SP0000833
WANDSWORTH COUNCIL,NGF CS,FINANCE,"REPAIRS, ALTERATIONS & MTCE","REPS, ALTS & MTCE-BUILDINGS",327877,11181000L08301,08-Jan-14,324.00,Revenue,DOWNS FLOORING SPECIALIST,SP0000833
WANDSWORTH COUNCIL,NGF CS,FINANCE,"REPAIRS, ALTERATIONS & MTCE","REPS, ALTS & MTCE-BUILDINGS",327878,11181000L08301,08-Jan-14,300.00,Revenue,DOWNS FLOORING SPECIALIST,SP0000833
WANDSWORTH COUNCIL,NGF CS,FINANCE,"REPAIRS, ALTERATIONS & MTCE","REPS, ALTS & MTCE-BUILDINGS",327878,11181000L08301,08-Jan-14,350.00,Revenue,DOWNS FLOORING SPECIALIST,SP0000833
WANDSWORTH COUNCIL,NGF CS,FINANCE,"REPAIRS, ALTERATIONS & MTCE","REPS, ALTS & MTCE-BUILDINGS",338722,11181000L0830A,28-Jan-14,695.00,Revenue,SMS ENVIRONMENTAL LIMITED,SP0001007
WANDSWORTH COUNCIL,NGF CS,FINANCE,"REPAIRS, ALTERATIONS & MTCE","REPS, ALTS & MTCE-BUILDINGS",338793,11181000L0830A,28-Jan-14,480.00,Revenue,SMS ENVIRONMENTAL LIMITED,SP0001007
WANDSWORTH COUNCIL,NGF CS,FINANCE,"REPAIRS, ALTERATIONS & MTCE","REPS, ALTS & MTCE-BUILDINGS",326109,11181000L0830A,07-Jan-14,857.18,Revenue,OAKLAND CALVERT CONSULTANTS LTD T/A LATI,SP0001088
WANDSWORTH COUNCIL,NGF CS,FINANCE,"REPAIRS, ALTERATIONS & MTCE","REPS, ALTS & MTCE-BUILDINGS",326112,11181000L0830C,07-Jan-14,734.59,Revenue,DOORWISE LTD,SP0000017
WANDSWORTH COUNCIL,NGF CS,FINANCE,"REPAIRS, ALTERATIONS & MTCE","REPS, ALTS & MTCE-BUILDINGS",326051,11181000L0830E,07-Jan-14,832.94,Revenue,D H CROFTS LTD,SP0000076
WANDSWORTH COUNCIL,NGF CS,FINANCE,"REPAIRS, ALTERATIONS & MTCE","REPS, ALTS & MTCE-BUILDINGS",338668,11181000L0830K,28-Jan-14,"2,465.60",Revenue,CHROMA-VISION LTD,SP0000996
WANDSWORTH COUNCIL,NGF CS,FINANCE,"REPAIRS, ALTERATIONS & MTCE","REPS, ALTS & MTCE-BUILDINGS",326197,11181000L08331,07-Jan-14,"1,573.76",Revenue,D H CROFTS LTD,SP0000076
WANDSWORTH COUNCIL,NGF CS,FINANCE,"REPAIRS, ALTERATIONS & MTCE","REPS, ALTS & MTCE-BUILDINGS",341312,11181000L08331,31-Jan-14,858.54,Revenue,D H CROFTS LTD,SP0000076
WANDSWORTH COUNCIL,NGF CS,FINANCE,"REPAIRS, ALTERATIONS & MTCE","REPS, ALTS & MTCE-BUILDINGS",341353,11181000L08331,31-Jan-14,"9,764.12",Revenue,D H CROFTS LTD,SP0000076
WANDSWORTH COUNCIL,NGF CS,FINANCE,"REPAIRS, ALTERATIONS & MTCE","REPS, ALTS & MTCE-BUILDINGS",327867,11181000L08331,08-Jan-14,"6,466.88",Revenue,CHLORIDE ELECTRONICS LTD,SP0001421
WANDSWORTH COUNCIL,NGF CS,FINANCE,"REPAIRS, ALTERATIONS & MTCE","REPS, ALTS & MTCE-BUILDINGS",341330,11181000L0833A,31-Jan-14,"2,678.17",Revenue,D H CROFTS LTD,SP0000076
WANDSWORTH COUNCIL,NGF CS,FINANCE,"REPAIRS, ALTERATIONS & MTCE","REPS, ALTS & MTCE-BUILDINGS",341331,11181000L0833A,31-Jan-14,"2,678.17",Revenue,D H CROFTS LTD,SP0000076
WANDSWORTH COUNCIL,NGF CS,FINANCE,"REPAIRS, ALTERATIONS & MTCE","REPS, ALTS & MTCE-BUILDINGS",341332,11181000L0833A,31-Jan-14,"2,678.17",Revenue,D H CROFTS LTD,SP0000076
WANDSWORTH COUNCIL,NGF CS,FINANCE,"REPAIRS, ALTERATIONS & MTCE","REPS, ALTS & MTCE-BUILDINGS",338754,11181000L08343,28-Jan-14,435.34,Revenue,D H CROFTS LTD,SP0000076
WANDSWORTH COUNCIL,NGF CS,ADMINISTRATION,MISC,MISCELLANEOUS EXPENSES,20263928,111938500,07-Jan-14,"1,300.00",Revenue,COOLERAID LTD,2011203
WANDSWORTH COUNCIL,NGF CS,ADMINISTRATION,GROUNDS MAINTENANCE,CONSULTANTS FEE-LA TREE SURVEY,20267219,112012160,29-Jan-14,150.57,Revenue,SITA UK LTD,2003271
WANDSWORTH COUNCIL,NGF CS,ENVIRONMENT & COMMUNITY,GROUNDS MAINTENANCE,OCS-P&OS EVENTS,20265025,112111180,15-Jan-14,3.66,Revenue,QUADRON SERVICES LIMITED,2016712
WANDSWORTH COUNCIL,NGF CS,ENVIRONMENT & COMMUNITY,GROUNDS MAINTENANCE,OCS-P&OS EVENTS,20267635,112111180,30-Jan-14,3.66,Revenue,QUADRON SERVICES LIMITED,2016712
WANDSWORTH COUNCIL,NGF CS,ADMINISTRATION,GROUNDS MAINTENANCE,CONSULTANTS FEE-LA TREE SURVEY,20267219,112112160,29-Jan-14,150.57,Revenue,SITA UK LTD,2003271
WANDSWORTH COUNCIL,NGF CS,ADMINISTRATION,GROUNDS MAINTENANCE,CONSULTANTS FEE-LA TREE SURVEY,20267219,112212160,29-Jan-14,150.57,Revenue,SITA UK LTD,2003271
WANDSWORTH COUNCIL,NGF CS,ADMINISTRATION,GROUNDS MAINTENANCE,CONSULTANTS FEE-LA TREE SURVEY,20267219,112312160,29-Jan-14,150.56,Revenue,SITA UK LTD,2003271
WANDSWORTH COUNCIL,NGF CS,ADMINISTRATION,GROUNDS MAINTENANCE,CONSULTANTS FEE-LA TREE SURVEY,20267008,112912160,27-Jan-14,602.27,Revenue,SITA UK LTD,2003271
WANDSWORTH COUNCIL,NGF CS,ENVIRONMENT & COMMUNITY,PRIVATE,GENERAL CONTRACT WORK,20265025,113445370,15-Jan-14,13.15,Revenue,QUADRON SERVICES LIMITED,2016712
WANDSWORTH COUNCIL,NGF CS,ENVIRONMENT & COMMUNITY,PRIVATE,GENERAL CONTRACT WORK,20267635,113445370,30-Jan-14,13.15,Revenue,QUADRON SERVICES LIMITED,2016712
WANDSWORTH COUNCIL,NGF CS,ADMINISTRATION,CLEANING & DOMESTIC SUPPLIES,CLEANING CONTRACT,20267188,113813020,29-Jan-14,"38,278.91",Revenue,OCEAN INTEGRATED SERVICES LTD,2009026
WANDSWORTH COUNCIL,NGF CS,ADMINISTRATION,CLEANING & DOMESTIC SUPPLIES,CLEANING CONTRACT,20267003,113813020,27-Jan-14,"1,861.60",Revenue,PHS GROUP PLC,2009031
WANDSWORTH COUNCIL,NGF CS,ADMINISTRATION,CLEANING & DOMESTIC SUPPLIES,WINDOW CLEANING,20265452,113813060,17-Jan-14,"5,675.00",Revenue,PARKERS CLEANING CONTRACTORS LTD,2004677
WANDSWORTH COUNCIL,NGF CS,ADMINISTRATION,"EQUIPMENT, FURNITURE & MATS","EQUIPMENT, FURNITURE & MATS",20265624,114030000,20-Jan-14,62.69,Revenue,SUNA COMMUNICATION LTD,2003083
WANDSWORTH COUNCIL,NGF CS,ADMINISTRATION,"EQUIPMENT, FURNITURE & MATS","EQUIPMENT, FURNITURE & MATS",20267191,114030000,29-Jan-14,"1,900.00",Revenue,ELECTROLOK COMPANY (SECURITY) LTD,2008283
WANDSWORTH COUNCIL,NGF CS,FINANCE,"EQUIPMENT, FURNITURE & MATS","EQUIPMENT, FURNITURE & MATS",326114,114030000,07-Jan-14,764.08,Revenue,ACR LONDON LTD,SP0000193
WANDSWORTH COUNCIL,NGF CS,ADMINISTRATION,PRINTING STAT & GEN OFFICE EXP,PRINTING AND STATIONERY,20267185,114133420,29-Jan-14,649.97,Revenue,OFFICE DEPOT UK LTD,2000101
WANDSWORTH COUNCIL,NGF CDC,ADMINISTRATION,"REPAIRS, ALTERATIONS & MTCE",REMOVALS & REORGANISATIONS,20263931,11421014K07117,07-Jan-14,734.80,Revenue,OFFICE DEPOT UK LTD,2000101
WANDSWORTH COUNCIL,NGF CDC,ADMINISTRATION,"REPAIRS, ALTERATIONS & MTCE",REMOVALS & REORGANISATIONS,20267103,11421014K07117,29-Jan-14,"2,325.00",Revenue,CLOCKWORK REMOVALS LTD,2001348
WANDSWORTH COUNCIL,NGF CDC,ADMINISTRATION,"REPAIRS, ALTERATIONS & MTCE",REMOVALS & REORGANISATIONS,20267106,11421014K07197,29-Jan-14,"1,195.00",Revenue,CLOCKWORK REMOVALS LTD,2001348
WANDSWORTH COUNCIL,NGF CDC,ADMINISTRATION,"REPAIRS, ALTERATIONS & MTCE",REMOVALS & REORGANISATIONS,20263929,11421014K07197,07-Jan-14,"2,101.95",Revenue,JT ENTERPRISES,2002022
WANDSWORTH COUNCIL,NGF CDC,ADMINISTRATION,"REPAIRS, ALTERATIONS & MTCE",REMOVALS & REORGANISATIONS,20267203,11421014K07207,29-Jan-14,495.00,Revenue,WAGSTAFF INTERIORS GROUP,2004128
WANDSWORTH COUNCIL,NGF CDC,ADMINISTRATION,"REPAIRS, ALTERATIONS & MTCE",REMOVALS & REORGANISATIONS,20267376,11421014K07217,29-Jan-14,21.00,Revenue,SUNA COMMUNICATION LTD,2003083
WANDSWORTH COUNCIL,NGF CDC,ADMINISTRATION,"REPAIRS, ALTERATIONS & MTCE",REMOVALS & REORGANISATIONS,20267198,11421014K07237,29-Jan-14,450.00,Revenue,JT ENTERPRISES,2002022
WANDSWORTH COUNCIL,NGF CDC,ADMINISTRATION,COMMUNICATIONS & COMP,TELECOMMUNICATIONS SLA,20264803,11423652K07115,15-Jan-14,"5,760.00",Revenue,M H COMS,2007870
WANDSWORTH COUNCIL,NGF CDC,ADMINISTRATION,COMMUNICATIONS & COMP,TELECOMMUNICATIONS SLA,20267376,11423652K07195,29-Jan-14,924.00,Revenue,SUNA COMMUNICATION LTD,2003083
WANDSWORTH COUNCIL,NGF CDC,ADMINISTRATION,COMMUNICATIONS & COMP,TELECOMMUNICATIONS SLA,20267376,11423652K07195,29-Jan-14,70.00,Revenue,SUNA COMMUNICATION LTD,2003083
WANDSWORTH COUNCIL,NGF CDC,ADMINISTRATION,COMMUNICATIONS & COMP,TELECOMMUNICATIONS SLA,20265624,11423652K07215,20-Jan-14,50.00,Revenue,SUNA COMMUNICATION LTD,2003083
WANDSWORTH COUNCIL,NGF CDC,ADMINISTRATION,COMMUNICATIONS & COMP,TELECOMMUNICATIONS SLA,20265624,11423652K07215,20-Jan-14,21.00,Revenue,SUNA COMMUNICATION LTD,2003083
WANDSWORTH COUNCIL,NGF CDC,ADMINISTRATION,COMMUNICATIONS & COMP,TELECOMMUNICATIONS SLA,20267376,11423652K07215,29-Jan-14,72.00,Revenue,SUNA COMMUNICATION LTD,2003083
WANDSWORTH COUNCIL,NGF CDC,ADMINISTRATION,COMMUNICATIONS & COMP,TELECOMMUNICATIONS SLA,20267376,11423652K07235,29-Jan-14,566.00,Revenue,SUNA COMMUNICATION LTD,2003083
WANDSWORTH COUNCIL,NGF CDC,ADMINISTRATION,COMMUNICATIONS & COMP,TELECOMMUNICATIONS SLA,20267376,11423652K07235,29-Jan-14,100.00,Revenue,SUNA COMMUNICATION LTD,2003083
WANDSWORTH COUNCIL,NGF CDC,FINANCE,PRIVATE,GENERAL CONTRACT WORK,326195,11424537K07112,07-Jan-14,"6,883.55",Revenue,D H CROFTS LTD,SP0000076
WANDSWORTH COUNCIL,NGF CDC,ENVIRONMENT & COMMUNITY,PRIVATE,GENERAL CONTRACT WORK,326199,11424537K07191,07-Jan-14,"42,078.15",Revenue,D H CROFTS LTD,SP0000076
WANDSWORTH COUNCIL,NGF CDC,FINANCE,PRIVATE,GENERAL CONTRACT WORK,338683,11424537K07201,28-Jan-14,443.97,Revenue,D H CROFTS LTD,SP0000076
WANDSWORTH COUNCIL,NGF CDC,FINANCE,PRIVATE,GENERAL CONTRACT WORK,327873,11424537K07231,08-Jan-14,300.00,Revenue,DOWNS FLOORING SPECIALIST,SP0000833
WANDSWORTH COUNCIL,NGF CDC,FINANCE,PRIVATE,GENERAL CONTRACT WORK,327873,11424537K07231,08-Jan-14,340.00,Revenue,DOWNS FLOORING SPECIALIST,SP0000833
WANDSWORTH COUNCIL,NGF CDC,FINANCE,PRIVATE,GENERAL CONTRACT WORK,327874,11424537K07231,08-Jan-14,300.00,Revenue,DOWNS FLOORING SPECIALIST,SP0000833
WANDSWORTH COUNCIL,NGF CDC,FINANCE,PRIVATE,GENERAL CONTRACT WORK,327874,11424537K07231,08-Jan-14,420.00,Revenue,DOWNS FLOORING SPECIALIST,SP0000833
WANDSWORTH COUNCIL,NGF CDC,FINANCE,PRIVATE,GENERAL CONTRACT WORK,327875,11424537K07231,08-Jan-14,300.00,Revenue,DOWNS FLOORING SPECIALIST,SP0000833
WANDSWORTH COUNCIL,NGF CDC,FINANCE,PRIVATE,GENERAL CONTRACT WORK,327875,11424537K07231,08-Jan-14,930.00,Revenue,DOWNS FLOORING SPECIALIST,SP0000833
WANDSWORTH COUNCIL,NGF CDC,FINANCE,PRIVATE,GENERAL CONTRACT WORK,327876,11424537K07231,08-Jan-14,"1,012.00",Revenue,DOWNS FLOORING SPECIALIST,SP0000833
WANDSWORTH COUNCIL,NGF CDC,FINANCE,PRIVATE,GENERAL CONTRACT WORK,327876,11424537K07231,08-Jan-14,300.00,Revenue,DOWNS FLOORING SPECIALIST,SP0000833
WANDSWORTH COUNCIL,NGF CS,ADMINISTRATION,DIRECT2,AGENCY STAFF,20263885,120100510,08-Jan-14,"1,352.06",Revenue,MATRIX SCM LIMITED,2014926
WANDSWORTH COUNCIL,NGF CS,ADMINISTRATION,DIRECT2,AGENCY STAFF,20263886,120100510,08-Jan-14,658.82,Revenue,MATRIX SCM LIMITED,2014926
WANDSWORTH COUNCIL,NGF CS,ADMINISTRATION,DIRECT2,AGENCY STAFF,20264749,120100510,10-Jan-14,"1,077.18",Revenue,MATRIX SCM LIMITED,2014926
WANDSWORTH COUNCIL,NGF CS,ADMINISTRATION,DIRECT2,AGENCY STAFF,20266710,120100510,27-Jan-14,"1,395.55",Revenue,MATRIX SCM LIMITED,2014926
WANDSWORTH COUNCIL,NGF CS,ADMINISTRATION,DIRECT2,AGENCY STAFF,20267577,120100510,29-Jan-14,"1,473.08",Revenue,MATRIX SCM LIMITED,2014926
WANDSWORTH COUNCIL,NGF CS,ADMINISTRATION,DIRECT2,AGENCY STAFF,20268014,120100510,31-Jan-14,"1,509.43",Revenue,MATRIX SCM LIMITED,2014926
WANDSWORTH COUNCIL,NGF CS,ADMINISTRATION,PRINTING STAT & GEN OFFICE EXP,PHOTOCOPYING,20264453,120133380,10-Jan-14,554.27,Revenue,CANON (UK) LTD,2001450
WANDSWORTH COUNCIL,NGF CS,ADMINISTRATION,COMMUNICATIONS & COMP,I.T. EQUIPMENT & MAINTENANCE,20266072,120136210,22-Jan-14,853.42,Revenue,FATHOM,2015394
WANDSWORTH COUNCIL,NGF CS,ADMINISTRATION,DIRECT2,AGENCY STAFF,20263885,120400510,08-Jan-14,199.26,Revenue,MATRIX SCM LIMITED,2014926
WANDSWORTH COUNCIL,NGF CS,ADMINISTRATION,DIRECT2,AGENCY STAFF,20263886,120400510,08-Jan-14,80.26,Revenue,MATRIX SCM LIMITED,2014926
WANDSWORTH COUNCIL,NGF CS,ADMINISTRATION,DIRECT2,AGENCY STAFF,20264749,120400510,10-Jan-14,923.16,Revenue,MATRIX SCM LIMITED,2014926
WANDSWORTH COUNCIL,NGF CS,ADMINISTRATION,DIRECT2,AGENCY STAFF,20266710,120400510,27-Jan-14,384.65,Revenue,MATRIX SCM LIMITED,2014926
WANDSWORTH COUNCIL,NGF CS,ADMINISTRATION,DIRECT2,AGENCY STAFF,20263885,120500510,08-Jan-14,"1,104.01",Revenue,MATRIX SCM LIMITED,2014926
WANDSWORTH COUNCIL,NGF CS,ADMINISTRATION,DIRECT2,AGENCY STAFF,20263886,120500510,08-Jan-14,484.53,Revenue,MATRIX SCM LIMITED,2014926
WANDSWORTH COUNCIL,NGF CS,ADMINISTRATION,DIRECT2,AGENCY STAFF,20264749,120500510,10-Jan-14,472.26,Revenue,MATRIX SCM LIMITED,2014926
WANDSWORTH COUNCIL,NGF CS,ADMINISTRATION,DIRECT2,AGENCY STAFF,20266710,120500510,27-Jan-14,"1,275.73",Revenue,MATRIX SCM LIMITED,2014926
WANDSWORTH COUNCIL,NGF CS,ADMINISTRATION,DIRECT2,AGENCY STAFF,20267577,120500510,29-Jan-14,"1,318.67",Revenue,MATRIX SCM LIMITED,2014926
WANDSWORTH COUNCIL,NGF CS,ADMINISTRATION,DIRECT2,AGENCY STAFF,20268014,120500510,31-Jan-14,990.54,Revenue,MATRIX SCM LIMITED,2014926
WANDSWORTH COUNCIL,NGF CS,ADMINISTRATION,INDIRECT,TRAINING - EXTERNAL COURSES,20267283,120500770,29-Jan-14,590.00,Revenue,RICS BOOKS,2001694
WANDSWORTH COUNCIL,NGF CS,ADMINISTRATION,OTHER AGENCIES,DISBURSEMENTS,20268041,120643250,31-Jan-14,157.67,Revenue,WINCKWORTH SHERWOOD LLP,2009504
WANDSWORTH COUNCIL,NGF CS,ADMINISTRATION,OTHER AGENCIES,DISBURSEMENTS,20268041,120643250,31-Jan-14,-157.67,Revenue,WINCKWORTH SHERWOOD LLP,2009504
WANDSWORTH COUNCIL,NGF CS,ADMINISTRATION,OTHER AGENCIES,DISBURSEMENTS,20263296,120643250,02-Jan-14,26.53,Revenue,SHARPE PRITCHARD LLP,2011391
WANDSWORTH COUNCIL,NGF CS,ADMINISTRATION,OTHER AGENCIES,DISBURSEMENTS,20263296,120643250,02-Jan-14,-26.53,Revenue,SHARPE PRITCHARD LLP,2011391
WANDSWORTH COUNCIL,NGF CS,ADMINISTRATION,OTHER AGENCIES,DISBURSEMENTS,20263298,120643250,02-Jan-14,-42.00,Revenue,SHARPE PRITCHARD LLP,2011391
WANDSWORTH COUNCIL,NGF CS,ADMINISTRATION,OTHER AGENCIES,DISBURSEMENTS,20263298,120643250,02-Jan-14,-283.80,Revenue,SHARPE PRITCHARD LLP,2011391
WANDSWORTH COUNCIL,NGF CS,ADMINISTRATION,OTHER AGENCIES,DISBURSEMENTS,20263298,120643250,02-Jan-14,42.00,Revenue,SHARPE PRITCHARD LLP,2011391
WANDSWORTH COUNCIL,NGF CS,ADMINISTRATION,OTHER AGENCIES,DISBURSEMENTS,20263298,120643250,02-Jan-14,283.80,Revenue,SHARPE PRITCHARD LLP,2011391
WANDSWORTH COUNCIL,NGF CS,ADMINISTRATION,OTHER AGENCIES,DISBURSEMENTS,20263358,120643250,02-Jan-14,280.00,Revenue,SHARPE PRITCHARD LLP,2011391
WANDSWORTH COUNCIL,NGF CS,ADMINISTRATION,OTHER AGENCIES,DISBURSEMENTS,20263358,120643250,02-Jan-14,-280.00,Revenue,SHARPE PRITCHARD LLP,2011391
WANDSWORTH COUNCIL,NGF CS,ADMINISTRATION,OTHER AGENCIES,DISBURSEMENTS,20265977,120643250,21-Jan-14,"2,656.00",Revenue,SHARPE PRITCHARD LLP,2011391
WANDSWORTH COUNCIL,NGF CS,ADMINISTRATION,OTHER AGENCIES,DISBURSEMENTS,20265977,120643250,21-Jan-14,"2,609.20",Revenue,SHARPE PRITCHARD LLP,2011391
WANDSWORTH COUNCIL,NGF CS,ADMINISTRATION,OTHER AGENCIES,DISBURSEMENTS,20267763,120643250,31-Jan-14,7.54,Revenue,SHARPE PRITCHARD LLP,2011391
WANDSWORTH COUNCIL,NGF CS,ADMINISTRATION,OTHER AGENCIES,DISBURSEMENTS,20267763,120643250,31-Jan-14,3.00,Revenue,SHARPE PRITCHARD LLP,2011391
WANDSWORTH COUNCIL,NGF CS,ADMINISTRATION,OTHER AGENCIES,DISBURSEMENTS,20267763,120643250,31-Jan-14,-3.00,Revenue,SHARPE PRITCHARD LLP,2011391
WANDSWORTH COUNCIL,NGF CS,ADMINISTRATION,OTHER AGENCIES,DISBURSEMENTS,20267763,120643250,31-Jan-14,-7.54,Revenue,SHARPE PRITCHARD LLP,2011391
WANDSWORTH COUNCIL,NGF CS,ADMINISTRATION,OTHER AGENCIES,DISBURSEMENTS,20267774,120643250,31-Jan-14,"1,096.16",Revenue,SHARPE PRITCHARD LLP,2011391
WANDSWORTH COUNCIL,NGF CS,ADMINISTRATION,OTHER AGENCIES,DISBURSEMENTS,20267774,120643250,31-Jan-14,34.00,Revenue,SHARPE PRITCHARD LLP,2011391
WANDSWORTH COUNCIL,NGF CS,ADMINISTRATION,PRIVATE,CONTRACT 7 - VNEB LEGAL,20268041,120645540,31-Jan-14,"5,851.41",Revenue,WINCKWORTH SHERWOOD LLP,2009504
WANDSWORTH COUNCIL,NGF CS,ADMINISTRATION,PRIVATE,CONTRACT 7 - VNEB LEGAL,20268041,120645540,31-Jan-14,"-5,851.41",Revenue,WINCKWORTH SHERWOOD LLP,2009504
WANDSWORTH COUNCIL,NGF CS,ADMINISTRATION,PRIVATE,CONTRACT 4- LITIGATION,20265975,120646160,21-Jan-14,"25,383.58",Revenue,SHARPE PRITCHARD LLP,2011391
WANDSWORTH COUNCIL,NGF CS,ADMINISTRATION,PRIVATE,CONTRACT 4- LITIGATION,20267530,120646160,29-Jan-14,845.91,Revenue,SHARPE PRITCHARD LLP,2011391
WANDSWORTH COUNCIL,NGF CS,ADMINISTRATION,PRIVATE,"CONTRACT 6- HWYS, PLAN ETC",20264498,120646170,09-Jan-14,"3,255.00",Revenue,A S B LAW,2008363
WANDSWORTH COUNCIL,NGF CS,ADMINISTRATION,PRIVATE,"CONTRACT 6- HWYS, PLAN ETC",20265393,120646170,17-Jan-14,"1,365.00",Revenue,A S B LAW,2008363
WANDSWORTH COUNCIL,NGF CS,ADMINISTRATION,PRIVATE,"CONTRACT 6- HWYS, PLAN ETC",20267962,120646170,31-Jan-14,750.00,Revenue,A S B LAW,2008363
WANDSWORTH COUNCIL,NGF CS,ADMINISTRATION,PRIVATE,"CONTRACT 6- HWYS, PLAN ETC",20263296,120646170,02-Jan-14,"5,424.00",Revenue,SHARPE PRITCHARD LLP,2011391
WANDSWORTH COUNCIL,NGF CS,ADMINISTRATION,PRIVATE,"CONTRACT 6- HWYS, PLAN ETC",20263296,120646170,02-Jan-14,"-5,424.00",Revenue,SHARPE PRITCHARD LLP,2011391
WANDSWORTH COUNCIL,NGF CS,ADMINISTRATION,PRIVATE,"CONTRACT 6- HWYS, PLAN ETC",20263298,120646170,02-Jan-14,"2,531.20",Revenue,SHARPE PRITCHARD LLP,2011391
WANDSWORTH COUNCIL,NGF CS,ADMINISTRATION,PRIVATE,"CONTRACT 6- HWYS, PLAN ETC",20263298,120646170,02-Jan-14,"-2,531.20",Revenue,SHARPE PRITCHARD LLP,2011391
WANDSWORTH COUNCIL,NGF CS,ADMINISTRATION,PRIVATE,"CONTRACT 6- HWYS, PLAN ETC",20263358,120646170,02-Jan-14,"-5,311.00",Revenue,SHARPE PRITCHARD LLP,2011391
WANDSWORTH COUNCIL,NGF CS,ADMINISTRATION,PRIVATE,"CONTRACT 6- HWYS, PLAN ETC",20263358,120646170,02-Jan-14,"5,311.00",Revenue,SHARPE PRITCHARD LLP,2011391
WANDSWORTH COUNCIL,NGF CS,ADMINISTRATION,PRIVATE,"CONTRACT 6- HWYS, PLAN ETC",20263360,120646170,02-Jan-14,"28,831.56",Revenue,SHARPE PRITCHARD LLP,2011391
WANDSWORTH COUNCIL,NGF CS,ADMINISTRATION,PRIVATE,"CONTRACT 6- HWYS, PLAN ETC",20263364,120646170,02-Jan-14,"2,182.91",Revenue,SHARPE PRITCHARD LLP,2011391
WANDSWORTH COUNCIL,NGF CS,ADMINISTRATION,PRIVATE,"CONTRACT 6- HWYS, PLAN ETC",20267763,120646170,31-Jan-14,"4,632.64",Revenue,SHARPE PRITCHARD LLP,2011391
WANDSWORTH COUNCIL,NGF CS,ADMINISTRATION,PRIVATE,"CONTRACT 6- HWYS, PLAN ETC",20267763,120646170,31-Jan-14,"-4,632.64",Revenue,SHARPE PRITCHARD LLP,2011391
WANDSWORTH COUNCIL,NGF CS,ADMINISTRATION,PRIVATE,"CONTRACT 6- HWYS, PLAN ETC",20267765,120646170,31-Jan-14,"28,831.56",Revenue,SHARPE PRITCHARD LLP,2011391
WANDSWORTH COUNCIL,NGF CS,ADMINISTRATION,OTHER AGENCIES,DISBURSEMENTS,20265080,120743250,15-Jan-14,"1,807.20",Revenue,ASSOCIATED EMPLOYERS LTD,2001547
WANDSWORTH COUNCIL,NGF CS,ADMINISTRATION,PRIVATE,CONTRACT 1- OPERATIONAL PROPS,20264891,120746180,13-Jan-14,"56,284.11",Revenue,LAMBERT SMITH HAMPTON,2003697
WANDSWORTH COUNCIL,NGF CS,ADMINISTRATION,DIRECT2,AGENCY STAFF,20263885,120800510,08-Jan-14,"1,015.44",Revenue,MATRIX SCM LIMITED,2014926
WANDSWORTH COUNCIL,NGF CS,ADMINISTRATION,DIRECT2,AGENCY STAFF,20263886,120800510,08-Jan-14,204.45,Revenue,MATRIX SCM LIMITED,2014926
WANDSWORTH COUNCIL,NGF CS,ADMINISTRATION,DIRECT2,AGENCY STAFF,20264749,120800510,10-Jan-14,817.80,Revenue,MATRIX SCM LIMITED,2014926
WANDSWORTH COUNCIL,NGF CS,ADMINISTRATION,DIRECT2,AGENCY STAFF,20266710,120800510,27-Jan-14,"1,001.81",Revenue,MATRIX SCM LIMITED,2014926
WANDSWORTH COUNCIL,NGF CS,ADMINISTRATION,DIRECT2,AGENCY STAFF,20267577,120800510,29-Jan-14,994.99,Revenue,MATRIX SCM LIMITED,2014926
WANDSWORTH COUNCIL,NGF CS,ADMINISTRATION,DIRECT2,AGENCY STAFF,20268014,120800510,31-Jan-14,858.70,Revenue,MATRIX SCM LIMITED,2014926
WANDSWORTH COUNCIL,NGF CS,ADMINISTRATION,GRANTS & SUBSCRIPTIONS,SUBSCRIPTIONS,20266272,120837640,22-Jan-14,521.25,Revenue,RICS BOOKS,2001694
WANDSWORTH COUNCIL,NGF CS,ADMINISTRATION,PRIVATE,GENERAL CONTRACT WORK,20267602,121145370,30-Jan-14,80.00,Revenue,TONI MARSHALL,2012976
WANDSWORTH COUNCIL,NGF CS,ADMINISTRATION,PRIVATE,GENERAL CONTRACT WORK,20267602,121145370,30-Jan-14,40.00,Revenue,TONI MARSHALL,2012976
WANDSWORTH COUNCIL,NGF CS,ADMINISTRATION,PRIVATE,GENERAL CONTRACT WORK,20267602,121145370,30-Jan-14,260.00,Revenue,TONI MARSHALL,2012976
WANDSWORTH COUNCIL,NGF CS,ADMINISTRATION,PRIVATE,GENERAL CONTRACT WORK,20267602,121145370,30-Jan-14,150.00,Revenue,TONI MARSHALL,2012976
WANDSWORTH COUNCIL,NGF CS,ADMINISTRATION,PRINTING STAT & GEN OFFICE EXP,OUTWORK - LITHO,20265930,121333590,21-Jan-14,996.00,Revenue,HALSTAN & CO LTD,2000084
WANDSWORTH COUNCIL,NGF CS,ADMINISTRATION,PRINTING STAT & GEN OFFICE EXP,OUTWORK - LITHO,20265905,121333590,21-Jan-14,921.65,Revenue,FINANCIAL DATA MANAGEMENT LTD,2003241
WANDSWORTH COUNCIL,NGF CS,ADMINISTRATION,PRINTING STAT & GEN OFFICE EXP,OUTWORK - LITHO,20265906,121333590,21-Jan-14,427.00,Revenue,FINANCIAL DATA MANAGEMENT LTD,2003241
WANDSWORTH COUNCIL,NGF CS,ADMINISTRATION,PRINTING STAT & GEN OFFICE EXP,OUTWORK - LITHO,20265907,121333590,21-Jan-14,471.00,Revenue,FINANCIAL DATA MANAGEMENT LTD,2003241
WANDSWORTH COUNCIL,NGF CS,ADMINISTRATION,PRINTING STAT & GEN OFFICE EXP,OUTWORK - LITHO,20265908,121333590,21-Jan-14,620.00,Revenue,FINANCIAL DATA MANAGEMENT LTD,2003241
WANDSWORTH COUNCIL,NGF CS,ADMINISTRATION,PRINTING STAT & GEN OFFICE EXP,OUTWORK - LITHO,20265909,121333590,21-Jan-14,522.00,Revenue,FINANCIAL DATA MANAGEMENT LTD,2003241
WANDSWORTH COUNCIL,NGF CS,ADMINISTRATION,PRINTING STAT & GEN OFFICE EXP,OUTWORK - LITHO,20267589,121333590,30-Jan-14,432.00,Revenue,SLS PRINT,2003653
WANDSWORTH COUNCIL,NGF CS,ADMINISTRATION,PRINTING STAT & GEN OFFICE EXP,OUTWORK - LITHO,20264735,121333590,10-Jan-14,"3,060.86",Revenue,KALL KWIK,2007566
WANDSWORTH COUNCIL,NGF CS,ADMINISTRATION,DIRECT2,AGENCY STAFF,20263885,121400510,08-Jan-14,"2,215.17",Revenue,MATRIX SCM LIMITED,2014926
WANDSWORTH COUNCIL,NGF CS,ADMINISTRATION,DIRECT2,AGENCY STAFF,20264749,121400510,10-Jan-14,465.31,Revenue,MATRIX SCM LIMITED,2014926
WANDSWORTH COUNCIL,NGF CS,ADMINISTRATION,DIRECT2,AGENCY STAFF,20266710,121400510,27-Jan-14,"1,286.07",Revenue,MATRIX SCM LIMITED,2014926
WANDSWORTH COUNCIL,NGF CS,ADMINISTRATION,DIRECT2,AGENCY STAFF,20267577,121400510,29-Jan-14,767.73,Revenue,MATRIX SCM LIMITED,2014926
WANDSWORTH COUNCIL,NGF CS,ADMINISTRATION,DIRECT2,AGENCY STAFF,20268014,121400510,31-Jan-14,757.95,Revenue,MATRIX SCM LIMITED,2014926
WANDSWORTH COUNCIL,NGF CS,ADMINISTRATION,"EQUIPMENT, FURNITURE & MATS",OP COSTS - QUICKPRINT MACHINE,20267586,121430230,30-Jan-14,123.64,Revenue,CANON,2002540
WANDSWORTH COUNCIL,NGF CS,ADMINISTRATION,"EQUIPMENT, FURNITURE & MATS",OP COSTS -COLOUR COPIER RENTAL,20267586,121430240,30-Jan-14,"1,816.08",Revenue,CANON,2002540
WANDSWORTH COUNCIL,NGF CS,ADMINISTRATION,PRINTING STAT & GEN OFFICE EXP,PAPER - QUICKPRINT,20265840,121433370,21-Jan-14,"1,005.84",Revenue,CANON,2002540
WANDSWORTH COUNCIL,NGF CS,ADMINISTRATION,PRINTING STAT & GEN OFFICE EXP,PAPER - QUICKPRINT,20267584,121433370,30-Jan-14,"1,656.77",Revenue,ROBERT HORNE PAPER CO LTD,2006384
WANDSWORTH COUNCIL,NGF CDC,ADMINISTRATION,PRINTING STAT & GEN OFFICE EXP,PUBLIC RELATIONS,20267597,12203346K9018H,30-Jan-14,"6,106.00",Revenue,LONDON LETTERBOX MARKETING,2003685
WANDSWORTH COUNCIL,NGF CS,ADMINISTRATION,DIRECT2,AGENCY STAFF,20264749,122100510,10-Jan-14,"1,121.61",Revenue,MATRIX SCM LIMITED,2014926
WANDSWORTH COUNCIL,NGF CS,ADMINISTRATION,DIRECT2,AGENCY STAFF,20267577,122100510,29-Jan-14,"3,141.67",Revenue,MATRIX SCM LIMITED,2014926
WANDSWORTH COUNCIL,NGF CS,ADMINISTRATION,DIRECT2,AGENCY STAFF,20268014,122100510,31-Jan-14,542.71,Revenue,MATRIX SCM LIMITED,2014926
WANDSWORTH COUNCIL,NGF CS,ADMINISTRATION,"EQUIPMENT, FURNITURE & MATS",EQUIP.FURN & MATS-REPS & MTCE,20263930,122130010,07-Jan-14,"1,416.00",Revenue,NEOPOST LTD,2007384
WANDSWORTH COUNCIL,NGF CS,ADMINISTRATION,COMMUNICATIONS & COMP,COMMUNICATIONS - POSTAGE,20262367,122136000,07-Jan-14,"1,496.37",Revenue,ROYAL MAIL,2009044
WANDSWORTH COUNCIL,NGF CS,ADMINISTRATION,COMMUNICATIONS & COMP,COMMUNICATIONS - POSTAGE,20263951,122136000,07-Jan-14,"1,354.00",Revenue,ROYAL MAIL,2009044
WANDSWORTH COUNCIL,NGF CS,ADMINISTRATION,COMMUNICATIONS & COMP,COMMUNICATIONS - POSTAGE,20267201,122136000,29-Jan-14,242.92,Revenue,ROYAL MAIL,2009044
WANDSWORTH COUNCIL,NGF CS,ADMINISTRATION,COMMUNICATIONS & COMP,COMMUNICATIONS - POSTAGE,20267201,122136000,29-Jan-14,"1,906.32",Revenue,ROYAL MAIL,2009044
WANDSWORTH COUNCIL,NGF CS,ADMINISTRATION,COMMUNICATIONS & COMP,COMMUNICATIONS - POSTAGE,20263948,122136000,07-Jan-14,"1,154.01",Revenue,TNT POST LONDON LTD,2011033
WANDSWORTH COUNCIL,NGF CS,ADMINISTRATION,COMMUNICATIONS & COMP,COMMUNICATIONS - POSTAGE,20263949,122136000,07-Jan-14,"5,781.04",Revenue,TNT POST LONDON LTD,2011033
WANDSWORTH COUNCIL,NGF CS,ADMINISTRATION,COMMUNICATIONS & COMP,COMMUNICATIONS - POSTAGE,20267202,122136000,29-Jan-14,"3,223.86",Revenue,TNT POST LONDON LTD,2011033
WANDSWORTH COUNCIL,NGF CS,ADMINISTRATION,COMMUNICATIONS & COMP,COMMUNICATIONS - POSTAGE,20267204,122136000,29-Jan-14,580.61,Revenue,TNT POST LONDON LTD,2011033
WANDSWORTH COUNCIL,NGF CS,ADMINISTRATION,COMMUNICATIONS & COMP,COMMUNICATIONS - POSTAGE,20267205,122136000,29-Jan-14,"7,280.93",Revenue,TNT POST LONDON LTD,2011033
WANDSWORTH COUNCIL,NGF CS,ADMINISTRATION,COMMUNICATIONS & COMP,COMMUNICATIONS - POSTAGE,20267206,122136000,29-Jan-14,"4,657.82",Revenue,TNT POST LONDON LTD,2011033
WANDSWORTH COUNCIL,NGF CS,ADMINISTRATION,INDIRECT,IN-SERVICE TRAINING-SLA,20266705,123000740,27-Jan-14,517.50,Revenue,TRAINING SYNERGY LTD,2001767
WANDSWORTH COUNCIL,NGF CS,ADMINISTRATION,INDIRECT,TRAINING - EXTERNAL COURSES,20263962,123000770,07-Jan-14,520.00,Revenue,LONDON COUNCILS,2001466
WANDSWORTH COUNCIL,NGF CS,ADMINISTRATION,"EQUIPMENT, FURNITURE & MATS","EQUIPMENT, FURNITURE & MATS",20267223,123030000,29-Jan-14,495.00,Revenue,LTT VENDING GROUP,2011108
WANDSWORTH COUNCIL,NGF CS,ADMINISTRATION,GRANTS & SUBSCRIPTIONS,SUBSCRIPTIONS,20263900,123037640,07-Jan-14,421.01,Revenue,THOMPSON REUTERS,2013886
WANDSWORTH COUNCIL,NGF CS,ADMINISTRATION,GRANTS & SUBSCRIPTIONS,SUBSCRIPTIONS,20263900,123037640,07-Jan-14,404.99,Revenue,THOMPSON REUTERS,2013886
WANDSWORTH COUNCIL,NGF CS,ADMINISTRATION,GRANTS & SUBSCRIPTIONS,SUBSCRIPTIONS,20263963,123037640,07-Jan-14,"1,350.00",Revenue,LONDON BOROUGH OF HARINGEY,2018143
WANDSWORTH COUNCIL,NGF CS,ADMINISTRATION,DIRECT2,AGENCY STAFF,20263885,123200510,08-Jan-14,"1,483.65",Revenue,MATRIX SCM LIMITED,2014926
WANDSWORTH COUNCIL,NGF CS,ADMINISTRATION,DIRECT2,AGENCY STAFF,20263886,123200510,08-Jan-14,"3,296.75",Revenue,MATRIX SCM LIMITED,2014926
WANDSWORTH COUNCIL,NGF CS,ADMINISTRATION,DIRECT2,AGENCY STAFF,20264749,123200510,10-Jan-14,"1,739.45",Revenue,MATRIX SCM LIMITED,2014926
WANDSWORTH COUNCIL,NGF CS,ADMINISTRATION,DIRECT2,AGENCY STAFF,20266710,123200510,27-Jan-14,"2,289.78",Revenue,MATRIX SCM LIMITED,2014926
WANDSWORTH COUNCIL,NGF CS,ADMINISTRATION,DIRECT2,AGENCY STAFF,20267577,123200510,29-Jan-14,"3,458.53",Revenue,MATRIX SCM LIMITED,2014926
WANDSWORTH COUNCIL,NGF CS,ADMINISTRATION,DIRECT2,AGENCY STAFF,20268014,123200510,31-Jan-14,563.34,Revenue,MATRIX SCM LIMITED,2014926
WANDSWORTH COUNCIL,NGF CS,ADMINISTRATION,INDIRECT,HEALTH CARE,20265387,123200640,16-Jan-14,"3,457.10",Revenue,MEDICALS DIRECT SCREENING LTD,2014578
WANDSWORTH COUNCIL,NGF CS,ADMINISTRATION,INDIRECT,HEALTH CARE,20265389,123200640,16-Jan-14,975.70,Revenue,MEDICALS DIRECT SCREENING LTD,2014578
WANDSWORTH COUNCIL,NGF CS,ADMINISTRATION,INDIRECT,CHILDCARE VOUCHERS,20264627,123200650,10-Jan-14,103.90,Revenue,COMPUTERSHARE VOUCHER SERVICES,2007281
WANDSWORTH COUNCIL,NGF CS,ADMINISTRATION,INDIRECT,CHILDCARE VOUCHERS,20264628,123200650,10-Jan-14,663.62,Revenue,COMPUTERSHARE VOUCHER SERVICES,2007281
WANDSWORTH COUNCIL,NGF CS,ADMINISTRATION,INDIRECT,CHILDCARE VOUCHERS,20266950,123200650,27-Jan-14,21.87,Revenue,COMPUTERSHARE VOUCHER SERVICES,2007281
WANDSWORTH COUNCIL,NGF CS,ADMINISTRATION,INDIRECT,CHILDCARE VOUCHERS,20266951,123200650,27-Jan-14,106.11,Revenue,COMPUTERSHARE VOUCHER SERVICES,2007281
WANDSWORTH COUNCIL,NGF CS,ADMINISTRATION,INDIRECT,CHILDCARE VOUCHERS,20266952,123200650,27-Jan-14,"1,219.69",Revenue,COMPUTERSHARE VOUCHER SERVICES,2007281
WANDSWORTH COUNCIL,NGF CS,ADMINISTRATION,PRINTING STAT & GEN OFFICE EXP,PHOTOCOPYING,20267222,123233380,29-Jan-14,611.24,Revenue,RICOH UK LTD,2002588
WANDSWORTH COUNCIL,NGF CS,ADMINISTRATION,PRINTING STAT & GEN OFFICE EXP,PRINTING AND STATIONERY,20263518,123233420,03-Jan-14,89.07,Revenue,DANWOOD GROUP LTD,2005135
WANDSWORTH COUNCIL,NGF CS,ADMINISTRATION,SERVICES,OHS SESSIONAL DOCTOR,20263988,123234690,07-Jan-14,"8,199.18",Revenue,HJM ASSOCIATES,2011293
WANDSWORTH COUNCIL,NGF CS,ADMINISTRATION,MISC,MISCELLANEOUS EXPENSES,20265202,123238500,17-Jan-14,"2,377.25",Revenue,EDENRED UK GROUP LTD,2001234
WANDSWORTH COUNCIL,NGF CS,ADMINISTRATION,MISC,MISCELLANEOUS EXPENSES,20265624,123238500,20-Jan-14,42.00,Revenue,SUNA COMMUNICATION LTD,2003083
WANDSWORTH COUNCIL,NGF CDC,ADMINISTRATION,MISC,MISCELLANEOUS EXPENSES,20265994,124038500,21-Jan-14,"1,976.66",Revenue,AELTC,2012754
WANDSWORTH COUNCIL,NGF CDC,ADMINISTRATION,PRINTING STAT & GEN OFFICE EXP,GENERAL OFFICE EXPENSES,20266727,124433190,27-Jan-14,"2,100.00",Revenue,INFORMATION COMMISSIONER,2008634
WANDSWORTH COUNCIL,NGF CS,ADMINISTRATION,DIRECT2,AGENCY STAFF,20263885,124700510,08-Jan-14,199.27,Revenue,MATRIX SCM LIMITED,2014926
WANDSWORTH COUNCIL,NGF CS,ADMINISTRATION,DIRECT2,AGENCY STAFF,20263886,124700510,08-Jan-14,80.26,Revenue,MATRIX SCM LIMITED,2014926
WANDSWORTH COUNCIL,NGF CS,ADMINISTRATION,DIRECT2,AGENCY STAFF,20266710,124700510,27-Jan-14,501.88,Revenue,MATRIX SCM LIMITED,2014926
WANDSWORTH COUNCIL,NGF CS,ADMINISTRATION,DIRECT2,AGENCY STAFF,20267577,124700510,29-Jan-14,649.50,Revenue,MATRIX SCM LIMITED,2014926
WANDSWORTH COUNCIL,NGF CS,ADMINISTRATION,DIRECT2,AGENCY STAFF,20268014,124700510,31-Jan-14,648.09,Revenue,MATRIX SCM LIMITED,2014926
WANDSWORTH COUNCIL,NGF CS,ADMINISTRATION,INDIRECT,LONG SERVICE AWARDS,20265023,124700980,14-Jan-14,104.41,Revenue,VOUCHER EXPRESS (HEMINGWAYS MARKETING SERVICES),2002565
WANDSWORTH COUNCIL,NGF CS,ADMINISTRATION,INDIRECT,LONG SERVICE AWARDS,20265023,124700980,14-Jan-14,148.86,Revenue,VOUCHER EXPRESS (HEMINGWAYS MARKETING SERVICES),2002565
WANDSWORTH COUNCIL,NGF CS,ADMINISTRATION,MISC,MISCELLANEOUS EXPENSES,20264632,124738500,10-Jan-14,500.00,Revenue,INFORMATION COMMISSIONER,2008634
WANDSWORTH COUNCIL,ASC,ADMINISTRATION,DIRECT2,AGENCY STAFF,20263885,125000510,08-Jan-14,"25,363.50",Revenue,MATRIX SCM LIMITED,2014926
WANDSWORTH COUNCIL,ASC,ADMINISTRATION,DIRECT2,AGENCY STAFF,20263886,125000510,08-Jan-14,"10,854.35",Revenue,MATRIX SCM LIMITED,2014926
WANDSWORTH COUNCIL,ASC,ADMINISTRATION,DIRECT2,AGENCY STAFF,20264749,125000510,10-Jan-14,"14,898.75",Revenue,MATRIX SCM LIMITED,2014926
WANDSWORTH COUNCIL,ASC,ADMINISTRATION,DIRECT2,AGENCY STAFF,20266710,125000510,27-Jan-14,"13,105.05",Revenue,MATRIX SCM LIMITED,2014926
WANDSWORTH COUNCIL,ASC,ADMINISTRATION,DIRECT2,AGENCY STAFF,20267577,125000510,29-Jan-14,"18,510.00",Revenue,MATRIX SCM LIMITED,2014926
WANDSWORTH COUNCIL,ASC,ADMINISTRATION,DIRECT2,AGENCY STAFF,20268014,125000510,31-Jan-14,"13,282.64",Revenue,MATRIX SCM LIMITED,2014926
WANDSWORTH COUNCIL,ASC,ADMINISTRATION,INDIRECT,TRAINING - EXTERNAL COURSES,20264063,125000770,09-Jan-14,850.50,Revenue,KINGS FUND,2016901
WANDSWORTH COUNCIL,ASC,ADMINISTRATION,GRANTS & SUBSCRIPTIONS,SUBSCRIPTIONS,20265979,125037640,21-Jan-14,"2,000.00",Revenue,ADPH C/O HEALTH FORUM,2017778
WANDSWORTH COUNCIL,ASC,ADMINISTRATION,GRANTS & SUBSCRIPTIONS,SUBSCRIPTIONS,20265985,125037640,21-Jan-14,"5,000.00",Revenue,ST GEORGE`S UNIVERSITY OF LONDON,2991000
WANDSWORTH COUNCIL,ASC,ADMINISTRATION,COMMUNICATIONS & COMP,I.T. EQUIPMENT & MAINTENANCE,20267936,125136210,31-Jan-14,629.00,Revenue,QSR INTERNATIONAL,2991000
WANDSWORTH COUNCIL,NGF CS,ADMINISTRATION,DIRECT2,AGENCY STAFF,20263885,126000510,08-Jan-14,"11,291.72",Revenue,MATRIX SCM LIMITED,2014926
WANDSWORTH COUNCIL,NGF CS,ADMINISTRATION,DIRECT2,AGENCY STAFF,20263886,126000510,08-Jan-14,"1,790.68",Revenue,MATRIX SCM LIMITED,2014926
WANDSWORTH COUNCIL,NGF CS,ADMINISTRATION,DIRECT2,AGENCY STAFF,20264749,126000510,10-Jan-14,"9,118.48",Revenue,MATRIX SCM LIMITED,2014926
WANDSWORTH COUNCIL,NGF CS,ADMINISTRATION,DIRECT2,AGENCY STAFF,20266710,126000510,27-Jan-14,"11,661.23",Revenue,MATRIX SCM LIMITED,2014926
WANDSWORTH COUNCIL,NGF CS,ADMINISTRATION,DIRECT2,AGENCY STAFF,20267577,126000510,29-Jan-14,"6,203.30",Revenue,MATRIX SCM LIMITED,2014926
WANDSWORTH COUNCIL,NGF CS,ADMINISTRATION,DIRECT2,AGENCY STAFF,20268014,126000510,31-Jan-14,"8,585.03",Revenue,MATRIX SCM LIMITED,2014926
WANDSWORTH COUNCIL,NGF CS,ADMINISTRATION,"REPAIRS, ALTERATIONS & MTCE",REMOVALS & REORGANISATIONS,20265624,126010140,20-Jan-14,63.00,Revenue,SUNA COMMUNICATION LTD,2003083
WANDSWORTH COUNCIL,NGF CS,ADMINISTRATION,COMMUNICATIONS & COMP,COMMUNICATIONS - TELEPHONES,20265624,126036020,20-Jan-14,42.00,Revenue,SUNA COMMUNICATION LTD,2003083
WANDSWORTH COUNCIL,NGF CS,FINANCE,COMMUNICATIONS & COMP,I.T. EQUIPMENT & MAINTENANCE,338685,126036210,28-Jan-14,559.39,Revenue,D H CROFTS LTD,SP0000076
WANDSWORTH COUNCIL,NGF CS,ADMINISTRATION,COMMUNICATIONS & COMP,CALLS USAGE,20264848,126236050,15-Jan-14,"7,682.40",Revenue,VIRGIN MEDIA BUSINESS,2011718
WANDSWORTH COUNCIL,NGF CS,ADMINISTRATION,COMMUNICATIONS & COMP,CALLS USAGE,20264848,126236050,15-Jan-14,-0.01,Revenue,VIRGIN MEDIA BUSINESS,2011718
WANDSWORTH COUNCIL,NGF CS,ADMINISTRATION,"EQUIPMENT, FURNITURE & MATS","EQUIPMENT, FURNITURE & MATS",20267376,126330000,29-Jan-14,21.00,Revenue,SUNA COMMUNICATION LTD,2003083
WANDSWORTH COUNCIL,NGF CS,ADMINISTRATION,"EQUIPMENT, FURNITURE & MATS","EQUIPMENT, FURNITURE & MATS",20264804,126330000,15-Jan-14,422.00,Revenue,INCOM TELECOMMUNICATIONS,2003864
WANDSWORTH COUNCIL,NGF CS,ADMINISTRATION,"EQUIPMENT, FURNITURE & MATS","EQUIPMENT, FURNITURE & MATS",20267378,126330000,29-Jan-14,"1,650.00",Revenue,INCOM TELECOMMUNICATIONS,2003864
WANDSWORTH COUNCIL,NGF CS,ADMINISTRATION,"EQUIPMENT, FURNITURE & MATS","EQUIPMENT, FURNITURE & MATS",20264848,126330000,15-Jan-14,"1,714.00",Revenue,VIRGIN MEDIA BUSINESS,2011718
WANDSWORTH COUNCIL,NGF CS,ADMINISTRATION,"EQUIPMENT, FURNITURE & MATS","EQUIPMENT, FURNITURE & MATS",20264802,126330000,15-Jan-14,"1,900.00",Revenue,BERKLEY TECHNICAL SERVICES LIMITED,2991000
WANDSWORTH COUNCIL,NGF CS,ADMINISTRATION,COMMUNICATIONS & COMP,MOBILE PHONES,20265576,126336380,20-Jan-14,160.00,Revenue,BT PAYMENT SERVICES LTD,2009138
WANDSWORTH COUNCIL,NGF CS,ADMINISTRATION,COMMUNICATIONS & COMP,PRIVATE CIRCUITS EXCHANGE LINK,20265577,126336460,20-Jan-14,"1,341.08",Revenue,BT PAYMENT SERVICES LTD,2009138
WANDSWORTH COUNCIL,NGF CS,ADMINISTRATION,COMMUNICATIONS & COMP,PRIVATE CIRCUITS EXCHANGE LINK,20265577,126336460,20-Jan-14,701.50,Revenue,BT PAYMENT SERVICES LTD,2009138
WANDSWORTH COUNCIL,NGF CS,ADMINISTRATION,COMMUNICATIONS & COMP,PRIVATE CIRCUITS EXCHANGE LINK,20265577,126336460,20-Jan-14,701.50,Revenue,BT PAYMENT SERVICES LTD,2009138
WANDSWORTH COUNCIL,NGF CS,ADMINISTRATION,COMMUNICATIONS & COMP,PRIVATE CIRCUITS EXCHANGE LINK,20265577,126336460,20-Jan-14,"1,223.35",Revenue,BT PAYMENT SERVICES LTD,2009138
WANDSWORTH COUNCIL,NGF CS,ADMINISTRATION,COMMUNICATIONS & COMP,PRIVATE CIRCUITS EXCHANGE LINK,20265578,126336460,20-Jan-14,977.50,Revenue,BT PAYMENT SERVICES LTD,2009138
WANDSWORTH COUNCIL,NGF CS,ADMINISTRATION,"EQUIPMENT, FURNITURE & MATS","EQUIPMENT, FURNITURE & MATS",20266933,126630000,27-Jan-14,795.00,Revenue,NCC SERVICES LTD,2005308
WANDSWORTH COUNCIL,NGF CS,ADMINISTRATION,SERVICES,PROJECT WORK,20266636,127034800,24-Jan-14,"1,453.00",Revenue,STORM FAMILY CENTRE LTD,2004295
WANDSWORTH COUNCIL,NGF CS,ADMINISTRATION,"EQUIPMENT, FURNITURE & MATS","EQUIPMENT, FURNITURE & MATS",20265668,127230000,20-Jan-14,754.00,Revenue,DELL CORPORATION LTD,2009246
WANDSWORTH COUNCIL,NGF CS,ADMINISTRATION,COMMUNICATIONS & COMP,CORELOGIC MAINTENANCE & SUPPT,20263520,127236300,03-Jan-14,"2,590.00",Revenue,BACKUP TECHNOLOGY LTD,2011333
WANDSWORTH COUNCIL,NGF CS,ADMINISTRATION,COMMUNICATIONS & COMP,CORELOGIC MAINTENANCE & SUPPT,20265992,127236300,21-Jan-14,"3,390.00",Revenue,BACKUP TECHNOLOGY LTD,2011333
WANDSWORTH COUNCIL,ASC,SOCIAL SERVICES,DIRECT2,AGENCY STAFF,20263448,130000510,02-Jan-14,"6,054.33",Revenue,MATRIX SCM LIMITED,2014926
WANDSWORTH COUNCIL,ASC,SOCIAL SERVICES,DIRECT2,AGENCY STAFF,20263953,130000510,07-Jan-14,"1,459.68",Revenue,MATRIX SCM LIMITED,2014926
WANDSWORTH COUNCIL,ASC,SOCIAL SERVICES,DIRECT2,AGENCY STAFF,20264630,130000510,10-Jan-14,"4,356.90",Revenue,MATRIX SCM LIMITED,2014926
WANDSWORTH COUNCIL,ASC,SOCIAL SERVICES,DIRECT2,AGENCY STAFF,20265437,130000510,17-Jan-14,47.77,Revenue,MATRIX SCM LIMITED,2014926
WANDSWORTH COUNCIL,ASC,SOCIAL SERVICES,DIRECT2,AGENCY STAFF,20267399,130000510,30-Jan-14,"14,460.76",Revenue,MATRIX SCM LIMITED,2014926
WANDSWORTH COUNCIL,ASC,SOCIAL SERVICES,DIRECT2,AGENCY STAFF,20264416,130200510,09-Jan-14,600.00,Revenue,DR STEVEN CARNABY,2016690
WANDSWORTH COUNCIL,ASC,SOCIAL SERVICES,HIRE,HIRE - TRANSPORT,20266542,130220410,23-Jan-14,770.00,Revenue,CLUB CLASS CHAUFFEURS LTD,2002056
WANDSWORTH COUNCIL,ASC,SOCIAL SERVICES,HIRE,HIRE - TRANSPORT,332293,130220410,17-Jan-14,420.00,Revenue,HEALTHCARE & TRANSPORT SERVICES (HATS),SP0000012
WANDSWORTH COUNCIL,ASC,SOCIAL SERVICES,HIRE,HIRE - TRANSPORT,333336,130220410,20-Jan-14,630.00,Revenue,HEALTHCARE & TRANSPORT SERVICES (HATS),SP0000012
WANDSWORTH COUNCIL,ASC,SOCIAL SERVICES,HIRE,HIRE - TRANSPORT,341756,130220410,31-Jan-14,630.00,Revenue,HEALTHCARE & TRANSPORT SERVICES (HATS),SP0000012
WANDSWORTH COUNCIL,ASC,SOCIAL SERVICES,HIRE,HIRE - TRANSPORT,341766,130220410,31-Jan-14,630.00,Revenue,HEALTHCARE & TRANSPORT SERVICES (HATS),SP0000012
WANDSWORTH COUNCIL,ASC,SOCIAL SERVICES,HIRE,HIRE - TRANSPORT,333300,130220410,20-Jan-14,457.20,Revenue,BECKETT CORPORATION LTD T/A TINAS CARS,SP0000729
WANDSWORTH COUNCIL,ASC,SOCIAL SERVICES,HIRE,HIRE - TRANSPORT,333302,130220410,20-Jan-14,"1,586.10",Revenue,BECKETT CORPORATION LTD T/A TINAS CARS,SP0000729
WANDSWORTH COUNCIL,ASC,SOCIAL SERVICES,HIRE,HIRE - TRANSPORT,333306,130220410,20-Jan-14,"1,003.35",Revenue,BECKETT CORPORATION LTD T/A TINAS CARS,SP0000729
WANDSWORTH COUNCIL,ASC,SOCIAL SERVICES,HIRE,HIRE - TRANSPORT,333308,130220410,20-Jan-14,902.22,Revenue,BECKETT CORPORATION LTD T/A TINAS CARS,SP0000729
WANDSWORTH COUNCIL,ASC,SOCIAL SERVICES,HIRE,HIRE - TRANSPORT,333309,130220410,20-Jan-14,517.58,Revenue,BECKETT CORPORATION LTD T/A TINAS CARS,SP0000729
WANDSWORTH COUNCIL,ASC,SOCIAL SERVICES,HIRE,HIRE - TRANSPORT,333312,130220410,20-Jan-14,737.64,Revenue,BECKETT CORPORATION LTD T/A TINAS CARS,SP0000729
WANDSWORTH COUNCIL,ASC,SOCIAL SERVICES,HIRE,HIRE - TRANSPORT,326346,130220410,07-Jan-14,552.00,Revenue,A STAR TRANSPORT LTD,SP0000866
WANDSWORTH COUNCIL,ASC,SOCIAL SERVICES,HIRE,HIRE - TRANSPORT,328728,130220410,09-Jan-14,433.30,Revenue,A STAR TRANSPORT LTD,SP0000866
WANDSWORTH COUNCIL,ASC,SOCIAL SERVICES,HIRE,HIRE - TRANSPORT,328729,130220410,09-Jan-14,433.30,Revenue,A STAR TRANSPORT LTD,SP0000866
WANDSWORTH COUNCIL,ASC,SOCIAL SERVICES,HIRE,HIRE - TRANSPORT,333239,130220410,20-Jan-14,588.00,Revenue,A STAR TRANSPORT LTD,SP0000866
WANDSWORTH COUNCIL,ASC,SOCIAL SERVICES,HIRE,HIRE - TRANSPORT,333250,130220410,20-Jan-14,500.00,Revenue,A STAR TRANSPORT LTD,SP0000866
WANDSWORTH COUNCIL,ASC,SOCIAL SERVICES,HIRE,HIRE - TRANSPORT,333255,130220410,20-Jan-14,500.00,Revenue,A STAR TRANSPORT LTD,SP0000866
WANDSWORTH COUNCIL,ASC,SOCIAL SERVICES,HIRE,HIRE - TRANSPORT,333256,130220410,20-Jan-14,500.00,Revenue,A STAR TRANSPORT LTD,SP0000866
WANDSWORTH COUNCIL,ASC,SOCIAL SERVICES,HIRE,HIRE - TRANSPORT,333259,130220410,20-Jan-14,450.00,Revenue,A STAR TRANSPORT LTD,SP0000866
WANDSWORTH COUNCIL,ASC,SOCIAL SERVICES,HIRE,HIRE - TRANSPORT,333261,130220410,20-Jan-14,980.00,Revenue,A STAR TRANSPORT LTD,SP0000866
WANDSWORTH COUNCIL,ASC,SOCIAL SERVICES,HIRE,HIRE - TRANSPORT,333928,130220410,21-Jan-14,520.00,Revenue,A STAR TRANSPORT LTD,SP0000866
WANDSWORTH COUNCIL,ASC,SOCIAL SERVICES,HIRE,HIRE - TRANSPORT,333938,130220410,21-Jan-14,500.00,Revenue,A STAR TRANSPORT LTD,SP0000866
WANDSWORTH COUNCIL,ASC,SOCIAL SERVICES,HIRE,HIRE - TRANSPORT,333939,130220410,21-Jan-14,440.00,Revenue,A STAR TRANSPORT LTD,SP0000866
WANDSWORTH COUNCIL,ASC,SOCIAL SERVICES,HIRE,HIRE - TRANSPORT,335036,130220410,22-Jan-14,"1,160.00",Revenue,A STAR TRANSPORT LTD,SP0000866
WANDSWORTH COUNCIL,ASC,SOCIAL SERVICES,HIRE,HIRE - TRANSPORT,335041,130220410,22-Jan-14,450.00,Revenue,A STAR TRANSPORT LTD,SP0000866
WANDSWORTH COUNCIL,ASC,SOCIAL SERVICES,HIRE,HIRE - TRANSPORT,335045,130220410,22-Jan-14,656.00,Revenue,A STAR TRANSPORT LTD,SP0000866
WANDSWORTH COUNCIL,ASC,SOCIAL SERVICES,HIRE,HIRE - TRANSPORT,336795,130220410,24-Jan-14,433.30,Revenue,A STAR TRANSPORT LTD,SP0000866
WANDSWORTH COUNCIL,ASC,SOCIAL SERVICES,HIRE,HIRE - TRANSPORT,336796,130220410,24-Jan-14,433.30,Revenue,A STAR TRANSPORT LTD,SP0000866
WANDSWORTH COUNCIL,ASC,SOCIAL SERVICES,HIRE,HIRE - TRANSPORT,324519,130220410,03-Jan-14,560.00,Revenue,GALPINS SERVICES LTD,SP0001368
WANDSWORTH COUNCIL,ASC,SOCIAL SERVICES,HIRE,HIRE - TRANSPORT,326360,130220410,07-Jan-14,984.00,Revenue,THE WEST OF ENGLAND SCHOOL & COLLEGE,SP0001486
WANDSWORTH COUNCIL,ASC,SOCIAL SERVICES,HIRE,HIRE - TRANSPORT,333919,130220410,21-Jan-14,750.00,Revenue,THE WEST OF ENGLAND SCHOOL & COLLEGE,SP0001486
WANDSWORTH COUNCIL,ASC,SOCIAL SERVICES,HIRE,HIRE - TRANSPORT,333920,130220410,21-Jan-14,"1,125.00",Revenue,THE WEST OF ENGLAND SCHOOL & COLLEGE,SP0001486
WANDSWORTH COUNCIL,ASC,SOCIAL SERVICES,HIRE,NEW TRANSPORT CONTRACT,326346,130220430,07-Jan-14,-40.00,Revenue,A STAR TRANSPORT LTD,SP0000866
WANDSWORTH COUNCIL,ASC,SOCIAL SERVICES,HIRE,NEW TRANSPORT CONTRACT,333247,130220430,20-Jan-14,470.00,Revenue,A STAR TRANSPORT LTD,SP0000866
WANDSWORTH COUNCIL,ASC,SOCIAL SERVICES,"CLOTHING, UNIFORM & LAUNDRY",EXTERNAL LAUNDRY,330570,130231520,15-Jan-14,126.00,Revenue,G S LAUNDRIES LTD,SP0000995
WANDSWORTH COUNCIL,ASC,SOCIAL SERVICES,SERVICES,TRAVEL BUDDY SCHEME,20263429,130234970,02-Jan-14,"12,063.77",Revenue,HARINGEY ASSOCIATION FOR INDEPENDENT LIVING (HAIL),2001094
WANDSWORTH COUNCIL,ASC,SOCIAL SERVICES,SERVICES,TRAVEL BUDDY SCHEME,20267744,130234970,30-Jan-14,"15,270.67",Revenue,HARINGEY ASSOCIATION FOR INDEPENDENT LIVING (HAIL),2001094
WANDSWORTH COUNCIL,ASC,SOCIAL SERVICES,SERVICES,TRAVEL BUDDY SCHEME,333067,130234970,20-Jan-14,622.12,Revenue,SOUTHSIDE PARTNERSHIP,SP0000692
WANDSWORTH COUNCIL,ASC,SOCIAL SERVICES,SERVICES,TRAVEL BUDDY SCHEME,333070,130234970,20-Jan-14,709.05,Revenue,SOUTHSIDE PARTNERSHIP,SP0000692
WANDSWORTH COUNCIL,ASC,SOCIAL SERVICES,SERVICES,TRAVEL BUDDY SCHEME,333832,130234970,21-Jan-14,"1,457.49",Revenue,SOUTHSIDE PARTNERSHIP,SP0000692
WANDSWORTH COUNCIL,ASC,SOCIAL SERVICES,SERVICES,TRAVEL BUDDY SCHEME,333836,130234970,21-Jan-14,632.98,Revenue,SOUTHSIDE PARTNERSHIP,SP0000692
WANDSWORTH COUNCIL,ASC,SOCIAL SERVICES,SERVICES,TRAVEL BUDDY SCHEME,340001,130234970,29-Jan-14,790.55,Revenue,SOUTHSIDE PARTNERSHIP,SP0000692
WANDSWORTH COUNCIL,ASC,ADMINISTRATION,COMMUNICATIONS & COMP,TELECOMMUNICATIONS SLA,20265577,130236520,20-Jan-14,943.25,Revenue,BT PAYMENT SERVICES LTD,2009138
WANDSWORTH COUNCIL,ASC,SOCIAL SERVICES,HEALTH,EXT RES S28A 100% OLD LONGSTAY,324141,130241010,03-Jan-14,"3,037.02",Revenue,PARKGATE MANOR,SP0000521
WANDSWORTH COUNCIL,ASC,SOCIAL SERVICES,HEALTH,EXT RES S28A 100% OLD LONGSTAY,337881,130241010,27-Jan-14,"3,037.03",Revenue,PARKGATE MANOR,SP0000521
WANDSWORTH COUNCIL,ASC,SOCIAL SERVICES,HEALTH,EXTERNAL RESIDENTIAL CARE S28A,330159,130241080,15-Jan-14,"4,761.76",Revenue,MACINTYRE CARE,SP0000473
WANDSWORTH COUNCIL,ASC,SOCIAL SERVICES,HEALTH,EXTERNAL RESIDENTIAL CARE S28A,340755,130241080,30-Jan-14,147.40,Revenue,MACINTYRE CARE,SP0000473
WANDSWORTH COUNCIL,ASC,SOCIAL SERVICES,HEALTH,EXTERNAL RESIDENTIAL CARE S28A,324135,130241080,03-Jan-14,"7,215.87",Revenue,PROGRESS HOUSING LULWORTH,SP0000921
WANDSWORTH COUNCIL,ASC,SOCIAL SERVICES,HEALTH,EXTERNAL RESIDENTIAL CARE S28A,336513,130241080,24-Jan-14,"7,215.87",Revenue,PROGRESS HOUSING LULWORTH,SP0000921
WANDSWORTH COUNCIL,ASC,SOCIAL SERVICES,HEALTH,EXT RES S28A OLD LONG STAY,324171,130241110,03-Jan-14,"2,975.96",Revenue,ELEANOR NURSING & SOCIAL CARE,SP0000110
WANDSWORTH COUNCIL,ASC,SOCIAL SERVICES,HEALTH,EXT RES S28A OLD LONG STAY,340711,130241110,30-Jan-14,"2,975.96",Revenue,ELEANOR NURSING & SOCIAL CARE,SP0000110
WANDSWORTH COUNCIL,ASC,SOCIAL SERVICES,HEALTH,EXT RES S28A OLD LONG STAY,324104,130241110,03-Jan-14,"4,918.77",Revenue,THE COMMUNITY CARE COMPANY UK LTD,SP0000576
WANDSWORTH COUNCIL,ASC,SOCIAL SERVICES,HEALTH,EXT RES S28A OLD LONG STAY,340707,130241110,30-Jan-14,"4,918.76",Revenue,THE COMMUNITY CARE COMPANY UK LTD,SP0000576
WANDSWORTH COUNCIL,ASC,SOCIAL SERVICES,HEALTH,EXT RES S28A OLD LONG STAY,330110,130241110,15-Jan-14,"4,713.59",Revenue,METROPOLITAN HOUSING TRUST,SP0000626
WANDSWORTH COUNCIL,ASC,SOCIAL SERVICES,HEALTH,EXT RES S28A OLD LONG STAY,333023,130241110,20-Jan-14,"2,690.16",Revenue,ASHTON CARE,SP0000695
WANDSWORTH COUNCIL,ASC,SOCIAL SERVICES,HEALTH,EXT RES S28A OLD LONG STAY,328697,130241110,09-Jan-14,"4,351.72",Revenue,ANTHONY TOBY HOMES TRUST,SP0000755
WANDSWORTH COUNCIL,ASC,SOCIAL SERVICES,HEALTH,EXT RES S28A OLD LONG STAY,328698,130241110,09-Jan-14,"4,351.72",Revenue,ANTHONY TOBY HOMES TRUST,SP0000755
WANDSWORTH COUNCIL,ASC,SOCIAL SERVICES,OTHER AGENCIES,ENABLERS/EDUCATION FEES,326361,130243280,07-Jan-14,"1,096.34",Revenue,YATELEY INDUSTRIES FOR THE DISABLED LTD,SP0000655
WANDSWORTH COUNCIL,ASC,SOCIAL SERVICES,OTHER AGENCIES,ENABLERS/EDUCATION FEES,328695,130243280,09-Jan-14,"11,298.67",Revenue,ST  JOHN'S SCHOOL & COLLEGE,SP0001374
WANDSWORTH COUNCIL,ASC,SOCIAL SERVICES,OTHER AGENCIES,ENABLERS/EDUCATION FEES,328696,130243280,09-Jan-14,"16,466.67",Revenue,ST  JOHN'S SCHOOL & COLLEGE,SP0001374
WANDSWORTH COUNCIL,ASC,SOCIAL SERVICES,OTHER AGENCIES,ENABLERS/EDUCATION FEES,333815,130243280,21-Jan-14,"10,614.11",Revenue,THE MOUNT CAMPHILL COMMUNITY,SP0001422
WANDSWORTH COUNCIL,ASC,SOCIAL SERVICES,OTHER AGENCIES,EXTERNAL OUTREACH,333949,130243330,21-Jan-14,570.40,Revenue,RAINBOW MEDICAL SERVICES,SP0000037
WANDSWORTH COUNCIL,ASC,SOCIAL SERVICES,OTHER AGENCIES,EXTERNAL OUTREACH,333951,130243330,21-Jan-14,692.32,Revenue,RAINBOW MEDICAL SERVICES,SP0000037
WANDSWORTH COUNCIL,ASC,SOCIAL SERVICES,OTHER AGENCIES,EXTERNAL OUTREACH,326357,130243330,07-Jan-14,850.00,Revenue,PROTOCOL EDUCATION  LTD,SP0000171
WANDSWORTH COUNCIL,ASC,SOCIAL SERVICES,OTHER AGENCIES,EXTERNAL OUTREACH,328732,130243330,09-Jan-14,850.00,Revenue,PROTOCOL EDUCATION  LTD,SP0000171
WANDSWORTH COUNCIL,ASC,SOCIAL SERVICES,OTHER AGENCIES,EXTERNAL OUTREACH,336824,130243330,24-Jan-14,850.00,Revenue,PROTOCOL EDUCATION  LTD,SP0000171
WANDSWORTH COUNCIL,ASC,SOCIAL SERVICES,OTHER AGENCIES,EXTERNAL OUTREACH,334994,130243330,22-Jan-14,"1,540.00",Revenue,C M CARE LTD,SP0000455
WANDSWORTH COUNCIL,ASC,SOCIAL SERVICES,OTHER AGENCIES,EXTERNAL OUTREACH,334995,130243330,22-Jan-14,"2,185.32",Revenue,C M CARE LTD,SP0000455
WANDSWORTH COUNCIL,ASC,SOCIAL SERVICES,OTHER AGENCIES,EXTERNAL OUTREACH,334996,130243330,22-Jan-14,"1,324.00",Revenue,C M CARE LTD,SP0000455
WANDSWORTH COUNCIL,ASC,SOCIAL SERVICES,OTHER AGENCIES,EXTERNAL OUTREACH,334997,130243330,22-Jan-14,"1,287.20",Revenue,C M CARE LTD,SP0000455
WANDSWORTH COUNCIL,ASC,SOCIAL SERVICES,OTHER AGENCIES,EXTERNAL OUTREACH,334998,130243330,22-Jan-14,"1,964.20",Revenue,C M CARE LTD,SP0000455
WANDSWORTH COUNCIL,ASC,SOCIAL SERVICES,OTHER AGENCIES,EXTERNAL OUTREACH,334999,130243330,22-Jan-14,576.00,Revenue,C M CARE LTD,SP0000455
WANDSWORTH COUNCIL,ASC,SOCIAL SERVICES,OTHER AGENCIES,EXTERNAL OUTREACH,332243,130243330,17-Jan-14,638.08,Revenue,GENERATE OPPORTUNITIES LTD,SP0000503
WANDSWORTH COUNCIL,ASC,SOCIAL SERVICES,OTHER AGENCIES,EXTERNAL OUTREACH,332245,130243330,17-Jan-14,735.52,Revenue,GENERATE OPPORTUNITIES LTD,SP0000503
WANDSWORTH COUNCIL,ASC,SOCIAL SERVICES,OTHER AGENCIES,EXTERNAL OUTREACH,332249,130243330,17-Jan-14,797.60,Revenue,GENERATE OPPORTUNITIES LTD,SP0000503
WANDSWORTH COUNCIL,ASC,SOCIAL SERVICES,OTHER AGENCIES,EXTERNAL OUTREACH,332259,130243330,17-Jan-14,319.04,Revenue,GENERATE OPPORTUNITIES LTD,SP0000503
WANDSWORTH COUNCIL,ASC,SOCIAL SERVICES,OTHER AGENCIES,EXTERNAL OUTREACH,332260,130243330,17-Jan-14,"2,500.52",Revenue,GENERATE OPPORTUNITIES LTD,SP0000503
WANDSWORTH COUNCIL,ASC,SOCIAL SERVICES,OTHER AGENCIES,EXTERNAL OUTREACH,333166,130243330,20-Jan-14,717.84,Revenue,GENERATE OPPORTUNITIES LTD,SP0000503
WANDSWORTH COUNCIL,ASC,SOCIAL SERVICES,OTHER AGENCIES,EXTERNAL OUTREACH,333171,130243330,20-Jan-14,239.28,Revenue,GENERATE OPPORTUNITIES LTD,SP0000503
WANDSWORTH COUNCIL,ASC,SOCIAL SERVICES,OTHER AGENCIES,EXTERNAL OUTREACH,333172,130243330,20-Jan-14,797.60,Revenue,GENERATE OPPORTUNITIES LTD,SP0000503
WANDSWORTH COUNCIL,ASC,SOCIAL SERVICES,OTHER AGENCIES,EXTERNAL OUTREACH,333176,130243330,20-Jan-14,638.08,Revenue,GENERATE OPPORTUNITIES LTD,SP0000503
WANDSWORTH COUNCIL,ASC,SOCIAL SERVICES,OTHER AGENCIES,EXTERNAL OUTREACH,333177,130243330,20-Jan-14,797.60,Revenue,GENERATE OPPORTUNITIES LTD,SP0000503
WANDSWORTH COUNCIL,ASC,SOCIAL SERVICES,OTHER AGENCIES,EXTERNAL OUTREACH,333188,130243330,20-Jan-14,"2,233.28",Revenue,GENERATE OPPORTUNITIES LTD,SP0000503
WANDSWORTH COUNCIL,ASC,SOCIAL SERVICES,OTHER AGENCIES,EXTERNAL OUTREACH,330411,130243330,15-Jan-14,630.72,Revenue,METROPOLITAN HOUSING TRUST,SP0000626
WANDSWORTH COUNCIL,ASC,SOCIAL SERVICES,OTHER AGENCIES,EXTERNAL OUTREACH,330417,130243330,15-Jan-14,971.60,Revenue,METROPOLITAN HOUSING TRUST,SP0000626
WANDSWORTH COUNCIL,ASC,SOCIAL SERVICES,OTHER AGENCIES,EXTERNAL OUTREACH,330430,130243330,15-Jan-14,630.72,Revenue,METROPOLITAN HOUSING TRUST,SP0000626
WANDSWORTH COUNCIL,ASC,SOCIAL SERVICES,OTHER AGENCIES,EXTERNAL OUTREACH,330438,130243330,15-Jan-14,550.63,Revenue,METROPOLITAN HOUSING TRUST,SP0000626
WANDSWORTH COUNCIL,ASC,SOCIAL SERVICES,OTHER AGENCIES,EXTERNAL OUTREACH,336805,130243330,24-Jan-14,630.00,Revenue,ACT TOO LTD,SP0000855
WANDSWORTH COUNCIL,ASC,SOCIAL SERVICES,OTHER AGENCIES,EXTERNAL OUTREACH,326359,130243330,07-Jan-14,"1,260.00",Revenue,ROYAL ASSOCIATION FOR DEAF PEOPLE,SP0001251
WANDSWORTH COUNCIL,ASC,SOCIAL SERVICES,OTHER AGENCIES,EXTERNAL OUTREACH,336826,130243330,24-Jan-14,855.00,Revenue,ROYAL ASSOCIATION FOR DEAF PEOPLE,SP0001251
WANDSWORTH COUNCIL,ASC,SOCIAL SERVICES,OTHER AGENCIES,EXTERNAL OUTREACH,330450,130243330,15-Jan-14,"1,170.80",Revenue,THE BRANDON TRUST,SP0005337
WANDSWORTH COUNCIL,ASC,SOCIAL SERVICES,OTHER AGENCIES,EXTERNAL OUTREACH,330453,130243330,15-Jan-14,505.28,Revenue,THE BRANDON TRUST,SP0005337
WANDSWORTH COUNCIL,ASC,SOCIAL SERVICES,OTHER AGENCIES,EXTERNAL OUTREACH,330484,130243330,15-Jan-14,631.60,Revenue,THE BRANDON TRUST,SP0005337
WANDSWORTH COUNCIL,ASC,SOCIAL SERVICES,OTHER AGENCIES,EXTERNAL OUTREACH,330498,130243330,15-Jan-14,568.44,Revenue,THE BRANDON TRUST,SP0005337
WANDSWORTH COUNCIL,ASC,SOCIAL SERVICES,OTHER AGENCIES,EXTERNAL OUTREACH,330499,130243330,15-Jan-14,"1,010.56",Revenue,THE BRANDON TRUST,SP0005337
WANDSWORTH COUNCIL,ASC,SOCIAL SERVICES,OTHER AGENCIES,EXTERNAL OUTREACH,330506,130243330,15-Jan-14,947.40,Revenue,THE BRANDON TRUST,SP0005337
WANDSWORTH COUNCIL,ASC,SOCIAL SERVICES,OTHER AGENCIES,EXTERNAL OUTREACH,330517,130243330,15-Jan-14,331.20,Revenue,THE BRANDON TRUST,SP0005337
WANDSWORTH COUNCIL,ASC,SOCIAL SERVICES,OTHER AGENCIES,EXTERNAL OUTREACH,330565,130243330,15-Jan-14,757.92,Revenue,THE BRANDON TRUST,SP0005337
WANDSWORTH COUNCIL,ASC,SOCIAL SERVICES,OTHER AGENCIES,INTERNAL FOSTERING,20264227,130243360,09-Jan-14,"48,709.73",Revenue,SOUTHSIDE PARTNERSHIP,2005209
WANDSWORTH COUNCIL,ASC,SOCIAL SERVICES,OTHER AGENCIES,INTERNAL FOSTERING,20264228,130243360,09-Jan-14,"15,619.00",Revenue,SOUTHSIDE PARTNERSHIP,2005209
WANDSWORTH COUNCIL,ASC,SOCIAL SERVICES,OTHER AGENCIES,INTERNAL FOSTERING,20265423,130243360,17-Jan-14,"2,894.51",Revenue,SOUTHSIDE PARTNERSHIP,2005209
WANDSWORTH COUNCIL,ASC,SOCIAL SERVICES,OTHER AGENCIES,INTERNAL FOSTERING,20265424,130243360,17-Jan-14,"15,619.00",Revenue,SOUTHSIDE PARTNERSHIP,2005209
WANDSWORTH COUNCIL,ASC,SOCIAL SERVICES,OTHER AGENCIES,INTERNAL FOSTERING,20265425,130243360,17-Jan-14,"2,121.10",Revenue,SOUTHSIDE PARTNERSHIP,2005209
WANDSWORTH COUNCIL,ASC,SOCIAL SERVICES,OTHER AGENCIES,INTERNAL FOSTERING,20265426,130243360,17-Jan-14,"38,265.62",Revenue,SOUTHSIDE PARTNERSHIP,2005209
WANDSWORTH COUNCIL,ASC,SOCIAL SERVICES,OTHER AGENCIES,INTERNAL FOSTERING,20266532,130243360,24-Jan-14,"2,497.51",Revenue,SOUTHSIDE PARTNERSHIP,2005209
WANDSWORTH COUNCIL,ASC,SOCIAL SERVICES,OTHER AGENCIES,INTERNAL FOSTERING,20266532,130243360,24-Jan-14,-48.43,Revenue,SOUTHSIDE PARTNERSHIP,2005209
WANDSWORTH COUNCIL,ASC,SOCIAL SERVICES,OTHER AGENCIES,INTERNAL FOSTERING,20266533,130243360,24-Jan-14,"6,504.41",Revenue,SOUTHSIDE PARTNERSHIP,2005209
WANDSWORTH COUNCIL,ASC,SOCIAL SERVICES,OTHER AGENCIES,INTERNAL FOSTERING,20266534,130243360,24-Jan-14,"-23,624.15",Revenue,SOUTHSIDE PARTNERSHIP,2005209
WANDSWORTH COUNCIL,ASC,SOCIAL SERVICES,OTHER AGENCIES,INTERNAL FOSTERING,20266534,130243360,24-Jan-14,"72,661.08",Revenue,SOUTHSIDE PARTNERSHIP,2005209
WANDSWORTH COUNCIL,ASC,SOCIAL SERVICES,OTHER AGENCIES,INTERNAL FOSTERING,20266535,130243360,24-Jan-14,"7,280.77",Revenue,SOUTHSIDE PARTNERSHIP,2005209
WANDSWORTH COUNCIL,ASC,SOCIAL SERVICES,OTHER AGENCIES,APS SHARED LIVES SCHEME,20245268,130243820,17-Jan-14,"6,702.54",Revenue,SOUTHSIDE PARTNERSHIP,2005209
WANDSWORTH COUNCIL,ASC,SOCIAL SERVICES,OTHER AGENCIES,APS SHARED LIVES SCHEME,20245269,130243820,17-Jan-14,"15,619.00",Revenue,SOUTHSIDE PARTNERSHIP,2005209
WANDSWORTH COUNCIL,ASC,SOCIAL SERVICES,OTHER AGENCIES,APS SHARED LIVES SCHEME,20245270,130243820,17-Jan-14,"5,709.20",Revenue,SOUTHSIDE PARTNERSHIP,2005209
WANDSWORTH COUNCIL,ASC,SOCIAL SERVICES,OTHER AGENCIES,APS SHARED LIVES SCHEME,20245271,130243820,17-Jan-14,"66,657.08",Revenue,SOUTHSIDE PARTNERSHIP,2005209
WANDSWORTH COUNCIL,ASC,SOCIAL SERVICES,OTHER AGENCIES,APS SHARED LIVES SCHEME,20245272,130243820,17-Jan-14,"69,844.09",Revenue,SOUTHSIDE PARTNERSHIP,2005209
WANDSWORTH COUNCIL,ASC,SOCIAL SERVICES,OTHER AGENCIES,APS SHARED LIVES SCHEME,20245273,130243820,17-Jan-14,"4,635.91",Revenue,SOUTHSIDE PARTNERSHIP,2005209
WANDSWORTH COUNCIL,ASC,SOCIAL SERVICES,PRIVATE,EXTERNAL DAYCARE,20264417,130245290,09-Jan-14,"2,128.26",Revenue,LEONARD CHESHIRE,2008417
WANDSWORTH COUNCIL,ASC,SOCIAL SERVICES,PRIVATE,EXTERNAL DAYCARE,20264418,130245290,09-Jan-14,"4,611.70",Revenue,LEONARD CHESHIRE,2008417
WANDSWORTH COUNCIL,ASC,SOCIAL SERVICES,PRIVATE,EXTERNAL DAYCARE,20266545,130245290,23-Jan-14,"2,128.26",Revenue,LEONARD CHESHIRE,2008417
WANDSWORTH COUNCIL,ASC,SOCIAL SERVICES,PRIVATE,EXTERNAL DAYCARE,324495,130245290,03-Jan-14,"2,094.62",Revenue,CMG HOMES LTD,SP0000075
WANDSWORTH COUNCIL,ASC,SOCIAL SERVICES,PRIVATE,EXTERNAL DAYCARE,324497,130245290,03-Jan-14,931.04,Revenue,CMG HOMES LTD,SP0000075
WANDSWORTH COUNCIL,ASC,SOCIAL SERVICES,PRIVATE,EXTERNAL DAYCARE,324516,130245290,03-Jan-14,"1,059.52",Revenue,COUNTRY CARE,SP0000090
WANDSWORTH COUNCIL,ASC,SOCIAL SERVICES,PRIVATE,EXTERNAL DAYCARE,341774,130245290,31-Jan-14,"1,107.68",Revenue,COUNTRY CARE,SP0000090
WANDSWORTH COUNCIL,ASC,SOCIAL SERVICES,PRIVATE,EXTERNAL DAYCARE,324500,130245290,03-Jan-14,"1,158.59",Revenue,RESIDENTIAL CARE SERVICES T/A FRANKLYN L,SP0000147
WANDSWORTH COUNCIL,ASC,SOCIAL SERVICES,PRIVATE,EXTERNAL DAYCARE,324501,130245290,03-Jan-14,"1,213.76",Revenue,RESIDENTIAL CARE SERVICES T/A FRANKLYN L,SP0000147
WANDSWORTH COUNCIL,ASC,SOCIAL SERVICES,PRIVATE,EXTERNAL DAYCARE,330093,130245290,15-Jan-14,125.80,Revenue,THE CHESTNUTS,SP0000182
WANDSWORTH COUNCIL,ASC,SOCIAL SERVICES,PRIVATE,EXTERNAL DAYCARE,330326,130245290,15-Jan-14,"1,619.00",Revenue,SOLACE COMMUNITY CARE LTD,SP0000190
WANDSWORTH COUNCIL,ASC,SOCIAL SERVICES,PRIVATE,EXTERNAL DAYCARE,341732,130245290,31-Jan-14,"1,376.15",Revenue,ASIAN ELDERS SUPPORT SCHEME,SP0000190
WANDSWORTH COUNCIL,ASC,SOCIAL SERVICES,PRIVATE,EXTERNAL DAYCARE,326313,130245290,07-Jan-14,878.48,Revenue,ORCHARD VALE TRUST,SP0000214
WANDSWORTH COUNCIL,ASC,SOCIAL SERVICES,PRIVATE,EXTERNAL DAYCARE,340810,130245290,30-Jan-14,878.48,Revenue,ORCHARD VALE TRUST,SP0000214
WANDSWORTH COUNCIL,ASC,SOCIAL SERVICES,PRIVATE,EXTERNAL DAYCARE,336780,130245290,24-Jan-14,"1,736.84",Revenue,ST MARYS RESIDENTIAL HOME,SP0000215
WANDSWORTH COUNCIL,ASC,SOCIAL SERVICES,PRIVATE,EXTERNAL DAYCARE,324436,130245290,03-Jan-14,"3,762.60",Revenue,NAS SERVICES LIMITED,SP0000217
WANDSWORTH COUNCIL,ASC,SOCIAL SERVICES,PRIVATE,EXTERNAL DAYCARE,324437,130245290,03-Jan-14,"1,097.76",Revenue,NAS SERVICES LIMITED,SP0000217
WANDSWORTH COUNCIL,ASC,SOCIAL SERVICES,PRIVATE,EXTERNAL DAYCARE,324438,130245290,03-Jan-14,"3,700.40",Revenue,NAS SERVICES LIMITED,SP0000217
WANDSWORTH COUNCIL,ASC,SOCIAL SERVICES,PRIVATE,EXTERNAL DAYCARE,324439,130245290,03-Jan-14,"3,017.00",Revenue,NAS SERVICES LIMITED,SP0000217
WANDSWORTH COUNCIL,ASC,SOCIAL SERVICES,PRIVATE,EXTERNAL DAYCARE,324443,130245290,03-Jan-14,"3,700.40",Revenue,NAS SERVICES LIMITED,SP0000217
WANDSWORTH COUNCIL,ASC,SOCIAL SERVICES,PRIVATE,EXTERNAL DAYCARE,324444,130245290,03-Jan-14,"3,700.40",Revenue,NAS SERVICES LIMITED,SP0000217
WANDSWORTH COUNCIL,ASC,SOCIAL SERVICES,PRIVATE,EXTERNAL DAYCARE,330330,130245290,15-Jan-14,"3,700.40",Revenue,NAS SERVICES LIMITED,SP0000217
WANDSWORTH COUNCIL,ASC,SOCIAL SERVICES,PRIVATE,EXTERNAL DAYCARE,330331,130245290,15-Jan-14,"3,017.00",Revenue,NAS SERVICES LIMITED,SP0000217
WANDSWORTH COUNCIL,ASC,SOCIAL SERVICES,PRIVATE,EXTERNAL DAYCARE,330332,130245290,15-Jan-14,"2,303.20",Revenue,NAS SERVICES LIMITED,SP0000217
WANDSWORTH COUNCIL,ASC,SOCIAL SERVICES,PRIVATE,EXTERNAL DAYCARE,330333,130245290,15-Jan-14,"2,194.40",Revenue,NAS SERVICES LIMITED,SP0000217
WANDSWORTH COUNCIL,ASC,SOCIAL SERVICES,PRIVATE,EXTERNAL DAYCARE,332287,130245290,17-Jan-14,"1,097.76",Revenue,NAS SERVICES LIMITED,SP0000217
WANDSWORTH COUNCIL,ASC,SOCIAL SERVICES,PRIVATE,EXTERNAL DAYCARE,332297,130245290,17-Jan-14,864.80,Revenue,NAS SERVICES LIMITED,SP0000217
WANDSWORTH COUNCIL,ASC,SOCIAL SERVICES,PRIVATE,EXTERNAL DAYCARE,336778,130245290,24-Jan-14,"3,762.60",Revenue,NAS SERVICES LIMITED,SP0000217
WANDSWORTH COUNCIL,ASC,SOCIAL SERVICES,PRIVATE,EXTERNAL DAYCARE,333210,130245290,20-Jan-14,806.04,Revenue,CRAEGMOOR FACILITIES CO LTD,SP0000306
WANDSWORTH COUNCIL,ASC,SOCIAL SERVICES,PRIVATE,EXTERNAL DAYCARE,330338,130245290,15-Jan-14,677.84,Revenue,SHARE COMMUNITY,SP0000329
WANDSWORTH COUNCIL,ASC,SOCIAL SERVICES,PRIVATE,EXTERNAL DAYCARE,330339,130245290,15-Jan-14,564.80,Revenue,SHARE COMMUNITY,SP0000329
WANDSWORTH COUNCIL,ASC,SOCIAL SERVICES,PRIVATE,EXTERNAL DAYCARE,330340,130245290,15-Jan-14,677.84,Revenue,SHARE COMMUNITY,SP0000329
WANDSWORTH COUNCIL,ASC,SOCIAL SERVICES,PRIVATE,EXTERNAL DAYCARE,330341,130245290,15-Jan-14,677.84,Revenue,SHARE COMMUNITY,SP0000329
WANDSWORTH COUNCIL,ASC,SOCIAL SERVICES,PRIVATE,EXTERNAL DAYCARE,330346,130245290,15-Jan-14,677.84,Revenue,SHARE COMMUNITY,SP0000329
WANDSWORTH COUNCIL,ASC,SOCIAL SERVICES,PRIVATE,EXTERNAL DAYCARE,330347,130245290,15-Jan-14,"1,129.60",Revenue,SHARE COMMUNITY,SP0000329
WANDSWORTH COUNCIL,ASC,SOCIAL SERVICES,PRIVATE,EXTERNAL DAYCARE,330353,130245290,15-Jan-14,677.84,Revenue,SHARE COMMUNITY,SP0000329
WANDSWORTH COUNCIL,ASC,SOCIAL SERVICES,PRIVATE,EXTERNAL DAYCARE,330355,130245290,15-Jan-14,677.84,Revenue,SHARE COMMUNITY,SP0000329
WANDSWORTH COUNCIL,ASC,SOCIAL SERVICES,PRIVATE,EXTERNAL DAYCARE,330359,130245290,15-Jan-14,677.84,Revenue,SHARE COMMUNITY,SP0000329
WANDSWORTH COUNCIL,ASC,SOCIAL SERVICES,PRIVATE,EXTERNAL DAYCARE,330361,130245290,15-Jan-14,677.84,Revenue,SHARE COMMUNITY,SP0000329
WANDSWORTH COUNCIL,ASC,SOCIAL SERVICES,PRIVATE,EXTERNAL DAYCARE,330363,130245290,15-Jan-14,677.84,Revenue,SHARE COMMUNITY,SP0000329
WANDSWORTH COUNCIL,ASC,SOCIAL SERVICES,PRIVATE,EXTERNAL DAYCARE,330365,130245290,15-Jan-14,706.08,Revenue,SHARE COMMUNITY,SP0000329
WANDSWORTH COUNCIL,ASC,SOCIAL SERVICES,PRIVATE,EXTERNAL DAYCARE,330367,130245290,15-Jan-14,903.68,Revenue,SHARE COMMUNITY,SP0000329
WANDSWORTH COUNCIL,ASC,SOCIAL SERVICES,PRIVATE,EXTERNAL DAYCARE,330372,130245290,15-Jan-14,903.68,Revenue,SHARE COMMUNITY,SP0000329
WANDSWORTH COUNCIL,ASC,SOCIAL SERVICES,PRIVATE,EXTERNAL DAYCARE,330374,130245290,15-Jan-14,677.84,Revenue,SHARE COMMUNITY,SP0000329
WANDSWORTH COUNCIL,ASC,SOCIAL SERVICES,PRIVATE,EXTERNAL DAYCARE,330375,130245290,15-Jan-14,677.84,Revenue,SHARE COMMUNITY,SP0000329
WANDSWORTH COUNCIL,ASC,SOCIAL SERVICES,PRIVATE,EXTERNAL DAYCARE,330376,130245290,15-Jan-14,677.84,Revenue,SHARE COMMUNITY,SP0000329
WANDSWORTH COUNCIL,ASC,SOCIAL SERVICES,PRIVATE,EXTERNAL DAYCARE,330377,130245290,15-Jan-14,677.84,Revenue,SHARE COMMUNITY,SP0000329
WANDSWORTH COUNCIL,ASC,SOCIAL SERVICES,PRIVATE,EXTERNAL DAYCARE,330379,130245290,15-Jan-14,677.84,Revenue,SHARE COMMUNITY,SP0000329
WANDSWORTH COUNCIL,ASC,SOCIAL SERVICES,PRIVATE,EXTERNAL DAYCARE,330380,130245290,15-Jan-14,903.68,Revenue,SHARE COMMUNITY,SP0000329
WANDSWORTH COUNCIL,ASC,SOCIAL SERVICES,PRIVATE,EXTERNAL DAYCARE,330381,130245290,15-Jan-14,"1,129.60",Revenue,SHARE COMMUNITY,SP0000329
WANDSWORTH COUNCIL,ASC,SOCIAL SERVICES,PRIVATE,EXTERNAL DAYCARE,330382,130245290,15-Jan-14,"1,129.60",Revenue,SHARE COMMUNITY,SP0000329
WANDSWORTH COUNCIL,ASC,SOCIAL SERVICES,PRIVATE,EXTERNAL DAYCARE,330383,130245290,15-Jan-14,677.84,Revenue,SHARE COMMUNITY,SP0000329
WANDSWORTH COUNCIL,ASC,SOCIAL SERVICES,PRIVATE,EXTERNAL DAYCARE,330384,130245290,15-Jan-14,564.80,Revenue,SHARE COMMUNITY,SP0000329
WANDSWORTH COUNCIL,ASC,SOCIAL SERVICES,PRIVATE,EXTERNAL DAYCARE,330385,130245290,15-Jan-14,677.84,Revenue,SHARE COMMUNITY,SP0000329
WANDSWORTH COUNCIL,ASC,SOCIAL SERVICES,PRIVATE,EXTERNAL DAYCARE,330388,130245290,15-Jan-14,677.84,Revenue,SHARE COMMUNITY,SP0000329
WANDSWORTH COUNCIL,ASC,SOCIAL SERVICES,PRIVATE,EXTERNAL DAYCARE,332261,130245290,17-Jan-14,903.68,Revenue,SHARE COMMUNITY,SP0000329
WANDSWORTH COUNCIL,ASC,SOCIAL SERVICES,PRIVATE,EXTERNAL DAYCARE,336781,130245290,24-Jan-14,"1,119.64",Revenue,DOLPHIN HOMES LTD,SP0000331
WANDSWORTH COUNCIL,ASC,SOCIAL SERVICES,PRIVATE,EXTERNAL DAYCARE,324445,130245290,03-Jan-14,"1,980.36",Revenue,NORWOOD SCHOOLS LTD,SP0000332
WANDSWORTH COUNCIL,ASC,SOCIAL SERVICES,PRIVATE,EXTERNAL DAYCARE,324446,130245290,03-Jan-14,"2,035.28",Revenue,NORWOOD SCHOOLS LTD,SP0000332
WANDSWORTH COUNCIL,ASC,SOCIAL SERVICES,PRIVATE,EXTERNAL DAYCARE,332285,130245290,17-Jan-14,"1,980.36",Revenue,NORWOOD SCHOOLS LTD,SP0000332
WANDSWORTH COUNCIL,ASC,SOCIAL SERVICES,PRIVATE,EXTERNAL DAYCARE,332286,130245290,17-Jan-14,"2,035.28",Revenue,NORWOOD SCHOOLS LTD,SP0000332
WANDSWORTH COUNCIL,ASC,SOCIAL SERVICES,PRIVATE,EXTERNAL DAYCARE,324442,130245290,03-Jan-14,882.00,Revenue,THE MANOR,SP0000340
WANDSWORTH COUNCIL,ASC,SOCIAL SERVICES,PRIVATE,EXTERNAL DAYCARE,336783,130245290,24-Jan-14,578.08,Revenue,VOYAGE CARE LTD,SP0000366
WANDSWORTH COUNCIL,ASC,SOCIAL SERVICES,PRIVATE,EXTERNAL DAYCARE,336784,130245290,24-Jan-14,"1,654.08",Revenue,VOYAGE CARE LTD,SP0000366
WANDSWORTH COUNCIL,ASC,SOCIAL SERVICES,PRIVATE,EXTERNAL DAYCARE,330335,130245290,15-Jan-14,"1,057.00",Revenue,ST DAVIDS CARE IN THE COMMUNITY,SP0000379
WANDSWORTH COUNCIL,ASC,SOCIAL SERVICES,PRIVATE,EXTERNAL DAYCARE,330336,130245290,15-Jan-14,"1,057.00",Revenue,ST DAVIDS CARE IN THE COMMUNITY,SP0000379
WANDSWORTH COUNCIL,ASC,SOCIAL SERVICES,PRIVATE,EXTERNAL DAYCARE,330337,130245290,15-Jan-14,"1,057.00",Revenue,ST DAVIDS CARE IN THE COMMUNITY,SP0000379
WANDSWORTH COUNCIL,ASC,SOCIAL SERVICES,PRIVATE,EXTERNAL DAYCARE,340808,130245290,30-Jan-14,672.10,Revenue,EAST SUSSEX COUNTY COUNCIL,SP0000427
WANDSWORTH COUNCIL,ASC,SOCIAL SERVICES,PRIVATE,EXTERNAL DAYCARE,340809,130245290,30-Jan-14,"1,165.59",Revenue,EAST SUSSEX COUNTY COUNCIL,SP0000427
WANDSWORTH COUNCIL,ASC,SOCIAL SERVICES,PRIVATE,EXTERNAL DAYCARE,324189,130245290,03-Jan-14,"1,142.35",Revenue,MACINTYRE CARE,SP0000473
WANDSWORTH COUNCIL,ASC,SOCIAL SERVICES,PRIVATE,EXTERNAL DAYCARE,330159,130245290,15-Jan-14,147.40,Revenue,MACINTYRE CARE,SP0000473
WANDSWORTH COUNCIL,ASC,SOCIAL SERVICES,PRIVATE,EXTERNAL DAYCARE,340755,130245290,30-Jan-14,994.95,Revenue,MACINTYRE CARE,SP0000473
WANDSWORTH COUNCIL,ASC,SOCIAL SERVICES,PRIVATE,EXTERNAL DAYCARE,329631,130245290,14-Jan-14,760.00,Revenue,WANDSWORTH BENGALI WELFARE ASSOCIATION,SP0000479
WANDSWORTH COUNCIL,ASC,SOCIAL SERVICES,PRIVATE,EXTERNAL DAYCARE,340806,130245290,30-Jan-14,726.07,Revenue,CHOICES,SP0000486
WANDSWORTH COUNCIL,ASC,SOCIAL SERVICES,PRIVATE,EXTERNAL DAYCARE,340807,130245290,30-Jan-14,615.16,Revenue,CHOICES,SP0000486
WANDSWORTH COUNCIL,ASC,SOCIAL SERVICES,PRIVATE,EXTERNAL DAYCARE,332232,130245290,17-Jan-14,576.00,Revenue,GENERATE OPPORTUNITIES LTD,SP0000503
WANDSWORTH COUNCIL,ASC,SOCIAL SERVICES,PRIVATE,EXTERNAL DAYCARE,332241,130245290,17-Jan-14,560.00,Revenue,GENERATE OPPORTUNITIES LTD,SP0000503
WANDSWORTH COUNCIL,ASC,SOCIAL SERVICES,PRIVATE,EXTERNAL DAYCARE,332242,130245290,17-Jan-14,576.00,Revenue,GENERATE OPPORTUNITIES LTD,SP0000503
WANDSWORTH COUNCIL,ASC,SOCIAL SERVICES,PRIVATE,EXTERNAL DAYCARE,332246,130245290,17-Jan-14,880.00,Revenue,GENERATE OPPORTUNITIES LTD,SP0000503
WANDSWORTH COUNCIL,ASC,SOCIAL SERVICES,PRIVATE,EXTERNAL DAYCARE,332259,130245290,17-Jan-14,280.00,Revenue,GENERATE OPPORTUNITIES LTD,SP0000503
WANDSWORTH COUNCIL,ASC,SOCIAL SERVICES,PRIVATE,EXTERNAL DAYCARE,333162,130245290,20-Jan-14,576.00,Revenue,GENERATE OPPORTUNITIES LTD,SP0000503
WANDSWORTH COUNCIL,ASC,SOCIAL SERVICES,PRIVATE,EXTERNAL DAYCARE,333164,130245290,20-Jan-14,640.00,Revenue,GENERATE OPPORTUNITIES LTD,SP0000503
WANDSWORTH COUNCIL,ASC,SOCIAL SERVICES,PRIVATE,EXTERNAL DAYCARE,333171,130245290,20-Jan-14,560.00,Revenue,GENERATE OPPORTUNITIES LTD,SP0000503
WANDSWORTH COUNCIL,ASC,SOCIAL SERVICES,PRIVATE,EXTERNAL DAYCARE,333172,130245290,20-Jan-14,320.00,Revenue,GENERATE OPPORTUNITIES LTD,SP0000503
WANDSWORTH COUNCIL,ASC,SOCIAL SERVICES,PRIVATE,EXTERNAL DAYCARE,333174,130245290,20-Jan-14,800.00,Revenue,GENERATE OPPORTUNITIES LTD,SP0000503
WANDSWORTH COUNCIL,ASC,SOCIAL SERVICES,PRIVATE,EXTERNAL DAYCARE,333181,130245290,20-Jan-14,576.00,Revenue,GENERATE OPPORTUNITIES LTD,SP0000503
WANDSWORTH COUNCIL,ASC,SOCIAL SERVICES,PRIVATE,EXTERNAL DAYCARE,332291,130245290,17-Jan-14,914.13,Revenue,ASHFIELD CARE HOMES LTD,SP0000590
WANDSWORTH COUNCIL,ASC,SOCIAL SERVICES,PRIVATE,EXTERNAL DAYCARE,336152,130245290,23-Jan-14,914.13,Revenue,ASHFIELD CARE HOMES LTD,SP0000590
WANDSWORTH COUNCIL,ASC,SOCIAL SERVICES,PRIVATE,EXTERNAL DAYCARE,330310,130245290,15-Jan-14,682.50,Revenue,DORSET SCOPE,SP0000591
WANDSWORTH COUNCIL,ASC,SOCIAL SERVICES,PRIVATE,EXTERNAL DAYCARE,336129,130245290,23-Jan-14,660.00,Revenue,THRIVE,SP0000601
WANDSWORTH COUNCIL,ASC,SOCIAL SERVICES,PRIVATE,EXTERNAL DAYCARE,340827,130245290,30-Jan-14,528.00,Revenue,THRIVE,SP0000601
WANDSWORTH COUNCIL,ASC,SOCIAL SERVICES,PRIVATE,EXTERNAL DAYCARE,324498,130245290,03-Jan-14,602.56,Revenue,HIGH HURLANDS HOMES,SP0000668
WANDSWORTH COUNCIL,ASC,SOCIAL SERVICES,PRIVATE,EXTERNAL DAYCARE,340811,130245290,30-Jan-14,602.56,Revenue,HIGH HURLANDS HOMES,SP0000668
WANDSWORTH COUNCIL,ASC,SOCIAL SERVICES,PRIVATE,EXTERNAL DAYCARE,330311,130245290,15-Jan-14,587.36,Revenue,CREST COOPERATIVE LTD,SP0000683
WANDSWORTH COUNCIL,ASC,SOCIAL SERVICES,PRIVATE,EXTERNAL DAYCARE,336782,130245290,24-Jan-14,"3,900.00",Revenue,WORCESTERSHIRE COUNTY COUNCIL,SP0000700
WANDSWORTH COUNCIL,ASC,SOCIAL SERVICES,PRIVATE,EXTERNAL DAYCARE,324441,130245290,03-Jan-14,"1,057.00",Revenue,THE MANOR HOUSE,SP0000728
WANDSWORTH COUNCIL,ASC,SOCIAL SERVICES,PRIVATE,EXTERNAL DAYCARE,330327,130245290,15-Jan-14,"1,004.15",Revenue,THE MANOR HOUSE,SP0000728
WANDSWORTH COUNCIL,ASC,SOCIAL SERVICES,PRIVATE,EXTERNAL DAYCARE,330328,130245290,15-Jan-14,"1,109.85",Revenue,THE MANOR HOUSE,SP0000728
WANDSWORTH COUNCIL,ASC,SOCIAL SERVICES,PRIVATE,EXTERNAL DAYCARE,330329,130245290,15-Jan-14,"1,109.85",Revenue,THE MANOR HOUSE,SP0000728
WANDSWORTH COUNCIL,ASC,SOCIAL SERVICES,PRIVATE,EXTERNAL DAYCARE,336777,130245290,24-Jan-14,"1,162.70",Revenue,THE MANOR HOUSE,SP0000728
WANDSWORTH COUNCIL,ASC,SOCIAL SERVICES,PRIVATE,EXTERNAL DAYCARE,326316,130245290,07-Jan-14,"1,204.06",Revenue,ANTHONY TOBY HOMES TRUST,SP0000755
WANDSWORTH COUNCIL,ASC,SOCIAL SERVICES,PRIVATE,EXTERNAL DAYCARE,326984,130245290,08-Jan-14,527.36,Revenue,UNITED RESPONSE,SP0000797
WANDSWORTH COUNCIL,ASC,SOCIAL SERVICES,PRIVATE,EXTERNAL DAYCARE,340818,130245290,30-Jan-14,597.86,Revenue,PROSPECTS,SP0000800
WANDSWORTH COUNCIL,ASC,SOCIAL SERVICES,PRIVATE,EXTERNAL DAYCARE,340813,130245290,30-Jan-14,618.20,Revenue,MENCAP OPEN DOOR,SP0000832
WANDSWORTH COUNCIL,ASC,SOCIAL SERVICES,PRIVATE,EXTERNAL DAYCARE,326319,130245290,07-Jan-14,"1,586.84",Revenue,STALLCOMBE HOUSE,SP0000843
WANDSWORTH COUNCIL,ASC,SOCIAL SERVICES,PRIVATE,EXTERNAL DAYCARE,336779,130245290,24-Jan-14,814.03,Revenue,SCOPE,SP0000852
WANDSWORTH COUNCIL,ASC,SOCIAL SERVICES,PRIVATE,EXTERNAL DAYCARE,336822,130245290,24-Jan-14,833.52,Revenue,SCOPE,SP0000852
WANDSWORTH COUNCIL,ASC,SOCIAL SERVICES,PRIVATE,EXTERNAL DAYCARE,336154,130245290,23-Jan-14,738.72,Revenue,ACT TOO LTD,SP0000855
WANDSWORTH COUNCIL,ASC,SOCIAL SERVICES,PRIVATE,EXTERNAL DAYCARE,336158,130245290,23-Jan-14,738.72,Revenue,ACT TOO LTD,SP0000855
WANDSWORTH COUNCIL,ASC,SOCIAL SERVICES,PRIVATE,EXTERNAL DAYCARE,336164,130245290,23-Jan-14,923.40,Revenue,ACT TOO LTD,SP0000855
WANDSWORTH COUNCIL,ASC,SOCIAL SERVICES,PRIVATE,EXTERNAL DAYCARE,336167,130245290,23-Jan-14,923.40,Revenue,ACT TOO LTD,SP0000855
WANDSWORTH COUNCIL,ASC,SOCIAL SERVICES,PRIVATE,EXTERNAL DAYCARE,336171,130245290,23-Jan-14,554.04,Revenue,ACT TOO LTD,SP0000855
WANDSWORTH COUNCIL,ASC,SOCIAL SERVICES,PRIVATE,EXTERNAL DAYCARE,336172,130245290,23-Jan-14,554.04,Revenue,ACT TOO LTD,SP0000855
WANDSWORTH COUNCIL,ASC,SOCIAL SERVICES,PRIVATE,EXTERNAL DAYCARE,336173,130245290,23-Jan-14,554.04,Revenue,ACT TOO LTD,SP0000855
WANDSWORTH COUNCIL,ASC,SOCIAL SERVICES,PRIVATE,EXTERNAL DAYCARE,336174,130245290,23-Jan-14,554.04,Revenue,ACT TOO LTD,SP0000855
WANDSWORTH COUNCIL,ASC,SOCIAL SERVICES,PRIVATE,EXTERNAL DAYCARE,336175,130245290,23-Jan-14,"1,108.08",Revenue,ACT TOO LTD,SP0000855
WANDSWORTH COUNCIL,ASC,SOCIAL SERVICES,PRIVATE,EXTERNAL DAYCARE,336177,130245290,23-Jan-14,738.72,Revenue,ACT TOO LTD,SP0000855
WANDSWORTH COUNCIL,ASC,SOCIAL SERVICES,PRIVATE,EXTERNAL DAYCARE,336182,130245290,23-Jan-14,554.04,Revenue,ACT TOO LTD,SP0000855
WANDSWORTH COUNCIL,ASC,SOCIAL SERVICES,PRIVATE,EXTERNAL DAYCARE,336737,130245290,24-Jan-14,554.04,Revenue,ACT TOO LTD,SP0000855
WANDSWORTH COUNCIL,ASC,SOCIAL SERVICES,PRIVATE,EXTERNAL DAYCARE,336738,130245290,24-Jan-14,554.04,Revenue,ACT TOO LTD,SP0000855
WANDSWORTH COUNCIL,ASC,SOCIAL SERVICES,PRIVATE,EXTERNAL DAYCARE,336740,130245290,24-Jan-14,554.04,Revenue,ACT TOO LTD,SP0000855
WANDSWORTH COUNCIL,ASC,SOCIAL SERVICES,PRIVATE,EXTERNAL DAYCARE,336743,130245290,24-Jan-14,738.72,Revenue,ACT TOO LTD,SP0000855
WANDSWORTH COUNCIL,ASC,SOCIAL SERVICES,PRIVATE,EXTERNAL DAYCARE,336744,130245290,24-Jan-14,554.04,Revenue,ACT TOO LTD,SP0000855
WANDSWORTH COUNCIL,ASC,SOCIAL SERVICES,PRIVATE,EXTERNAL DAYCARE,336747,130245290,24-Jan-14,554.04,Revenue,ACT TOO LTD,SP0000855
WANDSWORTH COUNCIL,ASC,SOCIAL SERVICES,PRIVATE,EXTERNAL DAYCARE,336750,130245290,24-Jan-14,923.40,Revenue,ACT TOO LTD,SP0000855
WANDSWORTH COUNCIL,ASC,SOCIAL SERVICES,PRIVATE,EXTERNAL DAYCARE,336751,130245290,24-Jan-14,554.04,Revenue,ACT TOO LTD,SP0000855
WANDSWORTH COUNCIL,ASC,SOCIAL SERVICES,PRIVATE,EXTERNAL DAYCARE,336752,130245290,24-Jan-14,554.04,Revenue,ACT TOO LTD,SP0000855
WANDSWORTH COUNCIL,ASC,SOCIAL SERVICES,PRIVATE,EXTERNAL DAYCARE,336754,130245290,24-Jan-14,923.40,Revenue,ACT TOO LTD,SP0000855
WANDSWORTH COUNCIL,ASC,SOCIAL SERVICES,PRIVATE,EXTERNAL DAYCARE,336755,130245290,24-Jan-14,554.04,Revenue,ACT TOO LTD,SP0000855
WANDSWORTH COUNCIL,ASC,SOCIAL SERVICES,PRIVATE,EXTERNAL DAYCARE,336756,130245290,24-Jan-14,923.40,Revenue,ACT TOO LTD,SP0000855
WANDSWORTH COUNCIL,ASC,SOCIAL SERVICES,PRIVATE,EXTERNAL DAYCARE,336757,130245290,24-Jan-14,738.72,Revenue,ACT TOO LTD,SP0000855
WANDSWORTH COUNCIL,ASC,SOCIAL SERVICES,PRIVATE,EXTERNAL DAYCARE,336759,130245290,24-Jan-14,554.04,Revenue,ACT TOO LTD,SP0000855
WANDSWORTH COUNCIL,ASC,SOCIAL SERVICES,PRIVATE,EXTERNAL DAYCARE,336761,130245290,24-Jan-14,554.04,Revenue,ACT TOO LTD,SP0000855
WANDSWORTH COUNCIL,ASC,SOCIAL SERVICES,PRIVATE,EXTERNAL DAYCARE,336762,130245290,24-Jan-14,554.04,Revenue,ACT TOO LTD,SP0000855
WANDSWORTH COUNCIL,ASC,SOCIAL SERVICES,PRIVATE,EXTERNAL DAYCARE,336765,130245290,24-Jan-14,554.04,Revenue,ACT TOO LTD,SP0000855
WANDSWORTH COUNCIL,ASC,SOCIAL SERVICES,PRIVATE,EXTERNAL DAYCARE,336772,130245290,24-Jan-14,738.72,Revenue,ACT TOO LTD,SP0000855
WANDSWORTH COUNCIL,ASC,SOCIAL SERVICES,PRIVATE,EXTERNAL DAYCARE,336773,130245290,24-Jan-14,738.72,Revenue,ACT TOO LTD,SP0000855
WANDSWORTH COUNCIL,ASC,SOCIAL SERVICES,PRIVATE,EXTERNAL DAYCARE,336775,130245290,24-Jan-14,554.04,Revenue,ACT TOO LTD,SP0000855
WANDSWORTH COUNCIL,ASC,SOCIAL SERVICES,PRIVATE,EXTERNAL DAYCARE,326314,130245290,07-Jan-14,"1,416.24",Revenue,WINSLOW COURT,SP0000886
WANDSWORTH COUNCIL,ASC,SOCIAL SERVICES,PRIVATE,EXTERNAL DAYCARE,326315,130245290,07-Jan-14,"1,416.24",Revenue,WINSLOW COURT,SP0000886
WANDSWORTH COUNCIL,ASC,SOCIAL SERVICES,PRIVATE,EXTERNAL DAYCARE,340728,130245290,30-Jan-14,"1,000.00",Revenue,PURBECK CARE LTD,SP0000913
WANDSWORTH COUNCIL,ASC,SOCIAL SERVICES,PRIVATE,EXTERNAL DAYCARE,324490,130245290,03-Jan-14,797.47,Revenue,ORIONE CARE,SP0000961
WANDSWORTH COUNCIL,ASC,SOCIAL SERVICES,PRIVATE,EXTERNAL DAYCARE,324491,130245290,03-Jan-14,562.92,Revenue,ORIONE CARE,SP0000961
WANDSWORTH COUNCIL,ASC,SOCIAL SERVICES,PRIVATE,EXTERNAL DAYCARE,333909,130245290,21-Jan-14,703.65,Revenue,ORIONE CARE,SP0000961
WANDSWORTH COUNCIL,ASC,SOCIAL SERVICES,PRIVATE,EXTERNAL DAYCARE,333911,130245290,21-Jan-14,516.01,Revenue,ORIONE CARE,SP0000961
WANDSWORTH COUNCIL,ASC,SOCIAL SERVICES,PRIVATE,EXTERNAL DAYCARE,326321,130245290,07-Jan-14,"1,138.40",Revenue,RIDGEWOOD CARE SERVICES LTD,SP0000969
WANDSWORTH COUNCIL,ASC,SOCIAL SERVICES,PRIVATE,EXTERNAL DAYCARE,337908,130245290,27-Jan-14,"1,200.00",Revenue,RIDGEWOOD CARE SERVICES LTD,SP0000969
WANDSWORTH COUNCIL,ASC,SOCIAL SERVICES,PRIVATE,EXTERNAL DAYCARE,324502,130245290,03-Jan-14,895.20,Revenue,SCOPE,SP0000991
WANDSWORTH COUNCIL,ASC,SOCIAL SERVICES,PRIVATE,EXTERNAL DAYCARE,324503,130245290,03-Jan-14,522.20,Revenue,SCOPE,SP0000991
WANDSWORTH COUNCIL,ASC,SOCIAL SERVICES,PRIVATE,EXTERNAL DAYCARE,332283,130245290,17-Jan-14,880.00,Revenue,THE HOME FARM TRUST LTD,SP0001048
WANDSWORTH COUNCIL,ASC,SOCIAL SERVICES,PRIVATE,EXTERNAL DAYCARE,340820,130245290,30-Jan-14,770.00,Revenue,THE HOME FARM TRUST LTD,SP0001048
WANDSWORTH COUNCIL,ASC,SOCIAL SERVICES,PRIVATE,EXTERNAL DAYCARE,340804,130245290,30-Jan-14,"2,047.50",Revenue,ROYAL BOROUGH OF WINDSOR AND MAIDENHEAD,SP0001087
WANDSWORTH COUNCIL,ASC,SOCIAL SERVICES,PRIVATE,EXTERNAL DAYCARE,336068,130245290,23-Jan-14,"1,541.00",Revenue,SUSSEX HEALTH CARE,SP0001115
WANDSWORTH COUNCIL,ASC,SOCIAL SERVICES,PRIVATE,EXTERNAL DAYCARE,336191,130245290,23-Jan-14,"1,196.82",Revenue,SUSSEX HEALTH CARE,SP0001115
WANDSWORTH COUNCIL,ASC,SOCIAL SERVICES,PRIVATE,EXTERNAL DAYCARE,324177,130245290,03-Jan-14,"1,551.24",Revenue,LONDON CARE PARTNERSHIP LTD,SP0001138
WANDSWORTH COUNCIL,ASC,SOCIAL SERVICES,PRIVATE,EXTERNAL DAYCARE,336506,130245290,24-Jan-14,"1,551.24",Revenue,LONDON CARE PARTNERSHIP LTD,SP0001138
WANDSWORTH COUNCIL,ASC,SOCIAL SERVICES,PRIVATE,EXTERNAL DAYCARE,341733,130245290,31-Jan-14,807.30,Revenue,HARROW MENCAP,SP0001347
WANDSWORTH COUNCIL,ASC,SOCIAL SERVICES,PRIVATE,EXTERNAL DAYCARE,332264,130245290,17-Jan-14,708.00,Revenue,WORKSHOP 305,SP0001403
WANDSWORTH COUNCIL,ASC,SOCIAL SERVICES,PRIVATE,EXTERNAL DAYCARE,332273,130245290,17-Jan-14,828.00,Revenue,WORKSHOP 305,SP0001403
WANDSWORTH COUNCIL,ASC,SOCIAL SERVICES,PRIVATE,EXTERNAL DAYCARE,332280,130245290,17-Jan-14,552.00,Revenue,WORKSHOP 305,SP0001403
WANDSWORTH COUNCIL,ASC,SOCIAL SERVICES,PRIVATE,EXTERNAL DAYCARE,333196,130245290,20-Jan-14,632.00,Revenue,WORKSHOP 305,SP0001403
WANDSWORTH COUNCIL,ASC,SOCIAL SERVICES,PRIVATE,EXTERNAL DAYCARE,333199,130245290,20-Jan-14,552.00,Revenue,WORKSHOP 305,SP0001403
WANDSWORTH COUNCIL,ASC,SOCIAL SERVICES,PRIVATE,EXTERNAL DAYCARE,333200,130245290,20-Jan-14,828.00,Revenue,WORKSHOP 305,SP0001403
WANDSWORTH COUNCIL,ASC,SOCIAL SERVICES,PRIVATE,EXTERNAL DAYCARE,333208,130245290,20-Jan-14,944.00,Revenue,WORKSHOP 305,SP0001403
WANDSWORTH COUNCIL,ASC,SOCIAL SERVICES,PRIVATE,EXTERNAL DAYCARE,333211,130245290,20-Jan-14,708.00,Revenue,WORKSHOP 305,SP0001403
WANDSWORTH COUNCIL,ASC,SOCIAL SERVICES,PRIVATE,EXTERNAL DAYCARE,333213,130245290,20-Jan-14,552.00,Revenue,WORKSHOP 305,SP0001403
WANDSWORTH COUNCIL,ASC,SOCIAL SERVICES,PRIVATE,EXTERNAL DAYCARE,333219,130245290,20-Jan-14,944.00,Revenue,WORKSHOP 305,SP0001403
WANDSWORTH COUNCIL,ASC,SOCIAL SERVICES,PRIVATE,EXTERNAL DAYCARE,330312,130245290,15-Jan-14,520.00,Revenue,THE CAMDEN SOCIETY,SP0001674
WANDSWORTH COUNCIL,ASC,SOCIAL SERVICES,PRIVATE,EXTERNAL DAYCARE,330313,130245290,15-Jan-14,520.00,Revenue,THE CAMDEN SOCIETY,SP0001674
WANDSWORTH COUNCIL,ASC,SOCIAL SERVICES,PRIVATE,EXTERNAL DAYCARE,330314,130245290,15-Jan-14,520.00,Revenue,THE CAMDEN SOCIETY,SP0001674
WANDSWORTH COUNCIL,ASC,SOCIAL SERVICES,PRIVATE,EXTERNAL DAYCARE,330315,130245290,15-Jan-14,520.00,Revenue,THE CAMDEN SOCIETY,SP0001674
WANDSWORTH COUNCIL,ASC,SOCIAL SERVICES,PRIVATE,EXTERNAL DAYCARE,330317,130245290,15-Jan-14,520.00,Revenue,THE CAMDEN SOCIETY,SP0001674
WANDSWORTH COUNCIL,ASC,SOCIAL SERVICES,PRIVATE,EXTERNAL DAYCARE,330319,130245290,15-Jan-14,520.00,Revenue,THE CAMDEN SOCIETY,SP0001674
WANDSWORTH COUNCIL,ASC,SOCIAL SERVICES,PRIVATE,EXTERNAL DAYCARE,330320,130245290,15-Jan-14,520.00,Revenue,THE CAMDEN SOCIETY,SP0001674
WANDSWORTH COUNCIL,ASC,SOCIAL SERVICES,PRIVATE,EXTERNAL DAYCARE,330321,130245290,15-Jan-14,520.00,Revenue,THE CAMDEN SOCIETY,SP0001674
WANDSWORTH COUNCIL,ASC,SOCIAL SERVICES,PRIVATE,EXTERNAL DAYCARE,330322,130245290,15-Jan-14,520.00,Revenue,THE CAMDEN SOCIETY,SP0001674
WANDSWORTH COUNCIL,ASC,SOCIAL SERVICES,PRIVATE,EXTERNAL DAYCARE,330324,130245290,15-Jan-14,520.00,Revenue,THE CAMDEN SOCIETY,SP0001674
WANDSWORTH COUNCIL,ASC,SOCIAL SERVICES,PRIVATE,EXTERNAL HOMECARE,334990,130245300,22-Jan-14,"1,191.32",Revenue,RAINBOW MEDICAL SERVICES,SP0000037
WANDSWORTH COUNCIL,ASC,SOCIAL SERVICES,PRIVATE,EXTERNAL HOMECARE,338870,130245300,28-Jan-14,780.00,Revenue,MUSHKIL AASAAN LTD,SP0000978
WANDSWORTH COUNCIL,ASC,SOCIAL SERVICES,PRIVATE,EXTERNAL HOMECARE,338879,130245300,28-Jan-14,870.84,Revenue,MUSHKIL AASAAN LTD,SP0000978
WANDSWORTH COUNCIL,ASC,SOCIAL SERVICES,PRIVATE,EXTERNAL HOMECARE,338880,130245300,28-Jan-14,627.44,Revenue,MUSHKIL AASAAN LTD,SP0000978
WANDSWORTH COUNCIL,ASC,SOCIAL SERVICES,PRIVATE,EXTERNAL HOMECARE,324281,130245300,03-Jan-14,606.48,Revenue,LONDON CARE PLC,SP0001035
WANDSWORTH COUNCIL,ASC,SOCIAL SERVICES,PRIVATE,EXTERNAL HOMECARE,334872,130245300,22-Jan-14,583.75,Revenue,LONDON CARE PLC,SP0001035
WANDSWORTH COUNCIL,ASC,SOCIAL SERVICES,PRIVATE,EXTERNAL HOMECARE,326246,130245300,07-Jan-14,"1,570.85",Revenue,HFH HOMECARE,SP0001058
WANDSWORTH COUNCIL,ASC,SOCIAL SERVICES,PRIVATE,EXTERNAL HOMECARE,336676,130245300,24-Jan-14,847.19,Revenue,HFH HOMECARE,SP0001058
WANDSWORTH COUNCIL,ASC,SOCIAL SERVICES,PRIVATE,EXTERNAL HOMECARE,338902,130245300,28-Jan-14,"1,411.32",Revenue,HFH HOMECARE,SP0001058
WANDSWORTH COUNCIL,ASC,SOCIAL SERVICES,PRIVATE,EXTERNAL HOMECARE,338903,130245300,28-Jan-14,"1,225.62",Revenue,HFH HOMECARE,SP0001058
WANDSWORTH COUNCIL,ASC,SOCIAL SERVICES,PRIVATE,EXTERNAL HOMECARE,324369,130245300,03-Jan-14,795.32,Revenue,SOMA HEALTHCARE LTD,SP0001116
WANDSWORTH COUNCIL,ASC,SOCIAL SERVICES,PRIVATE,EXTERNAL HOMECARE,324378,130245300,03-Jan-14,"2,215.66",Revenue,MEARS CARE LTD,SP0001491
WANDSWORTH COUNCIL,ASC,SOCIAL SERVICES,PRIVATE,EXTERNAL HOMECARE,330198,130245300,15-Jan-14,"2,693.33",Revenue,CHRISTIES CARE LTD,SP0005440
WANDSWORTH COUNCIL,ASC,SOCIAL SERVICES,PRIVATE,EXTERNAL NURSING CARE,333825,130245310,21-Jan-14,"5,971.48",Revenue,WINGHAM COURT,SP0000025
WANDSWORTH COUNCIL,ASC,SOCIAL SERVICES,PRIVATE,EXTERNAL NURSING CARE,328745,130245310,09-Jan-14,"2,747.20",Revenue,GEORGE POTTER CARE HOME LTD,SP0000276
WANDSWORTH COUNCIL,ASC,SOCIAL SERVICES,PRIVATE,EXTERNAL NURSING CARE,324146,130245310,03-Jan-14,"4,915.49",Revenue,RONALD GIBSON HOUSE,SP0000302
WANDSWORTH COUNCIL,ASC,SOCIAL SERVICES,PRIVATE,EXTERNAL NURSING CARE,337886,130245310,27-Jan-14,"4,915.49",Revenue,RONALD GIBSON HOUSE,SP0000302
WANDSWORTH COUNCIL,ASC,SOCIAL SERVICES,PRIVATE,EXTERNAL NURSING CARE,329601,130245310,14-Jan-14,"3,140.24",Revenue,ROSEDENE NURSING HOME,SP0000316
WANDSWORTH COUNCIL,ASC,SOCIAL SERVICES,PRIVATE,EXTERNAL NURSING CARE,337899,130245310,27-Jan-14,"3,140.24",Revenue,ROSEDENE NURSING HOME,SP0000316
WANDSWORTH COUNCIL,ASC,SOCIAL SERVICES,PRIVATE,EXTERNAL NURSING CARE,337854,130245310,27-Jan-14,"4,181.96",Revenue,VOYAGE CARE LTD,SP0000366
WANDSWORTH COUNCIL,ASC,SOCIAL SERVICES,PRIVATE,EXTERNAL NURSING CARE,337861,130245310,27-Jan-14,"5,320.72",Revenue,VOYAGE CARE LTD,SP0000366
WANDSWORTH COUNCIL,ASC,SOCIAL SERVICES,PRIVATE,EXTERNAL NURSING CARE,328690,130245310,09-Jan-14,"6,315.32",Revenue,ROYAL HOSPITAL FOR NEURO-DISABILITY,SP0000375
WANDSWORTH COUNCIL,ASC,SOCIAL SERVICES,PRIVATE,EXTERNAL NURSING CARE,333818,130245310,21-Jan-14,"6,599.63",Revenue,ROYAL HOSPITAL FOR NEURO-DISABILITY,SP0000375
WANDSWORTH COUNCIL,ASC,SOCIAL SERVICES,PRIVATE,EXTERNAL NURSING CARE,326520,130245310,07-Jan-14,"2,675.12",Revenue,FOUR SEASONS HEALTH CARE LTD,SP0000422
WANDSWORTH COUNCIL,ASC,SOCIAL SERVICES,PRIVATE,EXTERNAL NURSING CARE,329623,130245310,14-Jan-14,"3,065.88",Revenue,YEW TREE NURSING HOME,SP0000454
WANDSWORTH COUNCIL,ASC,SOCIAL SERVICES,PRIVATE,EXTERNAL NURSING CARE,324209,130245310,03-Jan-14,"5,382.12",Revenue,HIGH HURLANDS HOMES,SP0000668
WANDSWORTH COUNCIL,ASC,SOCIAL SERVICES,PRIVATE,EXTERNAL NURSING CARE,340736,130245310,30-Jan-14,"5,382.12",Revenue,HIGH HURLANDS HOMES,SP0000668
WANDSWORTH COUNCIL,ASC,SOCIAL SERVICES,PRIVATE,EXTERNAL NURSING CARE,326584,130245310,07-Jan-14,"2,787.60",Revenue,TRINITY COURT NURSING HOME,SP0001001
WANDSWORTH COUNCIL,ASC,SOCIAL SERVICES,PRIVATE,EXTERNAL NURSING CARE,324123,130245310,03-Jan-14,"3,439.98",Revenue,CARE UK COMMUNITY PARTNERSHIP,SP0001022
WANDSWORTH COUNCIL,ASC,SOCIAL SERVICES,PRIVATE,EXTERNAL RESIDENTIAL CARE,20264889,130245330,13-Jan-14,"1,525.49",Revenue,METROPOLITAN HOUSING TRUST,2004507
WANDSWORTH COUNCIL,ASC,SOCIAL SERVICES,PRIVATE,EXTERNAL RESIDENTIAL CARE,326492,130245330,07-Jan-14,"2,598.84",Revenue,THE LYLE PARK TRUST,SP0000070
WANDSWORTH COUNCIL,ASC,SOCIAL SERVICES,PRIVATE,EXTERNAL RESIDENTIAL CARE,324161,130245330,03-Jan-14,"5,632.12",Revenue,CMG HOMES LTD,SP0000075
WANDSWORTH COUNCIL,ASC,SOCIAL SERVICES,PRIVATE,EXTERNAL RESIDENTIAL CARE,324163,130245330,03-Jan-14,"3,911.48",Revenue,CMG HOMES LTD,SP0000075
WANDSWORTH COUNCIL,ASC,SOCIAL SERVICES,PRIVATE,EXTERNAL RESIDENTIAL CARE,324164,130245330,03-Jan-14,"6,007.12",Revenue,CMG HOMES LTD,SP0000075
WANDSWORTH COUNCIL,ASC,SOCIAL SERVICES,PRIVATE,EXTERNAL RESIDENTIAL CARE,324165,130245330,03-Jan-14,"5,553.00",Revenue,CMG HOMES LTD,SP0000075
WANDSWORTH COUNCIL,ASC,SOCIAL SERVICES,PRIVATE,EXTERNAL RESIDENTIAL CARE,324166,130245330,03-Jan-14,"3,862.12",Revenue,CMG HOMES LTD,SP0000075
WANDSWORTH COUNCIL,ASC,SOCIAL SERVICES,PRIVATE,EXTERNAL RESIDENTIAL CARE,324167,130245330,03-Jan-14,"8,061.00",Revenue,CMG HOMES LTD,SP0000075
WANDSWORTH COUNCIL,ASC,SOCIAL SERVICES,PRIVATE,EXTERNAL RESIDENTIAL CARE,324168,130245330,03-Jan-14,"4,866.36",Revenue,CMG HOMES LTD,SP0000075
WANDSWORTH COUNCIL,ASC,SOCIAL SERVICES,PRIVATE,EXTERNAL RESIDENTIAL CARE,324169,130245330,03-Jan-14,"4,646.00",Revenue,CMG HOMES LTD,SP0000075
WANDSWORTH COUNCIL,ASC,SOCIAL SERVICES,PRIVATE,EXTERNAL RESIDENTIAL CARE,324172,130245330,03-Jan-14,"7,123.64",Revenue,CMG HOMES LTD,SP0000075
WANDSWORTH COUNCIL,ASC,SOCIAL SERVICES,PRIVATE,EXTERNAL RESIDENTIAL CARE,324173,130245330,03-Jan-14,"4,415.60",Revenue,CMG HOMES LTD,SP0000075
WANDSWORTH COUNCIL,ASC,SOCIAL SERVICES,PRIVATE,EXTERNAL RESIDENTIAL CARE,324174,130245330,03-Jan-14,"4,082.28",Revenue,CMG HOMES LTD,SP0000075
WANDSWORTH COUNCIL,ASC,SOCIAL SERVICES,PRIVATE,EXTERNAL RESIDENTIAL CARE,324114,130245330,03-Jan-14,"3,449.37",Revenue,COUNTRY CARE,SP0000090
WANDSWORTH COUNCIL,ASC,SOCIAL SERVICES,PRIVATE,EXTERNAL RESIDENTIAL CARE,336078,130245330,23-Jan-14,"6,000.00",Revenue,NATIONAL SOCIETY FOR EPILEPSY,SP0000120
WANDSWORTH COUNCIL,ASC,SOCIAL SERVICES,PRIVATE,EXTERNAL RESIDENTIAL CARE,326370,130245330,07-Jan-14,"2,162.32",Revenue,SANCTUARY CARE LTD,SP0000121
WANDSWORTH COUNCIL,ASC,SOCIAL SERVICES,PRIVATE,EXTERNAL RESIDENTIAL CARE,324134,130245330,03-Jan-14,"5,016.69",Revenue,IN CHORUS LTD,SP0000129
WANDSWORTH COUNCIL,ASC,SOCIAL SERVICES,PRIVATE,EXTERNAL RESIDENTIAL CARE,337872,130245330,27-Jan-14,"5,016.68",Revenue,IN CHORUS LTD,SP0000129
WANDSWORTH COUNCIL,ASC,SOCIAL SERVICES,PRIVATE,EXTERNAL RESIDENTIAL CARE,324128,130245330,03-Jan-14,"3,975.09",Revenue,CENTRUST CARE HOMES LTD,SP0000141
WANDSWORTH COUNCIL,ASC,SOCIAL SERVICES,PRIVATE,EXTERNAL RESIDENTIAL CARE,337934,130245330,27-Jan-14,"3,975.09",Revenue,CENTRUST CARE HOMES LTD,SP0000141
WANDSWORTH COUNCIL,ASC,SOCIAL SERVICES,PRIVATE,EXTERNAL RESIDENTIAL CARE,324078,130245330,03-Jan-14,"4,343.45",Revenue,FRANCES TAYLOR FOUNDATION,SP0000142
WANDSWORTH COUNCIL,ASC,SOCIAL SERVICES,PRIVATE,EXTERNAL RESIDENTIAL CARE,324079,130245330,03-Jan-14,"4,191.15",Revenue,FRANCES TAYLOR FOUNDATION,SP0000142
WANDSWORTH COUNCIL,ASC,SOCIAL SERVICES,PRIVATE,EXTERNAL RESIDENTIAL CARE,324080,130245330,03-Jan-14,"4,259.13",Revenue,FRANCES TAYLOR FOUNDATION,SP0000142
WANDSWORTH COUNCIL,ASC,SOCIAL SERVICES,PRIVATE,EXTERNAL RESIDENTIAL CARE,324081,130245330,03-Jan-14,"4,835.91",Revenue,FRANCES TAYLOR FOUNDATION,SP0000142
WANDSWORTH COUNCIL,ASC,SOCIAL SERVICES,PRIVATE,EXTERNAL RESIDENTIAL CARE,337865,130245330,27-Jan-14,"4,343.46",Revenue,FRANCES TAYLOR FOUNDATION,SP0000142
WANDSWORTH COUNCIL,ASC,SOCIAL SERVICES,PRIVATE,EXTERNAL RESIDENTIAL CARE,337866,130245330,27-Jan-14,"4,191.16",Revenue,FRANCES TAYLOR FOUNDATION,SP0000142
WANDSWORTH COUNCIL,ASC,SOCIAL SERVICES,PRIVATE,EXTERNAL RESIDENTIAL CARE,337867,130245330,27-Jan-14,"4,835.92",Revenue,FRANCES TAYLOR FOUNDATION,SP0000142
WANDSWORTH COUNCIL,ASC,SOCIAL SERVICES,PRIVATE,EXTERNAL RESIDENTIAL CARE,341646,130245330,31-Jan-14,"4,259.13",Revenue,FRANCES TAYLOR FOUNDATION,SP0000142
WANDSWORTH COUNCIL,ASC,SOCIAL SERVICES,PRIVATE,EXTERNAL RESIDENTIAL CARE,324211,130245330,03-Jan-14,"4,453.15",Revenue,RESIDENTIAL CARE SERVICES T/A FRANKLYN L,SP0000147
WANDSWORTH COUNCIL,ASC,SOCIAL SERVICES,PRIVATE,EXTERNAL RESIDENTIAL CARE,341647,130245330,31-Jan-14,"4,453.16",Revenue,RESIDENTIAL CARE SERVICES T/A FRANKLYN L,SP0000147
WANDSWORTH COUNCIL,ASC,SOCIAL SERVICES,PRIVATE,EXTERNAL RESIDENTIAL CARE,340735,130245330,30-Jan-14,"10,060.78",Revenue,THE MAPLES,SP0000154
WANDSWORTH COUNCIL,ASC,SOCIAL SERVICES,PRIVATE,EXTERNAL RESIDENTIAL CARE,324160,130245330,03-Jan-14,"9,308.28",Revenue,TANGLEWOOD CARE HOME,SP0000167
WANDSWORTH COUNCIL,ASC,SOCIAL SERVICES,PRIVATE,EXTERNAL RESIDENTIAL CARE,326983,130245330,08-Jan-14,"4,292.56",Revenue,THE CHESTNUTS,SP0000182
WANDSWORTH COUNCIL,ASC,SOCIAL SERVICES,PRIVATE,EXTERNAL RESIDENTIAL CARE,330093,130245330,15-Jan-14,"4,593.96",Revenue,THE CHESTNUTS,SP0000182
WANDSWORTH COUNCIL,ASC,SOCIAL SERVICES,PRIVATE,EXTERNAL RESIDENTIAL CARE,330094,130245330,15-Jan-14,"5,555.16",Revenue,THE CHESTNUTS,SP0000182
WANDSWORTH COUNCIL,ASC,SOCIAL SERVICES,PRIVATE,EXTERNAL RESIDENTIAL CARE,336079,130245330,23-Jan-14,"14,535.90",Revenue,PARTNERSHIPS IN CARE LTD,SP0000211
WANDSWORTH COUNCIL,ASC,SOCIAL SERVICES,PRIVATE,EXTERNAL RESIDENTIAL CARE,326210,130245330,07-Jan-14,"1,647.40",Revenue,ORCHARD VALE TRUST,SP0000214
WANDSWORTH COUNCIL,ASC,SOCIAL SERVICES,PRIVATE,EXTERNAL RESIDENTIAL CARE,324154,130245330,03-Jan-14,"3,101.52",Revenue,ST MARYS RESIDENTIAL HOME,SP0000215
WANDSWORTH COUNCIL,ASC,SOCIAL SERVICES,PRIVATE,EXTERNAL RESIDENTIAL CARE,336062,130245330,23-Jan-14,"3,582.71",Revenue,ST MARYS RESIDENTIAL HOME,SP0000215
WANDSWORTH COUNCIL,ASC,SOCIAL SERVICES,PRIVATE,EXTERNAL RESIDENTIAL CARE,336233,130245330,23-Jan-14,693.43,Revenue,ST MARYS RESIDENTIAL HOME,SP0000215
WANDSWORTH COUNCIL,ASC,SOCIAL SERVICES,PRIVATE,EXTERNAL RESIDENTIAL CARE,337896,130245330,27-Jan-14,"3,582.71",Revenue,ST MARYS RESIDENTIAL HOME,SP0000215
WANDSWORTH COUNCIL,ASC,SOCIAL SERVICES,PRIVATE,EXTERNAL RESIDENTIAL CARE,324138,130245330,03-Jan-14,"5,204.56",Revenue,NAS SERVICES LIMITED,SP0000217
WANDSWORTH COUNCIL,ASC,SOCIAL SERVICES,PRIVATE,EXTERNAL RESIDENTIAL CARE,324139,130245330,03-Jan-14,"5,204.56",Revenue,NAS SERVICES LIMITED,SP0000217
WANDSWORTH COUNCIL,ASC,SOCIAL SERVICES,PRIVATE,EXTERNAL RESIDENTIAL CARE,330156,130245330,15-Jan-14,"6,408.72",Revenue,NAS SERVICES LIMITED,SP0000217
WANDSWORTH COUNCIL,ASC,SOCIAL SERVICES,PRIVATE,EXTERNAL RESIDENTIAL CARE,326227,130245330,07-Jan-14,"8,720.00",Revenue,SPRING LAKE,SP0000223
WANDSWORTH COUNCIL,ASC,SOCIAL SERVICES,PRIVATE,EXTERNAL RESIDENTIAL CARE,326228,130245330,07-Jan-14,"7,600.00",Revenue,SPRING LAKE,SP0000223
WANDSWORTH COUNCIL,ASC,SOCIAL SERVICES,PRIVATE,EXTERNAL RESIDENTIAL CARE,332148,130245330,17-Jan-14,"3,724.72",Revenue,HAYDON PARK LODGE LTD,SP0000231
WANDSWORTH COUNCIL,ASC,SOCIAL SERVICES,PRIVATE,EXTERNAL RESIDENTIAL CARE,324210,130245330,03-Jan-14,"7,595.00",Revenue,THE DISABILITIES TRUST,SP0000239
WANDSWORTH COUNCIL,ASC,SOCIAL SERVICES,PRIVATE,EXTERNAL RESIDENTIAL CARE,340737,130245330,30-Jan-14,"7,595.00",Revenue,THE DISABILITIES TRUST,SP0000239
WANDSWORTH COUNCIL,ASC,SOCIAL SERVICES,PRIVATE,EXTERNAL RESIDENTIAL CARE,332166,130245330,17-Jan-14,"4,689.36",Revenue,CAMERON LODGE LIMITED,SP0000271
WANDSWORTH COUNCIL,ASC,SOCIAL SERVICES,PRIVATE,EXTERNAL RESIDENTIAL CARE,336069,130245330,23-Jan-14,"8,046.75",Revenue,BROOKDALE CARE,SP0000282
WANDSWORTH COUNCIL,ASC,SOCIAL SERVICES,PRIVATE,EXTERNAL RESIDENTIAL CARE,333026,130245330,20-Jan-14,"3,029.72",Revenue,CRAEGMOOR FACILITIES CO LTD,SP0000306
WANDSWORTH COUNCIL,ASC,SOCIAL SERVICES,PRIVATE,EXTERNAL RESIDENTIAL CARE,333809,130245330,21-Jan-14,"2,067.04",Revenue,OXENDEN HOUSE CARE HOME,SP0000322
WANDSWORTH COUNCIL,ASC,SOCIAL SERVICES,PRIVATE,EXTERNAL RESIDENTIAL CARE,324158,130245330,03-Jan-14,"5,476.25",Revenue,DOLPHIN HOMES LTD,SP0000331
WANDSWORTH COUNCIL,ASC,SOCIAL SERVICES,PRIVATE,EXTERNAL RESIDENTIAL CARE,324159,130245330,03-Jan-14,"4,311.07",Revenue,DOLPHIN HOMES LTD,SP0000331
WANDSWORTH COUNCIL,ASC,SOCIAL SERVICES,PRIVATE,EXTERNAL RESIDENTIAL CARE,341650,130245330,31-Jan-14,"5,476.26",Revenue,DOLPHIN HOMES LTD,SP0000331
WANDSWORTH COUNCIL,ASC,SOCIAL SERVICES,PRIVATE,EXTERNAL RESIDENTIAL CARE,324143,130245330,03-Jan-14,"6,093.52",Revenue,NORWOOD SCHOOLS LTD,SP0000332
WANDSWORTH COUNCIL,ASC,SOCIAL SERVICES,PRIVATE,EXTERNAL RESIDENTIAL CARE,324144,130245330,03-Jan-14,"6,346.36",Revenue,NORWOOD SCHOOLS LTD,SP0000332
WANDSWORTH COUNCIL,ASC,SOCIAL SERVICES,PRIVATE,EXTERNAL RESIDENTIAL CARE,332163,130245330,17-Jan-14,"6,093.52",Revenue,NORWOOD SCHOOLS LTD,SP0000332
WANDSWORTH COUNCIL,ASC,SOCIAL SERVICES,PRIVATE,EXTERNAL RESIDENTIAL CARE,332164,130245330,17-Jan-14,"6,346.36",Revenue,NORWOOD SCHOOLS LTD,SP0000332
WANDSWORTH COUNCIL,ASC,SOCIAL SERVICES,PRIVATE,EXTERNAL RESIDENTIAL CARE,324137,130245330,03-Jan-14,"2,409.62",Revenue,THE MANOR,SP0000340
WANDSWORTH COUNCIL,ASC,SOCIAL SERVICES,PRIVATE,EXTERNAL RESIDENTIAL CARE,341649,130245330,31-Jan-14,"2,409.63",Revenue,THE MANOR,SP0000340
WANDSWORTH COUNCIL,ASC,SOCIAL SERVICES,PRIVATE,EXTERNAL RESIDENTIAL CARE,326981,130245330,08-Jan-14,"2,571.36",Revenue,HEYWOODS GRANGE LTD,SP0000361
WANDSWORTH COUNCIL,ASC,SOCIAL SERVICES,PRIVATE,EXTERNAL RESIDENTIAL CARE,326982,130245330,08-Jan-14,"3,107.14",Revenue,HEYWOODS GRANGE LTD,SP0000361
WANDSWORTH COUNCIL,ASC,SOCIAL SERVICES,PRIVATE,EXTERNAL RESIDENTIAL CARE,330085,130245330,15-Jan-14,"3,210.71",Revenue,HEYWOODS GRANGE LTD,SP0000361
WANDSWORTH COUNCIL,ASC,SOCIAL SERVICES,PRIVATE,EXTERNAL RESIDENTIAL CARE,340722,130245330,30-Jan-14,"2,571.37",Revenue,HEYWOODS GRANGE LTD,SP0000361
WANDSWORTH COUNCIL,ASC,SOCIAL SERVICES,PRIVATE,EXTERNAL RESIDENTIAL CARE,337855,130245330,27-Jan-14,"5,875.56",Revenue,VOYAGE CARE LTD,SP0000366
WANDSWORTH COUNCIL,ASC,SOCIAL SERVICES,PRIVATE,EXTERNAL RESIDENTIAL CARE,337856,130245330,27-Jan-14,"7,444.36",Revenue,VOYAGE CARE LTD,SP0000366
WANDSWORTH COUNCIL,ASC,SOCIAL SERVICES,PRIVATE,EXTERNAL RESIDENTIAL CARE,337863,130245330,27-Jan-14,"6,445.92",Revenue,VOYAGE CARE LTD,SP0000366
WANDSWORTH COUNCIL,ASC,SOCIAL SERVICES,PRIVATE,EXTERNAL RESIDENTIAL CARE,337864,130245330,27-Jan-14,"7,766.72",Revenue,VOYAGE CARE LTD,SP0000366
WANDSWORTH COUNCIL,ASC,SOCIAL SERVICES,PRIVATE,EXTERNAL RESIDENTIAL CARE,330131,130245330,15-Jan-14,"2,176.79",Revenue,ST DAVIDS CARE IN THE COMMUNITY,SP0000379
WANDSWORTH COUNCIL,ASC,SOCIAL SERVICES,PRIVATE,EXTERNAL RESIDENTIAL CARE,330132,130245330,15-Jan-14,"2,178.12",Revenue,ST DAVIDS CARE IN THE COMMUNITY,SP0000379
WANDSWORTH COUNCIL,ASC,SOCIAL SERVICES,PRIVATE,EXTERNAL RESIDENTIAL CARE,324127,130245330,03-Jan-14,"5,646.25",Revenue,ESSEX CARE CONSORTIUM,SP0000387
WANDSWORTH COUNCIL,ASC,SOCIAL SERVICES,PRIVATE,EXTERNAL RESIDENTIAL CARE,340726,130245330,30-Jan-14,"5,646.26",Revenue,ESSEX CARE CONSORTIUM,SP0000387
WANDSWORTH COUNCIL,ASC,SOCIAL SERVICES,PRIVATE,EXTERNAL RESIDENTIAL CARE,324240,130245330,03-Jan-14,"3,135.60",Revenue,POTENSIAL LTD,SP0000395
WANDSWORTH COUNCIL,ASC,SOCIAL SERVICES,PRIVATE,EXTERNAL RESIDENTIAL CARE,336076,130245330,23-Jan-14,"3,135.60",Revenue,POTENSIAL LTD,SP0000395
WANDSWORTH COUNCIL,ASC,SOCIAL SERVICES,PRIVATE,EXTERNAL RESIDENTIAL CARE,332151,130245330,17-Jan-14,"3,976.74",Revenue,KENILWORTH RESIDENTIAL HOME,SP0000432
WANDSWORTH COUNCIL,ASC,SOCIAL SERVICES,PRIVATE,EXTERNAL RESIDENTIAL CARE,332152,130245330,17-Jan-14,"4,150.04",Revenue,KENILWORTH RESIDENTIAL HOME,SP0000432
WANDSWORTH COUNCIL,ASC,SOCIAL SERVICES,PRIVATE,EXTERNAL RESIDENTIAL CARE,337862,130245330,27-Jan-14,"4,654.16",Revenue,THE WELL HOUSE,SP0000448
WANDSWORTH COUNCIL,ASC,SOCIAL SERVICES,PRIVATE,EXTERNAL RESIDENTIAL CARE,337906,130245330,27-Jan-14,"4,403.49",Revenue,THE WELL HOUSE,SP0000448
WANDSWORTH COUNCIL,ASC,SOCIAL SERVICES,PRIVATE,EXTERNAL RESIDENTIAL CARE,330138,130245330,15-Jan-14,"5,210.48",Revenue,MACINTYRE CARE,SP0000473
WANDSWORTH COUNCIL,ASC,SOCIAL SERVICES,PRIVATE,EXTERNAL RESIDENTIAL CARE,330139,130245330,15-Jan-14,"3,759.64",Revenue,MACINTYRE CARE,SP0000473
WANDSWORTH COUNCIL,ASC,SOCIAL SERVICES,PRIVATE,EXTERNAL RESIDENTIAL CARE,330140,130245330,15-Jan-14,"5,429.64",Revenue,MACINTYRE CARE,SP0000473
WANDSWORTH COUNCIL,ASC,SOCIAL SERVICES,PRIVATE,EXTERNAL RESIDENTIAL CARE,330141,130245330,15-Jan-14,"3,759.64",Revenue,MACINTYRE CARE,SP0000473
WANDSWORTH COUNCIL,ASC,SOCIAL SERVICES,PRIVATE,EXTERNAL RESIDENTIAL CARE,330142,130245330,15-Jan-14,"5,192.48",Revenue,MACINTYRE CARE,SP0000473
WANDSWORTH COUNCIL,ASC,SOCIAL SERVICES,PRIVATE,EXTERNAL RESIDENTIAL CARE,330143,130245330,15-Jan-14,"5,097.20",Revenue,MACINTYRE CARE,SP0000473
WANDSWORTH COUNCIL,ASC,SOCIAL SERVICES,PRIVATE,EXTERNAL RESIDENTIAL CARE,330144,130245330,15-Jan-14,"3,750.72",Revenue,MACINTYRE CARE,SP0000473
WANDSWORTH COUNCIL,ASC,SOCIAL SERVICES,PRIVATE,EXTERNAL RESIDENTIAL CARE,330145,130245330,15-Jan-14,"3,813.84",Revenue,MACINTYRE CARE,SP0000473
WANDSWORTH COUNCIL,ASC,SOCIAL SERVICES,PRIVATE,EXTERNAL RESIDENTIAL CARE,330146,130245330,15-Jan-14,"4,998.84",Revenue,MACINTYRE CARE,SP0000473
WANDSWORTH COUNCIL,ASC,SOCIAL SERVICES,PRIVATE,EXTERNAL RESIDENTIAL CARE,330147,130245330,15-Jan-14,"2,301.48",Revenue,MACINTYRE CARE,SP0000473
WANDSWORTH COUNCIL,ASC,SOCIAL SERVICES,PRIVATE,EXTERNAL RESIDENTIAL CARE,330152,130245330,15-Jan-14,"8,008.98",Revenue,MACINTYRE CARE,SP0000473
WANDSWORTH COUNCIL,ASC,SOCIAL SERVICES,PRIVATE,EXTERNAL RESIDENTIAL CARE,330153,130245330,15-Jan-14,"5,030.56",Revenue,MACINTYRE CARE,SP0000473
WANDSWORTH COUNCIL,ASC,SOCIAL SERVICES,PRIVATE,EXTERNAL RESIDENTIAL CARE,330154,130245330,15-Jan-14,"5,429.76",Revenue,MACINTYRE CARE,SP0000473
WANDSWORTH COUNCIL,ASC,SOCIAL SERVICES,PRIVATE,EXTERNAL RESIDENTIAL CARE,330160,130245330,15-Jan-14,"4,909.16",Revenue,MACINTYRE CARE,SP0000473
WANDSWORTH COUNCIL,ASC,SOCIAL SERVICES,PRIVATE,EXTERNAL RESIDENTIAL CARE,330161,130245330,15-Jan-14,"4,907.76",Revenue,MACINTYRE CARE,SP0000473
WANDSWORTH COUNCIL,ASC,SOCIAL SERVICES,PRIVATE,EXTERNAL RESIDENTIAL CARE,330162,130245330,15-Jan-14,"4,907.76",Revenue,MACINTYRE CARE,SP0000473
WANDSWORTH COUNCIL,ASC,SOCIAL SERVICES,PRIVATE,EXTERNAL RESIDENTIAL CARE,330163,130245330,15-Jan-14,"4,907.76",Revenue,MACINTYRE CARE,SP0000473
WANDSWORTH COUNCIL,ASC,SOCIAL SERVICES,PRIVATE,EXTERNAL RESIDENTIAL CARE,330164,130245330,15-Jan-14,"5,030.56",Revenue,MACINTYRE CARE,SP0000473
WANDSWORTH COUNCIL,ASC,SOCIAL SERVICES,PRIVATE,EXTERNAL RESIDENTIAL CARE,330165,130245330,15-Jan-14,"4,907.76",Revenue,MACINTYRE CARE,SP0000473
WANDSWORTH COUNCIL,ASC,SOCIAL SERVICES,PRIVATE,EXTERNAL RESIDENTIAL CARE,337859,130245330,27-Jan-14,"8,982.39",Revenue,SURREY & BORDERS PARTNERSHIP NHS TRUST,SP0000501
WANDSWORTH COUNCIL,ASC,SOCIAL SERVICES,PRIVATE,EXTERNAL RESIDENTIAL CARE,337860,130245330,27-Jan-14,"5,622.80",Revenue,SURREY & BORDERS PARTNERSHIP NHS TRUST,SP0000501
WANDSWORTH COUNCIL,ASC,SOCIAL SERVICES,PRIVATE,EXTERNAL RESIDENTIAL CARE,324213,130245330,03-Jan-14,"7,717.76",Revenue,LORING HALL LIMITED,SP0000511
WANDSWORTH COUNCIL,ASC,SOCIAL SERVICES,PRIVATE,EXTERNAL RESIDENTIAL CARE,333806,130245330,21-Jan-14,"7,717.76",Revenue,LORING HALL LIMITED,SP0000511
WANDSWORTH COUNCIL,ASC,SOCIAL SERVICES,PRIVATE,EXTERNAL RESIDENTIAL CARE,340744,130245330,30-Jan-14,"7,717.76",Revenue,LORING HALL LIMITED,SP0000511
WANDSWORTH COUNCIL,ASC,SOCIAL SERVICES,PRIVATE,EXTERNAL RESIDENTIAL CARE,328692,130245330,09-Jan-14,"7,529.94",Revenue,SEEABILITY,SP0000572
WANDSWORTH COUNCIL,ASC,SOCIAL SERVICES,PRIVATE,EXTERNAL RESIDENTIAL CARE,324109,130245330,03-Jan-14,"9,564.12",Revenue,THE COMMUNITY CARE COMPANY UK LTD,SP0000576
WANDSWORTH COUNCIL,ASC,SOCIAL SERVICES,PRIVATE,EXTERNAL RESIDENTIAL CARE,324110,130245330,03-Jan-14,"7,051.53",Revenue,THE COMMUNITY CARE COMPANY UK LTD,SP0000576
WANDSWORTH COUNCIL,ASC,SOCIAL SERVICES,PRIVATE,EXTERNAL RESIDENTIAL CARE,324111,130245330,03-Jan-14,"5,943.28",Revenue,THE COMMUNITY CARE COMPANY UK LTD,SP0000576
WANDSWORTH COUNCIL,ASC,SOCIAL SERVICES,PRIVATE,EXTERNAL RESIDENTIAL CARE,324120,130245330,03-Jan-14,"7,131.86",Revenue,THE COMMUNITY CARE COMPANY UK LTD,SP0000576
WANDSWORTH COUNCIL,ASC,SOCIAL SERVICES,PRIVATE,EXTERNAL RESIDENTIAL CARE,324122,130245330,03-Jan-14,"6,127.37",Revenue,THE COMMUNITY CARE COMPANY UK LTD,SP0000576
WANDSWORTH COUNCIL,ASC,SOCIAL SERVICES,PRIVATE,EXTERNAL RESIDENTIAL CARE,340708,130245330,30-Jan-14,"9,564.11",Revenue,THE COMMUNITY CARE COMPANY UK LTD,SP0000576
WANDSWORTH COUNCIL,ASC,SOCIAL SERVICES,PRIVATE,EXTERNAL RESIDENTIAL CARE,340709,130245330,30-Jan-14,"7,051.54",Revenue,THE COMMUNITY CARE COMPANY UK LTD,SP0000576
WANDSWORTH COUNCIL,ASC,SOCIAL SERVICES,PRIVATE,EXTERNAL RESIDENTIAL CARE,340710,130245330,30-Jan-14,"5,943.29",Revenue,THE COMMUNITY CARE COMPANY UK LTD,SP0000576
WANDSWORTH COUNCIL,ASC,SOCIAL SERVICES,PRIVATE,EXTERNAL RESIDENTIAL CARE,340721,130245330,30-Jan-14,"7,131.87",Revenue,THE COMMUNITY CARE COMPANY UK LTD,SP0000576
WANDSWORTH COUNCIL,ASC,SOCIAL SERVICES,PRIVATE,EXTERNAL RESIDENTIAL CARE,340724,130245330,30-Jan-14,"6,127.38",Revenue,THE COMMUNITY CARE COMPANY UK LTD,SP0000576
WANDSWORTH COUNCIL,ASC,SOCIAL SERVICES,PRIVATE,EXTERNAL RESIDENTIAL CARE,324212,130245330,03-Jan-14,"6,543.30",Revenue,BIRCC,SP0000584
WANDSWORTH COUNCIL,ASC,SOCIAL SERVICES,PRIVATE,EXTERNAL RESIDENTIAL CARE,340743,130245330,30-Jan-14,"6,543.31",Revenue,BIRCC,SP0000584
WANDSWORTH COUNCIL,ASC,SOCIAL SERVICES,PRIVATE,EXTERNAL RESIDENTIAL CARE,333816,130245330,21-Jan-14,"6,153.04",Revenue,THE REGARD PARTNERSHIP,SP0000588
WANDSWORTH COUNCIL,ASC,SOCIAL SERVICES,PRIVATE,EXTERNAL RESIDENTIAL CARE,330155,130245330,15-Jan-14,"10,118.48",Revenue,EVERGREEN PARTNERSHIP,SP0000597
WANDSWORTH COUNCIL,ASC,SOCIAL SERVICES,PRIVATE,EXTERNAL RESIDENTIAL CARE,330086,130245330,15-Jan-14,"4,792.20",Revenue,LAETUS LODGE,SP0000600
WANDSWORTH COUNCIL,ASC,SOCIAL SERVICES,PRIVATE,EXTERNAL RESIDENTIAL CARE,330087,130245330,15-Jan-14,"6,096.48",Revenue,LAETUS LODGE,SP0000600
WANDSWORTH COUNCIL,ASC,SOCIAL SERVICES,PRIVATE,EXTERNAL RESIDENTIAL CARE,330088,130245330,15-Jan-14,"6,193.48",Revenue,LAETUS LODGE,SP0000600
WANDSWORTH COUNCIL,ASC,SOCIAL SERVICES,PRIVATE,EXTERNAL RESIDENTIAL CARE,330089,130245330,15-Jan-14,"3,759.76",Revenue,LAETUS LODGE,SP0000600
WANDSWORTH COUNCIL,ASC,SOCIAL SERVICES,PRIVATE,EXTERNAL RESIDENTIAL CARE,330090,130245330,15-Jan-14,"3,669.12",Revenue,LAETUS LODGE,SP0000600
WANDSWORTH COUNCIL,ASC,SOCIAL SERVICES,PRIVATE,EXTERNAL RESIDENTIAL CARE,330091,130245330,15-Jan-14,"3,759.76",Revenue,LAETUS LODGE,SP0000600
WANDSWORTH COUNCIL,ASC,SOCIAL SERVICES,PRIVATE,EXTERNAL RESIDENTIAL CARE,330092,130245330,15-Jan-14,"5,240.56",Revenue,LAETUS LODGE,SP0000600
WANDSWORTH COUNCIL,ASC,SOCIAL SERVICES,PRIVATE,EXTERNAL RESIDENTIAL CARE,333031,130245330,20-Jan-14,"3,759.76",Revenue,LAETUS LODGE,SP0000600
WANDSWORTH COUNCIL,ASC,SOCIAL SERVICES,PRIVATE,EXTERNAL RESIDENTIAL CARE,333032,130245330,20-Jan-14,"3,759.76",Revenue,LAETUS LODGE,SP0000600
WANDSWORTH COUNCIL,ASC,SOCIAL SERVICES,PRIVATE,EXTERNAL RESIDENTIAL CARE,333033,130245330,20-Jan-14,"3,759.76",Revenue,LAETUS LODGE,SP0000600
WANDSWORTH COUNCIL,ASC,SOCIAL SERVICES,PRIVATE,EXTERNAL RESIDENTIAL CARE,324175,130245330,03-Jan-14,"3,454.37",Revenue,MENCAP,SP0000604
WANDSWORTH COUNCIL,ASC,SOCIAL SERVICES,PRIVATE,EXTERNAL RESIDENTIAL CARE,324176,130245330,03-Jan-14,"3,454.37",Revenue,MENCAP,SP0000604
WANDSWORTH COUNCIL,ASC,SOCIAL SERVICES,PRIVATE,EXTERNAL RESIDENTIAL CARE,324188,130245330,03-Jan-14,"2,391.83",Revenue,MENCAP,SP0000604
WANDSWORTH COUNCIL,ASC,SOCIAL SERVICES,PRIVATE,EXTERNAL RESIDENTIAL CARE,336503,130245330,24-Jan-14,"3,454.38",Revenue,MENCAP,SP0000604
WANDSWORTH COUNCIL,ASC,SOCIAL SERVICES,PRIVATE,EXTERNAL RESIDENTIAL CARE,336504,130245330,24-Jan-14,"3,454.38",Revenue,MENCAP,SP0000604
WANDSWORTH COUNCIL,ASC,SOCIAL SERVICES,PRIVATE,EXTERNAL RESIDENTIAL CARE,336517,130245330,24-Jan-14,"2,391.84",Revenue,MENCAP,SP0000604
WANDSWORTH COUNCIL,ASC,SOCIAL SERVICES,PRIVATE,EXTERNAL RESIDENTIAL CARE,330148,130245330,15-Jan-14,"8,243.74",Revenue,HEALTHLINC INDIVIDUAL CARE,SP0000617
WANDSWORTH COUNCIL,ASC,SOCIAL SERVICES,PRIVATE,EXTERNAL RESIDENTIAL CARE,330105,130245330,15-Jan-14,"4,756.88",Revenue,METROPOLITAN HOUSING TRUST,SP0000626
WANDSWORTH COUNCIL,ASC,SOCIAL SERVICES,PRIVATE,EXTERNAL RESIDENTIAL CARE,330106,130245330,15-Jan-14,"4,756.88",Revenue,METROPOLITAN HOUSING TRUST,SP0000626
WANDSWORTH COUNCIL,ASC,SOCIAL SERVICES,PRIVATE,EXTERNAL RESIDENTIAL CARE,330107,130245330,15-Jan-14,"4,756.88",Revenue,METROPOLITAN HOUSING TRUST,SP0000626
WANDSWORTH COUNCIL,ASC,SOCIAL SERVICES,PRIVATE,EXTERNAL RESIDENTIAL CARE,330108,130245330,15-Jan-14,"4,709.79",Revenue,METROPOLITAN HOUSING TRUST,SP0000626
WANDSWORTH COUNCIL,ASC,SOCIAL SERVICES,PRIVATE,EXTERNAL RESIDENTIAL CARE,330109,130245330,15-Jan-14,"4,430.84",Revenue,METROPOLITAN HOUSING TRUST,SP0000626
WANDSWORTH COUNCIL,ASC,SOCIAL SERVICES,PRIVATE,EXTERNAL RESIDENTIAL CARE,330111,130245330,15-Jan-14,"4,718.99",Revenue,METROPOLITAN HOUSING TRUST,SP0000626
WANDSWORTH COUNCIL,ASC,SOCIAL SERVICES,PRIVATE,EXTERNAL RESIDENTIAL CARE,330112,130245330,15-Jan-14,"4,709.79",Revenue,METROPOLITAN HOUSING TRUST,SP0000626
WANDSWORTH COUNCIL,ASC,SOCIAL SERVICES,PRIVATE,EXTERNAL RESIDENTIAL CARE,330113,130245330,15-Jan-14,"4,713.59",Revenue,METROPOLITAN HOUSING TRUST,SP0000626
WANDSWORTH COUNCIL,ASC,SOCIAL SERVICES,PRIVATE,EXTERNAL RESIDENTIAL CARE,330114,130245330,15-Jan-14,"4,713.59",Revenue,METROPOLITAN HOUSING TRUST,SP0000626
WANDSWORTH COUNCIL,ASC,SOCIAL SERVICES,PRIVATE,EXTERNAL RESIDENTIAL CARE,330179,130245330,15-Jan-14,"3,542.48",Revenue,METROPOLITAN HOUSING TRUST,SP0000626
WANDSWORTH COUNCIL,ASC,SOCIAL SERVICES,PRIVATE,EXTERNAL RESIDENTIAL CARE,330180,130245330,15-Jan-14,"3,659.52",Revenue,METROPOLITAN HOUSING TRUST,SP0000626
WANDSWORTH COUNCIL,ASC,SOCIAL SERVICES,PRIVATE,EXTERNAL RESIDENTIAL CARE,330181,130245330,15-Jan-14,"3,659.52",Revenue,METROPOLITAN HOUSING TRUST,SP0000626
WANDSWORTH COUNCIL,ASC,SOCIAL SERVICES,PRIVATE,EXTERNAL RESIDENTIAL CARE,330182,130245330,15-Jan-14,"3,659.68",Revenue,METROPOLITAN HOUSING TRUST,SP0000626
WANDSWORTH COUNCIL,ASC,SOCIAL SERVICES,PRIVATE,EXTERNAL RESIDENTIAL CARE,330183,130245330,15-Jan-14,"3,659.52",Revenue,METROPOLITAN HOUSING TRUST,SP0000626
WANDSWORTH COUNCIL,ASC,SOCIAL SERVICES,PRIVATE,EXTERNAL RESIDENTIAL CARE,330184,130245330,15-Jan-14,"3,659.52",Revenue,METROPOLITAN HOUSING TRUST,SP0000626
WANDSWORTH COUNCIL,ASC,SOCIAL SERVICES,PRIVATE,EXTERNAL RESIDENTIAL CARE,330185,130245330,15-Jan-14,"3,496.84",Revenue,METROPOLITAN HOUSING TRUST,SP0000626
WANDSWORTH COUNCIL,ASC,SOCIAL SERVICES,PRIVATE,EXTERNAL RESIDENTIAL CARE,333059,130245330,20-Jan-14,"2,199.79",Revenue,METROPOLITAN HOUSING TRUST,SP0000626
WANDSWORTH COUNCIL,ASC,SOCIAL SERVICES,PRIVATE,EXTERNAL RESIDENTIAL CARE,324108,130245330,03-Jan-14,"6,234.50",Revenue,SUSSEX AUTISTIC COMMUNITY TRUST(CARE SER,SP0000652
WANDSWORTH COUNCIL,ASC,SOCIAL SERVICES,PRIVATE,EXTERNAL RESIDENTIAL CARE,333057,130245330,20-Jan-14,"2,395.60",Revenue,LIVABILITY,SP0000669
WANDSWORTH COUNCIL,ASC,SOCIAL SERVICES,PRIVATE,EXTERNAL RESIDENTIAL CARE,333058,130245330,20-Jan-14,"2,395.60",Revenue,LIVABILITY,SP0000669
WANDSWORTH COUNCIL,ASC,SOCIAL SERVICES,PRIVATE,EXTERNAL RESIDENTIAL CARE,324184,130245330,03-Jan-14,"11,322.96",Revenue,LOVING CARE LTD,SP0000670
WANDSWORTH COUNCIL,ASC,SOCIAL SERVICES,PRIVATE,EXTERNAL RESIDENTIAL CARE,324185,130245330,03-Jan-14,"11,282.12",Revenue,LOVING CARE LTD,SP0000670
WANDSWORTH COUNCIL,ASC,SOCIAL SERVICES,PRIVATE,EXTERNAL RESIDENTIAL CARE,324186,130245330,03-Jan-14,"11,475.84",Revenue,LOVING CARE LTD,SP0000670
WANDSWORTH COUNCIL,ASC,SOCIAL SERVICES,PRIVATE,EXTERNAL RESIDENTIAL CARE,324187,130245330,03-Jan-14,"11,017.24",Revenue,LOVING CARE LTD,SP0000670
WANDSWORTH COUNCIL,ASC,SOCIAL SERVICES,PRIVATE,EXTERNAL RESIDENTIAL CARE,324190,130245330,03-Jan-14,"11,475.88",Revenue,LOVING CARE LTD,SP0000670
WANDSWORTH COUNCIL,ASC,SOCIAL SERVICES,PRIVATE,EXTERNAL RESIDENTIAL CARE,324191,130245330,03-Jan-14,"11,475.88",Revenue,LOVING CARE LTD,SP0000670
WANDSWORTH COUNCIL,ASC,SOCIAL SERVICES,PRIVATE,EXTERNAL RESIDENTIAL CARE,326222,130245330,07-Jan-14,"11,322.96",Revenue,LOVING CARE LTD,SP0000670
WANDSWORTH COUNCIL,ASC,SOCIAL SERVICES,PRIVATE,EXTERNAL RESIDENTIAL CARE,326223,130245330,07-Jan-14,"11,282.12",Revenue,LOVING CARE LTD,SP0000670
WANDSWORTH COUNCIL,ASC,SOCIAL SERVICES,PRIVATE,EXTERNAL RESIDENTIAL CARE,326224,130245330,07-Jan-14,"11,475.84",Revenue,LOVING CARE LTD,SP0000670
WANDSWORTH COUNCIL,ASC,SOCIAL SERVICES,PRIVATE,EXTERNAL RESIDENTIAL CARE,326225,130245330,07-Jan-14,"11,017.24",Revenue,LOVING CARE LTD,SP0000670
WANDSWORTH COUNCIL,ASC,SOCIAL SERVICES,PRIVATE,EXTERNAL RESIDENTIAL CARE,326229,130245330,07-Jan-14,"11,475.88",Revenue,LOVING CARE LTD,SP0000670
WANDSWORTH COUNCIL,ASC,SOCIAL SERVICES,PRIVATE,EXTERNAL RESIDENTIAL CARE,326230,130245330,07-Jan-14,"11,170.12",Revenue,LOVING CARE LTD,SP0000670
WANDSWORTH COUNCIL,ASC,SOCIAL SERVICES,PRIVATE,EXTERNAL RESIDENTIAL CARE,326231,130245330,07-Jan-14,"11,475.88",Revenue,LOVING CARE LTD,SP0000670
WANDSWORTH COUNCIL,ASC,SOCIAL SERVICES,PRIVATE,EXTERNAL RESIDENTIAL CARE,336058,130245330,23-Jan-14,"11,322.96",Revenue,LOVING CARE LTD,SP0000670
WANDSWORTH COUNCIL,ASC,SOCIAL SERVICES,PRIVATE,EXTERNAL RESIDENTIAL CARE,336059,130245330,23-Jan-14,"11,282.12",Revenue,LOVING CARE LTD,SP0000670
WANDSWORTH COUNCIL,ASC,SOCIAL SERVICES,PRIVATE,EXTERNAL RESIDENTIAL CARE,336060,130245330,23-Jan-14,"11,475.84",Revenue,LOVING CARE LTD,SP0000670
WANDSWORTH COUNCIL,ASC,SOCIAL SERVICES,PRIVATE,EXTERNAL RESIDENTIAL CARE,336061,130245330,23-Jan-14,"11,017.24",Revenue,LOVING CARE LTD,SP0000670
WANDSWORTH COUNCIL,ASC,SOCIAL SERVICES,PRIVATE,EXTERNAL RESIDENTIAL CARE,336522,130245330,24-Jan-14,"11,475.89",Revenue,LOVING CARE LTD,SP0000670
WANDSWORTH COUNCIL,ASC,SOCIAL SERVICES,PRIVATE,EXTERNAL RESIDENTIAL CARE,336523,130245330,24-Jan-14,"11,170.12",Revenue,LOVING CARE LTD,SP0000670
WANDSWORTH COUNCIL,ASC,SOCIAL SERVICES,PRIVATE,EXTERNAL RESIDENTIAL CARE,336524,130245330,24-Jan-14,"11,475.88",Revenue,LOVING CARE LTD,SP0000670
WANDSWORTH COUNCIL,ASC,SOCIAL SERVICES,PRIVATE,EXTERNAL RESIDENTIAL CARE,340752,130245330,30-Jan-14,"11,170.12",Revenue,LOVING CARE LTD,SP0000670
WANDSWORTH COUNCIL,ASC,SOCIAL SERVICES,PRIVATE,EXTERNAL RESIDENTIAL CARE,326970,130245330,08-Jan-14,"2,457.40",Revenue,COTTAGE & RURAL ENTERPRISES LTD,SP0000693
WANDSWORTH COUNCIL,ASC,SOCIAL SERVICES,PRIVATE,EXTERNAL RESIDENTIAL CARE,326971,130245330,08-Jan-14,"2,307.00",Revenue,COTTAGE & RURAL ENTERPRISES LTD,SP0000693
WANDSWORTH COUNCIL,ASC,SOCIAL SERVICES,PRIVATE,EXTERNAL RESIDENTIAL CARE,326972,130245330,08-Jan-14,"2,743.88",Revenue,COTTAGE & RURAL ENTERPRISES LTD,SP0000693
WANDSWORTH COUNCIL,ASC,SOCIAL SERVICES,PRIVATE,EXTERNAL RESIDENTIAL CARE,324136,130245330,03-Jan-14,"3,099.03",Revenue,THE MANOR HOUSE,SP0000728
WANDSWORTH COUNCIL,ASC,SOCIAL SERVICES,PRIVATE,EXTERNAL RESIDENTIAL CARE,330116,130245330,15-Jan-14,"3,099.04",Revenue,THE MANOR HOUSE,SP0000728
WANDSWORTH COUNCIL,ASC,SOCIAL SERVICES,PRIVATE,EXTERNAL RESIDENTIAL CARE,330117,130245330,15-Jan-14,"2,999.06",Revenue,THE MANOR HOUSE,SP0000728
WANDSWORTH COUNCIL,ASC,SOCIAL SERVICES,PRIVATE,EXTERNAL RESIDENTIAL CARE,336514,130245330,24-Jan-14,"3,099.04",Revenue,THE MANOR HOUSE,SP0000728
WANDSWORTH COUNCIL,ASC,SOCIAL SERVICES,PRIVATE,EXTERNAL RESIDENTIAL CARE,336056,130245330,23-Jan-14,"4,831.44",Revenue,WHITE ROSE CARE,SP0000780
WANDSWORTH COUNCIL,ASC,SOCIAL SERVICES,PRIVATE,EXTERNAL RESIDENTIAL CARE,340749,130245330,30-Jan-14,"4,831.44",Revenue,WHITE ROSE CARE,SP0000780
WANDSWORTH COUNCIL,ASC,SOCIAL SERVICES,PRIVATE,EXTERNAL RESIDENTIAL CARE,330130,130245330,15-Jan-14,"3,806.64",Revenue,GLENCARE GROUP,SP0000791
WANDSWORTH COUNCIL,ASC,SOCIAL SERVICES,PRIVATE,EXTERNAL RESIDENTIAL CARE,333820,130245330,21-Jan-14,"3,806.64",Revenue,GLENCARE GROUP,SP0000791
WANDSWORTH COUNCIL,ASC,SOCIAL SERVICES,PRIVATE,EXTERNAL RESIDENTIAL CARE,330083,130245330,15-Jan-14,"2,267.32",Revenue,FREEWAYS TRUST LTD,SP0000793
WANDSWORTH COUNCIL,ASC,SOCIAL SERVICES,PRIVATE,EXTERNAL RESIDENTIAL CARE,326968,130245330,08-Jan-14,"3,140.56",Revenue,UNITED RESPONSE,SP0000797
WANDSWORTH COUNCIL,ASC,SOCIAL SERVICES,PRIVATE,EXTERNAL RESIDENTIAL CARE,340750,130245330,30-Jan-14,"3,488.84",Revenue,PROSPECTS,SP0000800
WANDSWORTH COUNCIL,ASC,SOCIAL SERVICES,PRIVATE,EXTERNAL RESIDENTIAL CARE,324106,130245330,03-Jan-14,"6,281.13",Revenue,WESSEX AUTISTIC SOCIETY,SP0000805
WANDSWORTH COUNCIL,ASC,SOCIAL SERVICES,PRIVATE,EXTERNAL RESIDENTIAL CARE,338817,130245330,28-Jan-14,"6,281.14",Revenue,WESSEX AUTISTIC SOCIETY,SP0000805
WANDSWORTH COUNCIL,ASC,SOCIAL SERVICES,PRIVATE,EXTERNAL RESIDENTIAL CARE,324222,130245330,03-Jan-14,"3,970.39",Revenue,BEECH LODGE,SP0000807
WANDSWORTH COUNCIL,ASC,SOCIAL SERVICES,PRIVATE,EXTERNAL RESIDENTIAL CARE,324223,130245330,03-Jan-14,"3,970.39",Revenue,BEECH LODGE,SP0000807
WANDSWORTH COUNCIL,ASC,SOCIAL SERVICES,PRIVATE,EXTERNAL RESIDENTIAL CARE,324224,130245330,03-Jan-14,"3,970.39",Revenue,BEECH LODGE,SP0000807
WANDSWORTH COUNCIL,ASC,SOCIAL SERVICES,PRIVATE,EXTERNAL RESIDENTIAL CARE,337868,130245330,27-Jan-14,"8,051.15",Revenue,FIRCROFT,SP0000840
WANDSWORTH COUNCIL,ASC,SOCIAL SERVICES,PRIVATE,EXTERNAL RESIDENTIAL CARE,332158,130245330,17-Jan-14,"5,840.68",Revenue,ROYAL MENCAP SOCIETY,SP0000842
WANDSWORTH COUNCIL,ASC,SOCIAL SERVICES,PRIVATE,EXTERNAL RESIDENTIAL CARE,332159,130245330,17-Jan-14,"7,363.12",Revenue,ROYAL MENCAP SOCIETY,SP0000842
WANDSWORTH COUNCIL,ASC,SOCIAL SERVICES,PRIVATE,EXTERNAL RESIDENTIAL CARE,332160,130245330,17-Jan-14,"4,197.68",Revenue,ROYAL MENCAP SOCIETY,SP0000842
WANDSWORTH COUNCIL,ASC,SOCIAL SERVICES,PRIVATE,EXTERNAL RESIDENTIAL CARE,324152,130245330,03-Jan-14,"2,592.44",Revenue,SCOPE,SP0000852
WANDSWORTH COUNCIL,ASC,SOCIAL SERVICES,PRIVATE,EXTERNAL RESIDENTIAL CARE,324153,130245330,03-Jan-14,"2,767.09",Revenue,SCOPE,SP0000852
WANDSWORTH COUNCIL,ASC,SOCIAL SERVICES,PRIVATE,EXTERNAL RESIDENTIAL CARE,337894,130245330,27-Jan-14,"2,592.45",Revenue,SCOPE,SP0000852
WANDSWORTH COUNCIL,ASC,SOCIAL SERVICES,PRIVATE,EXTERNAL RESIDENTIAL CARE,337895,130245330,27-Jan-14,"2,767.08",Revenue,SCOPE,SP0000852
WANDSWORTH COUNCIL,ASC,SOCIAL SERVICES,PRIVATE,EXTERNAL RESIDENTIAL CARE,324105,130245330,03-Jan-14,"11,311.23",Revenue,ASHCROFT CARE SERVICES,SP0000872
WANDSWORTH COUNCIL,ASC,SOCIAL SERVICES,PRIVATE,EXTERNAL RESIDENTIAL CARE,324200,130245330,03-Jan-14,"4,428.66",Revenue,229 MITCHAM LANE LTD,SP0000884
WANDSWORTH COUNCIL,ASC,SOCIAL SERVICES,PRIVATE,EXTERNAL RESIDENTIAL CARE,324201,130245330,03-Jan-14,"5,188.69",Revenue,229 MITCHAM LANE LTD,SP0000884
WANDSWORTH COUNCIL,ASC,SOCIAL SERVICES,PRIVATE,EXTERNAL RESIDENTIAL CARE,324203,130245330,03-Jan-14,"5,507.99",Revenue,229 MITCHAM LANE LTD,SP0000884
WANDSWORTH COUNCIL,ASC,SOCIAL SERVICES,PRIVATE,EXTERNAL RESIDENTIAL CARE,324204,130245330,03-Jan-14,"5,188.69",Revenue,229 MITCHAM LANE LTD,SP0000884
WANDSWORTH COUNCIL,ASC,SOCIAL SERVICES,PRIVATE,EXTERNAL RESIDENTIAL CARE,337928,130245330,27-Jan-14,"4,428.66",Revenue,229 MITCHAM LANE LTD,SP0000884
WANDSWORTH COUNCIL,ASC,SOCIAL SERVICES,PRIVATE,EXTERNAL RESIDENTIAL CARE,337929,130245330,27-Jan-14,"5,188.69",Revenue,229 MITCHAM LANE LTD,SP0000884
WANDSWORTH COUNCIL,ASC,SOCIAL SERVICES,PRIVATE,EXTERNAL RESIDENTIAL CARE,337930,130245330,27-Jan-14,"5,558.84",Revenue,229 MITCHAM LANE LTD,SP0000884
WANDSWORTH COUNCIL,ASC,SOCIAL SERVICES,PRIVATE,EXTERNAL RESIDENTIAL CARE,328701,130245330,09-Jan-14,"5,543.92",Revenue,WINSLOW COURT,SP0000886
WANDSWORTH COUNCIL,ASC,SOCIAL SERVICES,PRIVATE,EXTERNAL RESIDENTIAL CARE,328702,130245330,09-Jan-14,"5,761.68",Revenue,WINSLOW COURT,SP0000886
WANDSWORTH COUNCIL,ASC,SOCIAL SERVICES,PRIVATE,EXTERNAL RESIDENTIAL CARE,332149,130245330,17-Jan-14,"3,957.32",Revenue,THE LEO TRUST,SP0000908
WANDSWORTH COUNCIL,ASC,SOCIAL SERVICES,PRIVATE,EXTERNAL RESIDENTIAL CARE,330080,130245330,15-Jan-14,"2,528.00",Revenue,PURBECK CARE LTD,SP0000913
WANDSWORTH COUNCIL,ASC,SOCIAL SERVICES,PRIVATE,EXTERNAL RESIDENTIAL CARE,340727,130245330,30-Jan-14,"2,528.00",Revenue,PURBECK CARE LTD,SP0000913
WANDSWORTH COUNCIL,ASC,SOCIAL SERVICES,PRIVATE,EXTERNAL RESIDENTIAL CARE,324119,130245330,03-Jan-14,"2,405.51",Revenue,HILL PARK AUTISTIC TRUST,SP0000926
WANDSWORTH COUNCIL,ASC,SOCIAL SERVICES,PRIVATE,EXTERNAL RESIDENTIAL CARE,336075,130245330,23-Jan-14,"2,405.52",Revenue,HILL PARK AUTISTIC TRUST,SP0000926
WANDSWORTH COUNCIL,ASC,SOCIAL SERVICES,PRIVATE,EXTERNAL RESIDENTIAL CARE,330129,130245330,15-Jan-14,"1,417.20",Revenue,REDACTED PERSONAL DATA,SP0000931
WANDSWORTH COUNCIL,ASC,SOCIAL SERVICES,PRIVATE,EXTERNAL RESIDENTIAL CARE,324142,130245330,03-Jan-14,"8,456.27",Revenue,PROGRESS HOUSING MARLOW,SP0000952
WANDSWORTH COUNCIL,ASC,SOCIAL SERVICES,PRIVATE,EXTERNAL RESIDENTIAL CARE,336519,130245330,24-Jan-14,"8,456.28",Revenue,PROGRESS HOUSING MARLOW,SP0000952
WANDSWORTH COUNCIL,ASC,SOCIAL SERVICES,PRIVATE,EXTERNAL RESIDENTIAL CARE,324183,130245330,03-Jan-14,"2,930.00",Revenue,MISSION CARE,SP0000958
WANDSWORTH COUNCIL,ASC,SOCIAL SERVICES,PRIVATE,EXTERNAL RESIDENTIAL CARE,333807,130245330,21-Jan-14,"2,930.00",Revenue,MISSION CARE,SP0000958
WANDSWORTH COUNCIL,ASC,SOCIAL SERVICES,PRIVATE,EXTERNAL RESIDENTIAL CARE,324116,130245330,03-Jan-14,"4,029.69",Revenue,DOWNING (CHERTSEY ROAD) LTD,SP0000959
WANDSWORTH COUNCIL,ASC,SOCIAL SERVICES,PRIVATE,EXTERNAL RESIDENTIAL CARE,324233,130245330,03-Jan-14,"3,990.54",Revenue,CHERRY LODGE,SP0000965
WANDSWORTH COUNCIL,ASC,SOCIAL SERVICES,PRIVATE,EXTERNAL RESIDENTIAL CARE,337905,130245330,27-Jan-14,"3,548.76",Revenue,RIDGEWOOD CARE SERVICES LTD,SP0000969
WANDSWORTH COUNCIL,ASC,SOCIAL SERVICES,PRIVATE,EXTERNAL RESIDENTIAL CARE,337908,130245330,27-Jan-14,"3,346.64",Revenue,RIDGEWOOD CARE SERVICES LTD,SP0000969
WANDSWORTH COUNCIL,ASC,SOCIAL SERVICES,PRIVATE,EXTERNAL RESIDENTIAL CARE,324231,130245330,03-Jan-14,"4,242.39",Revenue,LEONARD CHESHIRE,SP0000976
WANDSWORTH COUNCIL,ASC,SOCIAL SERVICES,PRIVATE,EXTERNAL RESIDENTIAL CARE,324238,130245330,03-Jan-14,"6,323.91",Revenue,LEONARD CHESHIRE,SP0000976
WANDSWORTH COUNCIL,ASC,SOCIAL SERVICES,PRIVATE,EXTERNAL RESIDENTIAL CARE,330133,130245330,15-Jan-14,"4,641.55",Revenue,LEONARD CHESHIRE,SP0000976
WANDSWORTH COUNCIL,ASC,SOCIAL SERVICES,PRIVATE,EXTERNAL RESIDENTIAL CARE,324236,130245330,03-Jan-14,"5,389.70",Revenue,CREDITON CARE & SUPPORT HOMES,SP0000998
WANDSWORTH COUNCIL,ASC,SOCIAL SERVICES,PRIVATE,EXTERNAL RESIDENTIAL CARE,336071,130245330,23-Jan-14,"5,389.71",Revenue,CREDITON CARE & SUPPORT HOMES,SP0000998
WANDSWORTH COUNCIL,ASC,SOCIAL SERVICES,PRIVATE,EXTERNAL RESIDENTIAL CARE,336511,130245330,24-Jan-14,"4,613.60",Revenue,LOTUS CARE HOME LTD,SP0001006
WANDSWORTH COUNCIL,ASC,SOCIAL SERVICES,PRIVATE,EXTERNAL RESIDENTIAL CARE,329622,130245330,14-Jan-14,"5,239.70",Revenue,M JINGREE T/A SUNLIGHT HOUSE,SP0001024
WANDSWORTH COUNCIL,ASC,SOCIAL SERVICES,PRIVATE,EXTERNAL RESIDENTIAL CARE,330081,130245330,15-Jan-14,"6,609.64",Revenue,CARE UK LEARNING DISABILITIES SERVICES L,SP0001039
WANDSWORTH COUNCIL,ASC,SOCIAL SERVICES,PRIVATE,EXTERNAL RESIDENTIAL CARE,330115,130245330,15-Jan-14,"3,708.20",Revenue,THE HOME FARM TRUST LTD,SP0001048
WANDSWORTH COUNCIL,ASC,SOCIAL SERVICES,PRIVATE,EXTERNAL RESIDENTIAL CARE,332150,130245330,17-Jan-14,"3,708.20",Revenue,THE HOME FARM TRUST LTD,SP0001048
WANDSWORTH COUNCIL,ASC,SOCIAL SERVICES,PRIVATE,EXTERNAL RESIDENTIAL CARE,326980,130245330,08-Jan-14,"4,630.48",Revenue,ALLIED CARE (MHS) LTD,SP0001069
WANDSWORTH COUNCIL,ASC,SOCIAL SERVICES,PRIVATE,EXTERNAL RESIDENTIAL CARE,332165,130245330,17-Jan-14,"4,332.83",Revenue,ALLIED CARE (MHS) LTD,SP0001069
WANDSWORTH COUNCIL,ASC,SOCIAL SERVICES,PRIVATE,EXTERNAL RESIDENTIAL CARE,336066,130245330,23-Jan-14,"4,332.82",Revenue,ALLIED CARE (MHS) LTD,SP0001069
WANDSWORTH COUNCIL,ASC,SOCIAL SERVICES,PRIVATE,EXTERNAL RESIDENTIAL CARE,336073,130245330,23-Jan-14,"5,000.30",Revenue,ALLIED CARE (MHS) LTD,SP0001069
WANDSWORTH COUNCIL,ASC,SOCIAL SERVICES,PRIVATE,EXTERNAL RESIDENTIAL CARE,330095,130245330,15-Jan-14,"7,395.80",Revenue,TOTTERDOWN,SP0001113
WANDSWORTH COUNCIL,ASC,SOCIAL SERVICES,PRIVATE,EXTERNAL RESIDENTIAL CARE,330096,130245330,15-Jan-14,"3,671.24",Revenue,TOTTERDOWN,SP0001113
WANDSWORTH COUNCIL,ASC,SOCIAL SERVICES,PRIVATE,EXTERNAL RESIDENTIAL CARE,324083,130245330,03-Jan-14,"6,186.62",Revenue,SUSSEX HEALTH CARE,SP0001115
WANDSWORTH COUNCIL,ASC,SOCIAL SERVICES,PRIVATE,EXTERNAL RESIDENTIAL CARE,336068,130245330,23-Jan-14,"7,091.09",Revenue,SUSSEX HEALTH CARE,SP0001115
WANDSWORTH COUNCIL,ASC,SOCIAL SERVICES,PRIVATE,EXTERNAL RESIDENTIAL CARE,337871,130245330,27-Jan-14,"6,186.63",Revenue,SUSSEX HEALTH CARE,SP0001115
WANDSWORTH COUNCIL,ASC,SOCIAL SERVICES,PRIVATE,EXTERNAL RESIDENTIAL CARE,324177,130245330,03-Jan-14,"6,905.34",Revenue,LONDON CARE PARTNERSHIP LTD,SP0001138
WANDSWORTH COUNCIL,ASC,SOCIAL SERVICES,PRIVATE,EXTERNAL RESIDENTIAL CARE,324178,130245330,03-Jan-14,"8,838.55",Revenue,LONDON CARE PARTNERSHIP LTD,SP0001138
WANDSWORTH COUNCIL,ASC,SOCIAL SERVICES,PRIVATE,EXTERNAL RESIDENTIAL CARE,324179,130245330,03-Jan-14,"8,195.73",Revenue,LONDON CARE PARTNERSHIP LTD,SP0001138
WANDSWORTH COUNCIL,ASC,SOCIAL SERVICES,PRIVATE,EXTERNAL RESIDENTIAL CARE,324180,130245330,03-Jan-14,"8,303.57",Revenue,LONDON CARE PARTNERSHIP LTD,SP0001138
WANDSWORTH COUNCIL,ASC,SOCIAL SERVICES,PRIVATE,EXTERNAL RESIDENTIAL CARE,324181,130245330,03-Jan-14,"8,235.82",Revenue,LONDON CARE PARTNERSHIP LTD,SP0001138
WANDSWORTH COUNCIL,ASC,SOCIAL SERVICES,PRIVATE,EXTERNAL RESIDENTIAL CARE,324182,130245330,03-Jan-14,"8,610.25",Revenue,LONDON CARE PARTNERSHIP LTD,SP0001138
WANDSWORTH COUNCIL,ASC,SOCIAL SERVICES,PRIVATE,EXTERNAL RESIDENTIAL CARE,330150,130245330,15-Jan-14,"8,303.57",Revenue,LONDON CARE PARTNERSHIP LTD,SP0001138
WANDSWORTH COUNCIL,ASC,SOCIAL SERVICES,PRIVATE,EXTERNAL RESIDENTIAL CARE,330151,130245330,15-Jan-14,"8,035.71",Revenue,LONDON CARE PARTNERSHIP LTD,SP0001138
WANDSWORTH COUNCIL,ASC,SOCIAL SERVICES,PRIVATE,EXTERNAL RESIDENTIAL CARE,336506,130245330,24-Jan-14,"6,905.33",Revenue,LONDON CARE PARTNERSHIP LTD,SP0001138
WANDSWORTH COUNCIL,ASC,SOCIAL SERVICES,PRIVATE,EXTERNAL RESIDENTIAL CARE,336507,130245330,24-Jan-14,"8,838.54",Revenue,LONDON CARE PARTNERSHIP LTD,SP0001138
WANDSWORTH COUNCIL,ASC,SOCIAL SERVICES,PRIVATE,EXTERNAL RESIDENTIAL CARE,336508,130245330,24-Jan-14,"8,195.73",Revenue,LONDON CARE PARTNERSHIP LTD,SP0001138
WANDSWORTH COUNCIL,ASC,SOCIAL SERVICES,PRIVATE,EXTERNAL RESIDENTIAL CARE,336509,130245330,24-Jan-14,"8,235.81",Revenue,LONDON CARE PARTNERSHIP LTD,SP0001138
WANDSWORTH COUNCIL,ASC,SOCIAL SERVICES,PRIVATE,EXTERNAL RESIDENTIAL CARE,336510,130245330,24-Jan-14,"8,610.24",Revenue,LONDON CARE PARTNERSHIP LTD,SP0001138
WANDSWORTH COUNCIL,ASC,SOCIAL SERVICES,PRIVATE,EXTERNAL RESIDENTIAL CARE,341648,130245330,31-Jan-14,"8,303.57",Revenue,LONDON CARE PARTNERSHIP LTD,SP0001138
WANDSWORTH COUNCIL,ASC,SOCIAL SERVICES,PRIVATE,EXTERNAL RESIDENTIAL CARE,326208,130245330,07-Jan-14,"6,708.44",Revenue,CHOICE CARE GROUP,SP0001367
WANDSWORTH COUNCIL,ASC,SOCIAL SERVICES,PRIVATE,EXTERNAL RESIDENTIAL CARE,324131,130245330,03-Jan-14,"6,679.26",Revenue,HOME FROM HOME CARE LIMITED,SP0001373
WANDSWORTH COUNCIL,ASC,SOCIAL SERVICES,PRIVATE,EXTERNAL RESIDENTIAL CARE,336054,130245330,23-Jan-14,"6,463.80",Revenue,HOME FROM HOME CARE LIMITED,SP0001373
WANDSWORTH COUNCIL,ASC,SOCIAL SERVICES,PRIVATE,EXTERNAL RESIDENTIAL CARE,324085,130245330,03-Jan-14,"4,967.48",Revenue,LARKFIELD HALL LTD T/A PEPENBURY,SP0001378
WANDSWORTH COUNCIL,ASC,SOCIAL SERVICES,PRIVATE,EXTERNAL RESIDENTIAL CARE,332162,130245330,17-Jan-14,"4,967.48",Revenue,LARKFIELD HALL LTD T/A PEPENBURY,SP0001378
WANDSWORTH COUNCIL,ASC,SOCIAL SERVICES,PRIVATE,EXTERNAL RESIDENTIAL CARE,324089,130245330,03-Jan-14,"8,852.45",Revenue,ROOKERY HOVE PRIORY,SP0001498
WANDSWORTH COUNCIL,ASC,SOCIAL SERVICES,PRIVATE,EXTERNAL RESIDENTIAL CARE,340751,130245330,30-Jan-14,"8,852.44",Revenue,ROOKERY HOVE PRIORY,SP0001498
WANDSWORTH COUNCIL,ASC,SOCIAL SERVICES,PRIVATE,EXTERNAL RESIDENTIAL CARE,324126,130245330,03-Jan-14,"3,354.64",Revenue,EXCEL CARE HOMES LTD T/A GABLES NURSING,SP0001530
WANDSWORTH COUNCIL,ASC,SOCIAL SERVICES,PRIVATE,EXTERNAL RESIDENTIAL CARE,332157,130245330,17-Jan-14,"7,523.88",Revenue,MCCH SOCIETY LIMITED,SP0001531
WANDSWORTH COUNCIL,ASC,SOCIAL SERVICES,PRIVATE,EXTERNAL RESIDENTIAL CARE,333808,130245330,21-Jan-14,"7,523.88",Revenue,MCCH SOCIETY LIMITED,SP0001531
WANDSWORTH COUNCIL,ASC,SOCIAL SERVICES,PRIVATE,EXTERNAL RESIDENTIAL CARE,324113,130245330,03-Jan-14,"3,631.96",Revenue,CARE UNLIMITED GROUP LTD,SP0001575
WANDSWORTH COUNCIL,ASC,SOCIAL SERVICES,PRIVATE,EXTERNAL RESIDENTIAL CARE,324218,130245330,03-Jan-14,"4,383.40",Revenue,NUTLEY HALL LTD,SP0001581
WANDSWORTH COUNCIL,ASC,SOCIAL SERVICES,PRIVATE,EXTERNAL RESIDENTIAL CARE,336516,130245330,24-Jan-14,"4,383.39",Revenue,NUTLEY HALL LTD,SP0001581
WANDSWORTH COUNCIL,ASC,SOCIAL SERVICES,PRIVATE,EXTERNAL RESIDENTIAL CARE,324102,130245330,03-Jan-14,"7,054.98",Revenue,ASHAMBER HOMES LTD,SP0001610
WANDSWORTH COUNCIL,ASC,SOCIAL SERVICES,PRIVATE,EXTERNAL RESIDENTIAL CARE,336064,130245330,23-Jan-14,"7,054.98",Revenue,ASHAMBER HOMES LTD,SP0001610
WANDSWORTH COUNCIL,ASC,SOCIAL SERVICES,PRIVATE,EXTERNAL RESIDENTIAL CARE,336063,130245330,23-Jan-14,"5,095.91",Revenue,ACH OF LONDON LLP,SP0001688
WANDSWORTH COUNCIL,ASC,SOCIAL SERVICES,PRIVATE,EXTERNAL RESIDENTIAL CARE,332153,130245330,17-Jan-14,"10,948.00",Revenue,KISIMUL GROUP LTD,SP0002487
WANDSWORTH COUNCIL,ASC,SOCIAL SERVICES,PRIVATE,EXTERNAL RESIDENTIAL CARE,330137,130245330,15-Jan-14,"6,409.68",Revenue,THE BRANDON TRUST,SP0005337
WANDSWORTH COUNCIL,ASC,SOCIAL SERVICES,PRIVATE,EXTERNAL RESIDENTIAL CARE,330128,130245330,15-Jan-14,"2,755.56",Revenue,HASTINGS & BEXHILL MENCAP SOCIETY,SP0005380
WANDSWORTH COUNCIL,ASC,SOCIAL SERVICES,PRIVATE,EXTERNAL RESIDENTIAL CARE,340723,130245330,30-Jan-14,"8,051.15",Revenue,LD CARE,SP0005447
WANDSWORTH COUNCIL,ASC,SOCIAL SERVICES,PRIVATE,EXTERNAL RESIDENTIAL CARE,330136,130245330,15-Jan-14,"5,980.80",Revenue,ENHAM,SP0005845
WANDSWORTH COUNCIL,ASC,SOCIAL SERVICES,PRIVATE,EXTERNAL RESIDENTIAL CARE,340720,130245330,30-Jan-14,"5,980.80",Revenue,ENHAM,SP0005845
WANDSWORTH COUNCIL,ASC,SOCIAL SERVICES,PRIVATE,EXTERNAL RESI RESPITE CARE,336521,130245340,24-Jan-14,"1,131.46",Revenue,ST MARYS RESIDENTIAL HOME,SP0000215
WANDSWORTH COUNCIL,ASC,SOCIAL SERVICES,PRIVATE,EXTERNAL RESI RESPITE CARE,333822,130245340,21-Jan-14,984.00,Revenue,THE WEST OF ENGLAND SCHOOL & COLLEGE,SP0001486
WANDSWORTH COUNCIL,ASC,SOCIAL SERVICES,PRIVATE,RESPITE CARE AT HOME -VOUCHERS,334991,130245510,22-Jan-14,"1,191.32",Revenue,RAINBOW MEDICAL SERVICES,SP0000037
WANDSWORTH COUNCIL,ASC,SOCIAL SERVICES,PRIVATE,ONE TO ONE CARE,20245272,130246220,17-Jan-14,"2,049.10",Revenue,SOUTHSIDE PARTNERSHIP,2005209
WANDSWORTH COUNCIL,ASC,SOCIAL SERVICES,PRIVATE,ONE TO ONE CARE,333945,130246220,21-Jan-14,"2,624.53",Revenue,RAINBOW MEDICAL SERVICES,SP0000037
WANDSWORTH COUNCIL,ASC,SOCIAL SERVICES,PRIVATE,ONE TO ONE CARE,333947,130246220,21-Jan-14,"1,143.00",Revenue,RAINBOW MEDICAL SERVICES,SP0000037
WANDSWORTH COUNCIL,ASC,SOCIAL SERVICES,PRIVATE,ONE TO ONE CARE,333948,130246220,21-Jan-14,"2,526.79",Revenue,RAINBOW MEDICAL SERVICES,SP0000037
WANDSWORTH COUNCIL,ASC,SOCIAL SERVICES,PRIVATE,ONE TO ONE CARE,333950,130246220,21-Jan-14,"1,857.09",Revenue,RAINBOW MEDICAL SERVICES,SP0000037
WANDSWORTH COUNCIL,ASC,SOCIAL SERVICES,PRIVATE,ONE TO ONE CARE,324504,130246220,03-Jan-14,979.69,Revenue,FRANCES TAYLOR FOUNDATION,SP0000142
WANDSWORTH COUNCIL,ASC,SOCIAL SERVICES,PRIVATE,ONE TO ONE CARE,336818,130246220,24-Jan-14,979.69,Revenue,FRANCES TAYLOR FOUNDATION,SP0000142
WANDSWORTH COUNCIL,ASC,SOCIAL SERVICES,PRIVATE,ONE TO ONE CARE,330407,130246220,15-Jan-14,720.00,Revenue,THE CHESTNUTS,SP0000182
WANDSWORTH COUNCIL,ASC,SOCIAL SERVICES,PRIVATE,ONE TO ONE CARE,332296,130246220,17-Jan-14,576.00,Revenue,THE CHESTNUTS,SP0000182
WANDSWORTH COUNCIL,ASC,SOCIAL SERVICES,PRIVATE,ONE TO ONE CARE,336823,130246220,24-Jan-14,667.85,Revenue,ST MARYS RESIDENTIAL HOME,SP0000215
WANDSWORTH COUNCIL,ASC,SOCIAL SERVICES,PRIVATE,ONE TO ONE CARE,330404,130246220,15-Jan-14,"2,310.14",Revenue,HARINGEY ASSOCIATION FOR INDEPENDENT LIV,SP0000222
WANDSWORTH COUNCIL,ASC,SOCIAL SERVICES,PRIVATE,ONE TO ONE CARE,333342,130246220,20-Jan-14,570.88,Revenue,OXENDEN HOUSE CARE HOME,SP0000322
WANDSWORTH COUNCIL,ASC,SOCIAL SERVICES,PRIVATE,ONE TO ONE CARE,327014,130246220,08-Jan-14,"1,428.00",Revenue,LIFEWAYS COMMUNITY CARE LTD,SP0000364
WANDSWORTH COUNCIL,ASC,SOCIAL SERVICES,PRIVATE,ONE TO ONE CARE,327019,130246220,08-Jan-14,"1,428.00",Revenue,LIFEWAYS COMMUNITY CARE LTD,SP0000364
WANDSWORTH COUNCIL,ASC,SOCIAL SERVICES,PRIVATE,ONE TO ONE CARE,330510,130246220,15-Jan-14,"1,910.04",Revenue,MACINTYRE CARE,SP0000473
WANDSWORTH COUNCIL,ASC,SOCIAL SERVICES,PRIVATE,ONE TO ONE CARE,330511,130246220,15-Jan-14,694.56,Revenue,MACINTYRE CARE,SP0000473
WANDSWORTH COUNCIL,ASC,SOCIAL SERVICES,PRIVATE,ONE TO ONE CARE,324513,130246220,03-Jan-14,"1,478.04",Revenue,THE COMMUNITY CARE COMPANY UK LTD,SP0000576
WANDSWORTH COUNCIL,ASC,SOCIAL SERVICES,PRIVATE,ONE TO ONE CARE,324514,130246220,03-Jan-14,"1,314.80",Revenue,THE COMMUNITY CARE COMPANY UK LTD,SP0000576
WANDSWORTH COUNCIL,ASC,SOCIAL SERVICES,PRIVATE,ONE TO ONE CARE,324524,130246220,03-Jan-14,900.00,Revenue,HILL PARK AUTISTIC TRUST,SP0000926
WANDSWORTH COUNCIL,ASC,SOCIAL SERVICES,PRIVATE,ONE TO ONE CARE,341775,130246220,31-Jan-14,900.00,Revenue,HILL PARK AUTISTIC TRUST,SP0000926
WANDSWORTH COUNCIL,ASC,SOCIAL SERVICES,PRIVATE,ONE TO ONE CARE,341776,130246220,31-Jan-14,630.00,Revenue,HILL PARK AUTISTIC TRUST,SP0000926
WANDSWORTH COUNCIL,ASC,SOCIAL SERVICES,PRIVATE,ONE TO ONE CARE,324517,130246220,03-Jan-14,"2,884.77",Revenue,DOWNING (CHERTSEY ROAD) LTD,SP0000959
WANDSWORTH COUNCIL,ASC,SOCIAL SERVICES,PRIVATE,ONE TO ONE CARE,330408,130246220,15-Jan-14,"1,597.44",Revenue,TOTTERDOWN,SP0001113
WANDSWORTH COUNCIL,ASC,SOCIAL SERVICES,PRIVATE,ONE TO ONE CARE,332304,130246220,17-Jan-14,716.24,Revenue,FRONTIER SUPPORT SERVICES LTD,SP0001132
WANDSWORTH COUNCIL,ASC,SOCIAL SERVICES,PRIVATE,ONE TO ONE CARE,332306,130246220,17-Jan-14,"2,529.84",Revenue,FRONTIER SUPPORT SERVICES LTD,SP0001132
WANDSWORTH COUNCIL,ASC,SOCIAL SERVICES,PRIVATE,ONE TO ONE CARE,340839,130246220,30-Jan-14,751.20,Revenue,HARROW MENCAP,SP0001347
WANDSWORTH COUNCIL,ASC,SOCIAL SERVICES,PRIVATE,ONE TO ONE CARE,341743,130246220,31-Jan-14,976.56,Revenue,HARROW MENCAP,SP0001347
WANDSWORTH COUNCIL,ASC,SOCIAL SERVICES,PRIVATE,ONE TO ONE CARE,336186,130246220,23-Jan-14,"2,018.10",Revenue,ACH OF LONDON LLP,SP0001688
WANDSWORTH COUNCIL,ASC,SOCIAL SERVICES,PRIVATE,ONE TO ONE CARE,330463,130246220,15-Jan-14,600.04,Revenue,THE BRANDON TRUST,SP0005337
WANDSWORTH COUNCIL,ASC,SOCIAL SERVICES,PRIVATE,ONE TO ONE CARE,330514,130246220,15-Jan-14,459.20,Revenue,THE BRANDON TRUST,SP0005337
WANDSWORTH COUNCIL,ASC,SOCIAL SERVICES,PRIVATE,ONE TO ONE CARE,330515,130246220,15-Jan-14,324.00,Revenue,THE BRANDON TRUST,SP0005337
WANDSWORTH COUNCIL,ASC,SOCIAL SERVICES,PRIVATE,ONE TO ONE CARE,330547,130246220,15-Jan-14,"1,987.20",Revenue,THE BRANDON TRUST,SP0005337
WANDSWORTH COUNCIL,ASC,SOCIAL SERVICES,PRIVATE,ONE TO ONE CARE,330548,130246220,15-Jan-14,"1,312.00",Revenue,THE BRANDON TRUST,SP0005337
WANDSWORTH COUNCIL,ASC,SOCIAL SERVICES,PRIVATE,ONE TO ONE CARE,330550,130246220,15-Jan-14,"2,450.88",Revenue,THE BRANDON TRUST,SP0005337
WANDSWORTH COUNCIL,ASC,SOCIAL SERVICES,VOL ASS,SUPPORTED HOUSING PROGRAMME,20263485,130248030,03-Jan-14,"29,870.02",Revenue,LIFEWAYS COMMUNITY CARE LTD,2002127
WANDSWORTH COUNCIL,ASC,SOCIAL SERVICES,VOL ASS,SUPPORTED HOUSING PROGRAMME,20263498,130248030,03-Jan-14,"2,036.52",Revenue,LIFEWAYS COMMUNITY CARE LTD,2002127
WANDSWORTH COUNCIL,ASC,SOCIAL SERVICES,VOL ASS,SUPPORTED HOUSING PROGRAMME,20263499,130248030,03-Jan-14,"2,166.00",Revenue,LIFEWAYS COMMUNITY CARE LTD,2002127
WANDSWORTH COUNCIL,ASC,SOCIAL SERVICES,VOL ASS,SUPPORTED HOUSING PROGRAMME,20263500,130248030,03-Jan-14,"2,476.80",Revenue,LIFEWAYS COMMUNITY CARE LTD,2002127
WANDSWORTH COUNCIL,ASC,SOCIAL SERVICES,VOL ASS,SUPPORTED HOUSING PROGRAMME,20265607,130248030,21-Jan-14,"1,864.88",Revenue,FRONTIER SUPPORT SERVICES LTD,2009361
WANDSWORTH COUNCIL,ASC,SOCIAL SERVICES,VOL ASS,SUPPORTED HOUSING PROGRAMME,20265608,130248030,21-Jan-14,"1,864.88",Revenue,FRONTIER SUPPORT SERVICES LTD,2009361
WANDSWORTH COUNCIL,ASC,SOCIAL SERVICES,VOL ASS,SUPPORTED HOUSING PROGRAMME,20265609,130248030,21-Jan-14,"1,864.88",Revenue,FRONTIER SUPPORT SERVICES LTD,2009361
WANDSWORTH COUNCIL,ASC,SOCIAL SERVICES,VOL ASS,SUPPORTED HOUSING PROGRAMME,20265610,130248030,21-Jan-14,"1,864.88",Revenue,FRONTIER SUPPORT SERVICES LTD,2009361
WANDSWORTH COUNCIL,ASC,SOCIAL SERVICES,VOL ASS,SUPPORTED HOUSING PROGRAMME,324170,130248030,03-Jan-14,"4,120.24",Revenue,CMG HOMES LTD,SP0000075
WANDSWORTH COUNCIL,ASC,SOCIAL SERVICES,VOL ASS,SUPPORTED HOUSING PROGRAMME,330192,130248030,15-Jan-14,833.06,Revenue,HARINGEY ASSOCIATION FOR INDEPENDENT LIV,SP0000222
WANDSWORTH COUNCIL,ASC,SOCIAL SERVICES,VOL ASS,SUPPORTED HOUSING PROGRAMME,330193,130248030,15-Jan-14,724.40,Revenue,HARINGEY ASSOCIATION FOR INDEPENDENT LIV,SP0000222
WANDSWORTH COUNCIL,ASC,SOCIAL SERVICES,VOL ASS,SUPPORTED HOUSING PROGRAMME,330194,130248030,15-Jan-14,"3,247.28",Revenue,HARINGEY ASSOCIATION FOR INDEPENDENT LIV,SP0000222
WANDSWORTH COUNCIL,ASC,SOCIAL SERVICES,VOL ASS,SUPPORTED HOUSING PROGRAMME,330195,130248030,15-Jan-14,667.60,Revenue,HARINGEY ASSOCIATION FOR INDEPENDENT LIV,SP0000222
WANDSWORTH COUNCIL,ASC,SOCIAL SERVICES,VOL ASS,SUPPORTED HOUSING PROGRAMME,330196,130248030,15-Jan-14,"1,521.52",Revenue,HARINGEY ASSOCIATION FOR INDEPENDENT LIV,SP0000222
WANDSWORTH COUNCIL,ASC,SOCIAL SERVICES,VOL ASS,SUPPORTED HOUSING PROGRAMME,336821,130248030,24-Jan-14,"5,543.72",Revenue,NORWOOD SCHOOLS LTD,SP0000332
WANDSWORTH COUNCIL,ASC,SOCIAL SERVICES,VOL ASS,SUPPORTED HOUSING PROGRAMME,340845,130248030,30-Jan-14,"5,543.72",Revenue,NORWOOD SCHOOLS LTD,SP0000332
WANDSWORTH COUNCIL,ASC,SOCIAL SERVICES,VOL ASS,SUPPORTED HOUSING PROGRAMME,326995,130248030,08-Jan-14,"1,832.12",Revenue,LIFEWAYS COMMUNITY CARE LTD,SP0000364
WANDSWORTH COUNCIL,ASC,SOCIAL SERVICES,VOL ASS,SUPPORTED HOUSING PROGRAMME,326996,130248030,08-Jan-14,"1,832.12",Revenue,LIFEWAYS COMMUNITY CARE LTD,SP0000364
WANDSWORTH COUNCIL,ASC,SOCIAL SERVICES,VOL ASS,SUPPORTED HOUSING PROGRAMME,326997,130248030,08-Jan-14,"1,832.12",Revenue,LIFEWAYS COMMUNITY CARE LTD,SP0000364
WANDSWORTH COUNCIL,ASC,SOCIAL SERVICES,VOL ASS,SUPPORTED HOUSING PROGRAMME,327020,130248030,08-Jan-14,"1,475.12",Revenue,LIFEWAYS COMMUNITY CARE LTD,SP0000364
WANDSWORTH COUNCIL,ASC,SOCIAL SERVICES,VOL ASS,SUPPORTED HOUSING PROGRAMME,327021,130248030,08-Jan-14,"1,475.12",Revenue,LIFEWAYS COMMUNITY CARE LTD,SP0000364
WANDSWORTH COUNCIL,ASC,SOCIAL SERVICES,VOL ASS,SUPPORTED HOUSING PROGRAMME,327022,130248030,08-Jan-14,"2,036.12",Revenue,LIFEWAYS COMMUNITY CARE LTD,SP0000364
WANDSWORTH COUNCIL,ASC,SOCIAL SERVICES,VOL ASS,SUPPORTED HOUSING PROGRAMME,327023,130248030,08-Jan-14,"2,036.12",Revenue,LIFEWAYS COMMUNITY CARE LTD,SP0000364
WANDSWORTH COUNCIL,ASC,SOCIAL SERVICES,VOL ASS,SUPPORTED HOUSING PROGRAMME,327024,130248030,08-Jan-14,"2,036.12",Revenue,LIFEWAYS COMMUNITY CARE LTD,SP0000364
WANDSWORTH COUNCIL,ASC,SOCIAL SERVICES,VOL ASS,SUPPORTED HOUSING PROGRAMME,327025,130248030,08-Jan-14,"2,036.12",Revenue,LIFEWAYS COMMUNITY CARE LTD,SP0000364
WANDSWORTH COUNCIL,ASC,SOCIAL SERVICES,VOL ASS,SUPPORTED HOUSING PROGRAMME,335009,130248030,22-Jan-14,"19,402.12",Revenue,LIFEWAYS COMMUNITY CARE LTD,SP0000364
WANDSWORTH COUNCIL,ASC,SOCIAL SERVICES,VOL ASS,SUPPORTED HOUSING PROGRAMME,335010,130248030,22-Jan-14,"11,883.62",Revenue,LIFEWAYS COMMUNITY CARE LTD,SP0000364
WANDSWORTH COUNCIL,ASC,SOCIAL SERVICES,VOL ASS,SUPPORTED HOUSING PROGRAMME,335011,130248030,22-Jan-14,"14,457.72",Revenue,LIFEWAYS COMMUNITY CARE LTD,SP0000364
WANDSWORTH COUNCIL,ASC,SOCIAL SERVICES,VOL ASS,SUPPORTED HOUSING PROGRAMME,336820,130248030,24-Jan-14,"1,591.20",Revenue,LIFEWAYS COMMUNITY CARE LTD,SP0000364
WANDSWORTH COUNCIL,ASC,SOCIAL SERVICES,VOL ASS,SUPPORTED HOUSING PROGRAMME,341772,130248030,31-Jan-14,"14,130.48",Revenue,LIFEWAYS COMMUNITY CARE LTD,SP0000364
WANDSWORTH COUNCIL,ASC,SOCIAL SERVICES,VOL ASS,SUPPORTED HOUSING PROGRAMME,341773,130248030,31-Jan-14,"10,038.08",Revenue,LIFEWAYS COMMUNITY CARE LTD,SP0000364
WANDSWORTH COUNCIL,ASC,SOCIAL SERVICES,VOL ASS,SUPPORTED HOUSING PROGRAMME,324234,130248030,03-Jan-14,"9,574.36",Revenue,CHOICE SUPPORT,SP0000398
WANDSWORTH COUNCIL,ASC,SOCIAL SERVICES,VOL ASS,SUPPORTED HOUSING PROGRAMME,324235,130248030,03-Jan-14,"7,972.24",Revenue,CHOICE SUPPORT,SP0000398
WANDSWORTH COUNCIL,ASC,SOCIAL SERVICES,VOL ASS,SUPPORTED HOUSING PROGRAMME,324523,130248030,03-Jan-14,"8,080.68",Revenue,CHOICE SUPPORT,SP0000398
WANDSWORTH COUNCIL,ASC,SOCIAL SERVICES,VOL ASS,SUPPORTED HOUSING PROGRAMME,336070,130248030,23-Jan-14,"9,574.36",Revenue,CHOICE SUPPORT,SP0000398
WANDSWORTH COUNCIL,ASC,SOCIAL SERVICES,VOL ASS,SUPPORTED HOUSING PROGRAMME,336187,130248030,23-Jan-14,"8,080.68",Revenue,CHOICE SUPPORT,SP0000398
WANDSWORTH COUNCIL,ASC,SOCIAL SERVICES,VOL ASS,SUPPORTED HOUSING PROGRAMME,340714,130248030,30-Jan-14,"7,972.24",Revenue,CHOICE SUPPORT,SP0000398
WANDSWORTH COUNCIL,ASC,SOCIAL SERVICES,VOL ASS,SUPPORTED HOUSING PROGRAMME,332312,130248030,17-Jan-14,"2,251.52",Revenue,ROYAL MENCAP SOCIETY,SP0000842
WANDSWORTH COUNCIL,ASC,SOCIAL SERVICES,VOL ASS,SUPPORTED HOUSING PROGRAMME,332313,130248030,17-Jan-14,"5,204.28",Revenue,ROYAL MENCAP SOCIETY,SP0000842
WANDSWORTH COUNCIL,ASC,SOCIAL SERVICES,VOL ASS,SUPPORTED HOUSING PROGRAMME,332314,130248030,17-Jan-14,"2,441.20",Revenue,ROYAL MENCAP SOCIETY,SP0000842
WANDSWORTH COUNCIL,ASC,SOCIAL SERVICES,VOL ASS,SUPPORTED HOUSING PROGRAMME,332315,130248030,17-Jan-14,"5,105.32",Revenue,ROYAL MENCAP SOCIETY,SP0000842
WANDSWORTH COUNCIL,ASC,SOCIAL SERVICES,VOL ASS,SUPPORTED HOUSING PROGRAMME,332316,130248030,17-Jan-14,"2,491.28",Revenue,ROYAL MENCAP SOCIETY,SP0000842
WANDSWORTH COUNCIL,ASC,SOCIAL SERVICES,VOL ASS,SUPPORTED HOUSING PROGRAMME,332320,130248030,17-Jan-14,897.32,Revenue,ROYAL MENCAP SOCIETY,SP0000842
WANDSWORTH COUNCIL,ASC,SOCIAL SERVICES,VOL ASS,SUPPORTED HOUSING PROGRAMME,332321,130248030,17-Jan-14,"3,246.40",Revenue,ROYAL MENCAP SOCIETY,SP0000842
WANDSWORTH COUNCIL,ASC,SOCIAL SERVICES,VOL ASS,SUPPORTED HOUSING PROGRAMME,332322,130248030,17-Jan-14,"1,748.04",Revenue,ROYAL MENCAP SOCIETY,SP0000842
WANDSWORTH COUNCIL,ASC,SOCIAL SERVICES,VOL ASS,SUPPORTED HOUSING PROGRAMME,336803,130248030,24-Jan-14,700.00,Revenue,ACT TOO LTD,SP0000855
WANDSWORTH COUNCIL,ASC,SOCIAL SERVICES,VOL ASS,SUPPORTED HOUSING PROGRAMME,336806,130248030,24-Jan-14,"1,320.00",Revenue,ACT TOO LTD,SP0000855
WANDSWORTH COUNCIL,ASC,SOCIAL SERVICES,VOL ASS,SUPPORTED HOUSING PROGRAMME,336807,130248030,24-Jan-14,"1,020.00",Revenue,ACT TOO LTD,SP0000855
WANDSWORTH COUNCIL,ASC,SOCIAL SERVICES,VOL ASS,SUPPORTED HOUSING PROGRAMME,336808,130248030,24-Jan-14,"1,350.00",Revenue,ACT TOO LTD,SP0000855
WANDSWORTH COUNCIL,ASC,SOCIAL SERVICES,VOL ASS,SUPPORTED HOUSING PROGRAMME,336809,130248030,24-Jan-14,"2,220.00",Revenue,ACT TOO LTD,SP0000855
WANDSWORTH COUNCIL,ASC,SOCIAL SERVICES,VOL ASS,SUPPORTED HOUSING PROGRAMME,336810,130248030,24-Jan-14,600.00,Revenue,ACT TOO LTD,SP0000855
WANDSWORTH COUNCIL,ASC,SOCIAL SERVICES,VOL ASS,SUPPORTED HOUSING PROGRAMME,336817,130248030,24-Jan-14,560.00,Revenue,ACT TOO LTD,SP0000855
WANDSWORTH COUNCIL,ASC,SOCIAL SERVICES,VOL ASS,SUPPORTED HOUSING PROGRAMME,330449,130248030,15-Jan-14,"2,980.32",Revenue,THE HOME FARM TRUST LTD,SP0001048
WANDSWORTH COUNCIL,ASC,SOCIAL SERVICES,VOL ASS,SUPPORTED HOUSING PROGRAMME,332318,130248030,17-Jan-14,"2,980.32",Revenue,THE HOME FARM TRUST LTD,SP0001048
WANDSWORTH COUNCIL,ASC,SOCIAL SERVICES,VOL ASS,SUPPORTED HOUSING PROGRAMME,332300,130248030,17-Jan-14,"1,353.32",Revenue,FRONTIER SUPPORT SERVICES LTD,SP0001132
WANDSWORTH COUNCIL,ASC,SOCIAL SERVICES,VOL ASS,SUPPORTED HOUSING PROGRAMME,332301,130248030,17-Jan-14,"1,097.52",Revenue,FRONTIER SUPPORT SERVICES LTD,SP0001132
WANDSWORTH COUNCIL,ASC,SOCIAL SERVICES,VOL ASS,SUPPORTED HOUSING PROGRAMME,332302,130248030,17-Jan-14,"1,533.00",Revenue,FRONTIER SUPPORT SERVICES LTD,SP0001132
WANDSWORTH COUNCIL,ASC,SOCIAL SERVICES,VOL ASS,SUPPORTED HOUSING PROGRAMME,332303,130248030,17-Jan-14,"1,097.56",Revenue,FRONTIER SUPPORT SERVICES LTD,SP0001132
WANDSWORTH COUNCIL,ASC,SOCIAL SERVICES,VOL ASS,SUPPORTED HOUSING PROGRAMME,332304,130248030,17-Jan-14,"1,097.64",Revenue,FRONTIER SUPPORT SERVICES LTD,SP0001132
WANDSWORTH COUNCIL,ASC,SOCIAL SERVICES,VOL ASS,SUPPORTED HOUSING PROGRAMME,332305,130248030,17-Jan-14,"1,251.12",Revenue,FRONTIER SUPPORT SERVICES LTD,SP0001132
WANDSWORTH COUNCIL,ASC,SOCIAL SERVICES,VOL ASS,SUPPORTED HOUSING PROGRAMME,332307,130248030,17-Jan-14,"1,535.48",Revenue,FRONTIER SUPPORT SERVICES LTD,SP0001132
WANDSWORTH COUNCIL,ASC,SOCIAL SERVICES,VOL ASS,SUPPORTED HOUSING PROGRAMME,332308,130248030,17-Jan-14,"1,353.32",Revenue,FRONTIER SUPPORT SERVICES LTD,SP0001132
WANDSWORTH COUNCIL,ASC,SOCIAL SERVICES,VOL ASS,SUPPORTED HOUSING PROGRAMME,332309,130248030,17-Jan-14,"2,509.20",Revenue,FRONTIER SUPPORT SERVICES LTD,SP0001132
WANDSWORTH COUNCIL,ASC,SOCIAL SERVICES,VOL ASS,SUPPORTED HOUSING PROGRAMME,332310,130248030,17-Jan-14,657.80,Revenue,FRONTIER SUPPORT SERVICES LTD,SP0001132
WANDSWORTH COUNCIL,ASC,SOCIAL SERVICES,VOL ASS,SUPPORTED HOUSING PROGRAMME,332294,130248030,17-Jan-14,"2,827.40",Revenue,PROSPECT HOUSING & SUPPORT SERVICES,SP0001136
WANDSWORTH COUNCIL,ASC,SOCIAL SERVICES,VOL ASS,SUPPORTED HOUSING PROGRAMME,333343,130248030,20-Jan-14,"2,120.55",Revenue,PROSPECT HOUSING & SUPPORT SERVICES,SP0001136
WANDSWORTH COUNCIL,ASC,SOCIAL SERVICES,VOL ASS,SUPPORTED HOUSING PROGRAMME,324506,130248030,03-Jan-14,"5,978.66",Revenue,INDEPENDENCE HOMES LTD,SP0004378
WANDSWORTH COUNCIL,ASC,SOCIAL SERVICES,VOL ASS,SUPPORTED HOUSING PROGRAMME,336819,130248030,24-Jan-14,"5,978.66",Revenue,INDEPENDENCE HOMES LTD,SP0004378
WANDSWORTH COUNCIL,ASC,SOCIAL SERVICES,VOL ASS,SUPPORTED HOUSING PROGRAMME,330451,130248030,15-Jan-14,"1,034.48",Revenue,THE BRANDON TRUST,SP0005337
WANDSWORTH COUNCIL,ASC,SOCIAL SERVICES,VOL ASS,SUPPORTED HOUSING PROGRAMME,330471,130248030,15-Jan-14,"1,674.84",Revenue,THE BRANDON TRUST,SP0005337
WANDSWORTH COUNCIL,ASC,SOCIAL SERVICES,VOL ASS,SUPPORTED HOUSING PROGRAMME,330472,130248030,15-Jan-14,"2,405.96",Revenue,THE BRANDON TRUST,SP0005337
WANDSWORTH COUNCIL,ASC,SOCIAL SERVICES,VOL ASS,SUPPORTED HOUSING PROGRAMME,330475,130248030,15-Jan-14,"2,459.52",Revenue,THE BRANDON TRUST,SP0005337
WANDSWORTH COUNCIL,ASC,SOCIAL SERVICES,VOL ASS,SUPPORTED HOUSING PROGRAMME,330476,130248030,15-Jan-14,"2,658.24",Revenue,THE BRANDON TRUST,SP0005337
WANDSWORTH COUNCIL,ASC,SOCIAL SERVICES,VOL ASS,SUPPORTED HOUSING PROGRAMME,330477,130248030,15-Jan-14,"3,883.68",Revenue,THE BRANDON TRUST,SP0005337
WANDSWORTH COUNCIL,ASC,SOCIAL SERVICES,VOL ASS,SUPPORTED HOUSING PROGRAMME,330479,130248030,15-Jan-14,"2,618.48",Revenue,THE BRANDON TRUST,SP0005337
WANDSWORTH COUNCIL,ASC,SOCIAL SERVICES,VOL ASS,SUPPORTED HOUSING PROGRAMME,330480,130248030,15-Jan-14,"6,198.76",Revenue,THE BRANDON TRUST,SP0005337
WANDSWORTH COUNCIL,ASC,SOCIAL SERVICES,VOL ASS,SUPPORTED HOUSING PROGRAMME,330481,130248030,15-Jan-14,"1,465.92",Revenue,THE BRANDON TRUST,SP0005337
WANDSWORTH COUNCIL,ASC,SOCIAL SERVICES,VOL ASS,SUPPORTED HOUSING PROGRAMME,330482,130248030,15-Jan-14,"1,548.72",Revenue,THE BRANDON TRUST,SP0005337
WANDSWORTH COUNCIL,ASC,SOCIAL SERVICES,VOL ASS,SUPPORTED HOUSING PROGRAMME,330483,130248030,15-Jan-14,"2,819.52",Revenue,THE BRANDON TRUST,SP0005337
WANDSWORTH COUNCIL,ASC,SOCIAL SERVICES,VOL ASS,SUPPORTED HOUSING PROGRAMME,330509,130248030,15-Jan-14,"6,723.36",Revenue,THE BRANDON TRUST,SP0005337
WANDSWORTH COUNCIL,ASC,SOCIAL SERVICES,VOL ASS,SUPPORTED HOUSING PROGRAMME,330512,130248030,15-Jan-14,"1,504.84",Revenue,THE BRANDON TRUST,SP0005337
WANDSWORTH COUNCIL,ASC,SOCIAL SERVICES,VOL ASS,SUPPORTED HOUSING PROGRAMME,330513,130248030,15-Jan-14,"1,504.84",Revenue,THE BRANDON TRUST,SP0005337
WANDSWORTH COUNCIL,ASC,SOCIAL SERVICES,VOL ASS,SUPPORTED HOUSING PROGRAMME,330514,130248030,15-Jan-14,"1,472.84",Revenue,THE BRANDON TRUST,SP0005337
WANDSWORTH COUNCIL,ASC,SOCIAL SERVICES,VOL ASS,SUPPORTED HOUSING PROGRAMME,330515,130248030,15-Jan-14,"2,327.04",Revenue,THE BRANDON TRUST,SP0005337
WANDSWORTH COUNCIL,ASC,SOCIAL SERVICES,VOL ASS,SUPPORTED HOUSING PROGRAMME,330516,130248030,15-Jan-14,"2,980.32",Revenue,THE BRANDON TRUST,SP0005337
WANDSWORTH COUNCIL,ASC,SOCIAL SERVICES,VOL ASS,SUPPORTED HOUSING PROGRAMME,330517,130248030,15-Jan-14,"2,969.16",Revenue,THE BRANDON TRUST,SP0005337
WANDSWORTH COUNCIL,ASC,SOCIAL SERVICES,VOL ASS,SUPPORTED HOUSING PROGRAMME,330518,130248030,15-Jan-14,"2,979.92",Revenue,THE BRANDON TRUST,SP0005337
WANDSWORTH COUNCIL,ASC,SOCIAL SERVICES,VOL ASS,SUPPORTED HOUSING PROGRAMME,330519,130248030,15-Jan-14,"2,186.04",Revenue,THE BRANDON TRUST,SP0005337
WANDSWORTH COUNCIL,ASC,SOCIAL SERVICES,VOL ASS,SUPPORTED HOUSING PROGRAMME,330520,130248030,15-Jan-14,"2,893.04",Revenue,THE BRANDON TRUST,SP0005337
WANDSWORTH COUNCIL,ASC,SOCIAL SERVICES,VOL ASS,SUPPORTED HOUSING PROGRAMME,330521,130248030,15-Jan-14,"1,125.08",Revenue,THE BRANDON TRUST,SP0005337
WANDSWORTH COUNCIL,ASC,SOCIAL SERVICES,VOL ASS,SUPPORTED HOUSING PROGRAMME,330522,130248030,15-Jan-14,"1,155.88",Revenue,THE BRANDON TRUST,SP0005337
WANDSWORTH COUNCIL,ASC,SOCIAL SERVICES,VOL ASS,SUPPORTED HOUSING PROGRAMME,330523,130248030,15-Jan-14,"1,854.72",Revenue,THE BRANDON TRUST,SP0005337
WANDSWORTH COUNCIL,ASC,SOCIAL SERVICES,VOL ASS,SUPPORTED HOUSING PROGRAMME,330524,130248030,15-Jan-14,"1,380.64",Revenue,THE BRANDON TRUST,SP0005337
WANDSWORTH COUNCIL,ASC,SOCIAL SERVICES,VOL ASS,SUPPORTED HOUSING PROGRAMME,330525,130248030,15-Jan-14,"1,466.16",Revenue,THE BRANDON TRUST,SP0005337
WANDSWORTH COUNCIL,ASC,SOCIAL SERVICES,VOL ASS,SUPPORTED HOUSING PROGRAMME,330526,130248030,15-Jan-14,"2,298.88",Revenue,THE BRANDON TRUST,SP0005337
WANDSWORTH COUNCIL,ASC,SOCIAL SERVICES,VOL ASS,SUPPORTED HOUSING PROGRAMME,330527,130248030,15-Jan-14,"1,513.68",Revenue,THE BRANDON TRUST,SP0005337
WANDSWORTH COUNCIL,ASC,SOCIAL SERVICES,VOL ASS,SUPPORTED HOUSING PROGRAMME,330528,130248030,15-Jan-14,"1,513.68",Revenue,THE BRANDON TRUST,SP0005337
WANDSWORTH COUNCIL,ASC,SOCIAL SERVICES,VOL ASS,SUPPORTED HOUSING PROGRAMME,330529,130248030,15-Jan-14,"2,856.96",Revenue,THE BRANDON TRUST,SP0005337
WANDSWORTH COUNCIL,ASC,SOCIAL SERVICES,VOL ASS,SUPPORTED HOUSING PROGRAMME,330530,130248030,15-Jan-14,"2,260.80",Revenue,THE BRANDON TRUST,SP0005337
WANDSWORTH COUNCIL,ASC,SOCIAL SERVICES,VOL ASS,SUPPORTED HOUSING PROGRAMME,330531,130248030,15-Jan-14,"3,453.12",Revenue,THE BRANDON TRUST,SP0005337
WANDSWORTH COUNCIL,ASC,SOCIAL SERVICES,VOL ASS,SUPPORTED HOUSING PROGRAMME,330532,130248030,15-Jan-14,"2,790.72",Revenue,THE BRANDON TRUST,SP0005337
WANDSWORTH COUNCIL,ASC,SOCIAL SERVICES,VOL ASS,SUPPORTED HOUSING PROGRAMME,330533,130248030,15-Jan-14,"1,258.56",Revenue,THE BRANDON TRUST,SP0005337
WANDSWORTH COUNCIL,ASC,SOCIAL SERVICES,VOL ASS,SUPPORTED HOUSING PROGRAMME,330534,130248030,15-Jan-14,"3,687.44",Revenue,THE BRANDON TRUST,SP0005337
WANDSWORTH COUNCIL,ASC,SOCIAL SERVICES,VOL ASS,SUPPORTED HOUSING PROGRAMME,330535,130248030,15-Jan-14,"2,658.24",Revenue,THE BRANDON TRUST,SP0005337
WANDSWORTH COUNCIL,ASC,SOCIAL SERVICES,VOL ASS,SUPPORTED HOUSING PROGRAMME,330536,130248030,15-Jan-14,"2,525.76",Revenue,THE BRANDON TRUST,SP0005337
WANDSWORTH COUNCIL,ASC,SOCIAL SERVICES,VOL ASS,SUPPORTED HOUSING PROGRAMME,330537,130248030,15-Jan-14,"3,453.92",Revenue,THE BRANDON TRUST,SP0005337
WANDSWORTH COUNCIL,ASC,SOCIAL SERVICES,VOL ASS,SUPPORTED HOUSING PROGRAMME,330538,130248030,15-Jan-14,"1,465.92",Revenue,THE BRANDON TRUST,SP0005337
WANDSWORTH COUNCIL,ASC,SOCIAL SERVICES,VOL ASS,SUPPORTED HOUSING PROGRAMME,330539,130248030,15-Jan-14,"2,923.88",Revenue,THE BRANDON TRUST,SP0005337
WANDSWORTH COUNCIL,ASC,SOCIAL SERVICES,VOL ASS,SUPPORTED HOUSING PROGRAMME,330540,130248030,15-Jan-14,"4,687.20",Revenue,THE BRANDON TRUST,SP0005337
WANDSWORTH COUNCIL,ASC,SOCIAL SERVICES,VOL ASS,SUPPORTED HOUSING PROGRAMME,330541,130248030,15-Jan-14,"4,688.56",Revenue,THE BRANDON TRUST,SP0005337
WANDSWORTH COUNCIL,ASC,SOCIAL SERVICES,VOL ASS,SUPPORTED HOUSING PROGRAMME,330542,130248030,15-Jan-14,"3,320.64",Revenue,THE BRANDON TRUST,SP0005337
WANDSWORTH COUNCIL,ASC,SOCIAL SERVICES,VOL ASS,SUPPORTED HOUSING PROGRAMME,330543,130248030,15-Jan-14,"3,702.20",Revenue,THE BRANDON TRUST,SP0005337
WANDSWORTH COUNCIL,ASC,SOCIAL SERVICES,VOL ASS,SUPPORTED HOUSING PROGRAMME,330544,130248030,15-Jan-14,"5,482.08",Revenue,THE BRANDON TRUST,SP0005337
WANDSWORTH COUNCIL,ASC,SOCIAL SERVICES,VOL ASS,SUPPORTED HOUSING PROGRAMME,330545,130248030,15-Jan-14,"3,718.08",Revenue,THE BRANDON TRUST,SP0005337
WANDSWORTH COUNCIL,ASC,SOCIAL SERVICES,VOL ASS,SUPPORTED HOUSING PROGRAMME,330546,130248030,15-Jan-14,"3,121.92",Revenue,THE BRANDON TRUST,SP0005337
WANDSWORTH COUNCIL,ASC,SOCIAL SERVICES,VOL ASS,SUPPORTED HOUSING PROGRAMME,330547,130248030,15-Jan-14,"5,688.08",Revenue,THE BRANDON TRUST,SP0005337
WANDSWORTH COUNCIL,ASC,SOCIAL SERVICES,VOL ASS,SUPPORTED HOUSING PROGRAMME,330548,130248030,15-Jan-14,"5,983.44",Revenue,THE BRANDON TRUST,SP0005337
WANDSWORTH COUNCIL,ASC,SOCIAL SERVICES,VOL ASS,SUPPORTED HOUSING PROGRAMME,330549,130248030,15-Jan-14,"4,827.60",Revenue,THE BRANDON TRUST,SP0005337
WANDSWORTH COUNCIL,ASC,SOCIAL SERVICES,VOL ASS,SUPPORTED HOUSING PROGRAMME,330550,130248030,15-Jan-14,"3,324.96",Revenue,THE BRANDON TRUST,SP0005337
WANDSWORTH COUNCIL,ASC,SOCIAL SERVICES,VOL ASS,SUPPORTED HOUSING PROGRAMME,330551,130248030,15-Jan-14,"2,886.04",Revenue,THE BRANDON TRUST,SP0005337
WANDSWORTH COUNCIL,ASC,SOCIAL SERVICES,VOL ASS,SUPPORTED HOUSING PROGRAMME,330552,130248030,15-Jan-14,"2,856.96",Revenue,THE BRANDON TRUST,SP0005337
WANDSWORTH COUNCIL,ASC,SOCIAL SERVICES,VOL ASS,SUPPORTED HOUSING PROGRAMME,330553,130248030,15-Jan-14,"3,088.80",Revenue,THE BRANDON TRUST,SP0005337
WANDSWORTH COUNCIL,ASC,SOCIAL SERVICES,VOL ASS,SUPPORTED HOUSING PROGRAMME,330554,130248030,15-Jan-14,"2,758.28",Revenue,THE BRANDON TRUST,SP0005337
WANDSWORTH COUNCIL,ASC,SOCIAL SERVICES,VOL ASS,SUPPORTED HOUSING PROGRAMME,330555,130248030,15-Jan-14,"2,128.32",Revenue,THE BRANDON TRUST,SP0005337
WANDSWORTH COUNCIL,ASC,SOCIAL SERVICES,VOL ASS,SUPPORTED HOUSING PROGRAMME,330556,130248030,15-Jan-14,"2,658.24",Revenue,THE BRANDON TRUST,SP0005337
WANDSWORTH COUNCIL,ASC,SOCIAL SERVICES,VOL ASS,SUPPORTED HOUSING PROGRAMME,330557,130248030,15-Jan-14,"2,592.60",Revenue,THE BRANDON TRUST,SP0005337
WANDSWORTH COUNCIL,ASC,SOCIAL SERVICES,VOL ASS,SUPPORTED HOUSING PROGRAMME,330558,130248030,15-Jan-14,"2,724.48",Revenue,THE BRANDON TRUST,SP0005337
WANDSWORTH COUNCIL,ASC,SOCIAL SERVICES,VOL ASS,SUPPORTED HOUSING PROGRAMME,330559,130248030,15-Jan-14,"3,564.56",Revenue,THE BRANDON TRUST,SP0005337
WANDSWORTH COUNCIL,ASC,SOCIAL SERVICES,VOL ASS,SUPPORTED HOUSING PROGRAMME,330560,130248030,15-Jan-14,"3,416.80",Revenue,THE BRANDON TRUST,SP0005337
WANDSWORTH COUNCIL,ASC,SOCIAL SERVICES,VOL ASS,SUPPORTED HOUSING PROGRAMME,330561,130248030,15-Jan-14,"2,973.52",Revenue,THE BRANDON TRUST,SP0005337
WANDSWORTH COUNCIL,ASC,SOCIAL SERVICES,VOL ASS,SUPPORTED HOUSING PROGRAMME,330562,130248030,15-Jan-14,"2,848.72",Revenue,THE BRANDON TRUST,SP0005337
WANDSWORTH COUNCIL,ASC,SOCIAL SERVICES,VOL ASS,SUPPORTED HOUSING PROGRAMME,330563,130248030,15-Jan-14,"2,327.24",Revenue,THE BRANDON TRUST,SP0005337
WANDSWORTH COUNCIL,ASC,SOCIAL SERVICES,VOL ASS,SUPPORTED HOUSING PROGRAMME,330564,130248030,15-Jan-14,"2,327.24",Revenue,THE BRANDON TRUST,SP0005337
WANDSWORTH COUNCIL,ASC,SOCIAL SERVICES,VOL ASS,SUPPORTED HOUSING PROGRAMME,330567,130248030,15-Jan-14,"1,929.60",Revenue,THE BRANDON TRUST,SP0005337
WANDSWORTH COUNCIL,ASC,SOCIAL SERVICES,VOL ASS,SUPPORTED HOUSING PROGRAMME,330568,130248030,15-Jan-14,"2,327.04",Revenue,THE BRANDON TRUST,SP0005337
WANDSWORTH COUNCIL,ASC,SOCIAL SERVICES,VOL ASS,SUPPORTED HOUSING PROGRAMME,332298,130248030,17-Jan-14,"3,520.16",Revenue,THE BRANDON TRUST,SP0005337
WANDSWORTH COUNCIL,ASC,SOCIAL SERVICES,VOL ASS,SUPPORTED HOUSING PROGRAMME,332295,130248030,17-Jan-14,"4,772.00",Revenue,CARE UNLIMITED DOMCARE LIMITED,SP0005359
WANDSWORTH COUNCIL,ASC,SOCIAL SERVICES,VOL ASS,SUPPORTED HOUSING PROGRAMME,330445,130248030,15-Jan-14,"7,650.00",Revenue,RELIABLE PERSONNEL LTD,SP0005657
WANDSWORTH COUNCIL,ASC,SOCIAL SERVICES,VOL ASS,SUPPORTED HOUSING PROGRAMME,332317,130248030,17-Jan-14,"1,982.75",Revenue,HIGHER GREEN FARM LTD,SP0005842
WANDSWORTH COUNCIL,ASC,SOCIAL SERVICES,VOL ASS,SUPPORTED HOUSING PROGRAMME,333341,130248030,20-Jan-14,"1,982.75",Revenue,HIGHER GREEN FARM LTD,SP0005842
WANDSWORTH COUNCIL,ASC,SOCIAL SERVICES,VOL ASS,SUPPORTED HOUSING PROGRAMME,340841,130248030,30-Jan-14,"1,982.75",Revenue,HIGHER GREEN FARM LTD,SP0005842
WANDSWORTH COUNCIL,ASC,SOCIAL SERVICES,VOL ASS,SUPPORTED HOUSING PROGRAMME,340842,130248030,30-Jan-14,"1,982.75",Revenue,HIGHER GREEN FARM LTD,SP0005842
WANDSWORTH COUNCIL,ASC,SOCIAL SERVICES,DIRECT,DIRECT PAYMENTS,20266980,130250380,29-Jan-14,"1,662.68",Revenue,REDACTED PERSONAL DATA,2003748
WANDSWORTH COUNCIL,ASC,SOCIAL SERVICES,DIRECT,DIRECT PAYMENTS,20267038,130250380,28-Jan-14,"1,500.00",Revenue,REDACTED PERSONAL DATA,2006932
WANDSWORTH COUNCIL,ASC,SOCIAL SERVICES,DIRECT,DIRECT PAYMENTS,339316,130250380,28-Jan-14,613.76,Revenue, SHAW TRUST LTD,SP0005390
WANDSWORTH COUNCIL,ASC,SOCIAL SERVICES,CUSTOMER & CLIENT RECPTS - EXT,CL CONT EXT RESIDEN S28A 100%,324171,130280680,03-Jan-14,-486.00,Revenue,ELEANOR NURSING & SOCIAL CARE,SP0000110
WANDSWORTH COUNCIL,ASC,SOCIAL SERVICES,CUSTOMER & CLIENT RECPTS - EXT,CL CONT EXT RESIDEN S28A 100%,340711,130280680,30-Jan-14,-486.00,Revenue,ELEANOR NURSING & SOCIAL CARE,SP0000110
WANDSWORTH COUNCIL,ASC,SOCIAL SERVICES,CUSTOMER & CLIENT RECPTS - EXT,CL CONT EXT RESIDEN S28A 100%,324191,130280680,03-Jan-14,-315.20,Revenue,LOVING CARE LTD,SP0000670
WANDSWORTH COUNCIL,ASC,SOCIAL SERVICES,CUSTOMER & CLIENT RECPTS - EXT,CL CONT EXT RESIDEN S28A 100%,326230,130280680,07-Jan-14,-315.20,Revenue,LOVING CARE LTD,SP0000670
WANDSWORTH COUNCIL,ASC,SOCIAL SERVICES,CUSTOMER & CLIENT RECPTS - EXT,CL CONT EXT RESIDEN S28A 100%,326231,130280680,07-Jan-14,-315.20,Revenue,LOVING CARE LTD,SP0000670
WANDSWORTH COUNCIL,ASC,SOCIAL SERVICES,CUSTOMER & CLIENT RECPTS - EXT,CL CONT EXT RESIDEN S28A 100%,336523,130280680,24-Jan-14,-315.20,Revenue,LOVING CARE LTD,SP0000670
WANDSWORTH COUNCIL,ASC,SOCIAL SERVICES,CUSTOMER & CLIENT RECPTS - EXT,CL CONT EXT RESIDEN S28A 100%,336524,130280680,24-Jan-14,-315.20,Revenue,LOVING CARE LTD,SP0000670
WANDSWORTH COUNCIL,ASC,SOCIAL SERVICES,CUSTOMER & CLIENT RECPTS - EXT,CL CONT EXT RESIDEN S28A 100%,340752,130280680,30-Jan-14,-315.20,Revenue,LOVING CARE LTD,SP0000670
WANDSWORTH COUNCIL,ASC,SOCIAL SERVICES,CUSTOMER & CLIENT RECPTS - EXT,CL CONT EXT RESIDEN S28A 100%,333023,130280680,20-Jan-14,-486.00,Revenue,ASHTON CARE,SP0000695
WANDSWORTH COUNCIL,ASC,SOCIAL SERVICES,CUSTOMER & CLIENT RECPTS - EXT,CL CONT EXT RESIDEN S28A 100%,337868,130280680,27-Jan-14,-348.98,Revenue,FIRCROFT,SP0000840
WANDSWORTH COUNCIL,ASC,SOCIAL SERVICES,CUSTOMER & CLIENT RECPTS - EXT,CL CONT EXT RESIDEN S28A 100%,330081,130280680,15-Jan-14,-538.07,Revenue,CARE UK LEARNING DISABILITIES SERVICES L,SP0001039
WANDSWORTH COUNCIL,ASC,SOCIAL SERVICES,CUSTOMER & CLIENT RECPTS - EXT,CL CONT EXTERNAL RESIDENT S28A,324165,130280710,03-Jan-14,-315.20,Revenue,CMG HOMES LTD,SP0000075
WANDSWORTH COUNCIL,ASC,SOCIAL SERVICES,CUSTOMER & CLIENT RECPTS - EXT,CL CONT EXTERNAL RESIDENT S28A,330142,130280710,15-Jan-14,-315.20,Revenue,MACINTYRE CARE,SP0000473
WANDSWORTH COUNCIL,ASC,SOCIAL SERVICES,CUSTOMER & CLIENT RECPTS - EXT,CL CONT EXTERNAL RESIDENT S28A,330159,130280710,15-Jan-14,-486.00,Revenue,MACINTYRE CARE,SP0000473
WANDSWORTH COUNCIL,ASC,SOCIAL SERVICES,CUSTOMER & CLIENT RECPTS - EXT,CL CONT EXTERNAL RESIDENT S28A,330161,130280710,15-Jan-14,-315.20,Revenue,MACINTYRE CARE,SP0000473
WANDSWORTH COUNCIL,ASC,SOCIAL SERVICES,CUSTOMER & CLIENT RECPTS - EXT,CL CONT EXTERNAL RESIDENT S28A,337859,130280710,27-Jan-14,-315.20,Revenue,SURREY & BORDERS PARTNERSHIP NHS TRUST,SP0000501
WANDSWORTH COUNCIL,ASC,SOCIAL SERVICES,CUSTOMER & CLIENT RECPTS - EXT,CL CONT EXTERNAL RESIDENT S28A,324141,130280710,03-Jan-14,-348.97,Revenue,PARKGATE MANOR,SP0000521
WANDSWORTH COUNCIL,ASC,SOCIAL SERVICES,CUSTOMER & CLIENT RECPTS - EXT,CL CONT EXTERNAL RESIDENT S28A,337881,130280710,27-Jan-14,-348.98,Revenue,PARKGATE MANOR,SP0000521
WANDSWORTH COUNCIL,ASC,SOCIAL SERVICES,CUSTOMER & CLIENT RECPTS - EXT,CL CONT EXTERNAL RESIDENT S28A,324104,130280710,03-Jan-14,-542.90,Revenue,THE COMMUNITY CARE COMPANY UK LTD,SP0000576
WANDSWORTH COUNCIL,ASC,SOCIAL SERVICES,CUSTOMER & CLIENT RECPTS - EXT,CL CONT EXTERNAL RESIDENT S28A,340707,130280710,30-Jan-14,-542.89,Revenue,THE COMMUNITY CARE COMPANY UK LTD,SP0000576
WANDSWORTH COUNCIL,ASC,SOCIAL SERVICES,CUSTOMER & CLIENT RECPTS - EXT,CL CONT EXTERNAL RESIDENT S28A,330148,130280710,15-Jan-14,-317.97,Revenue,HEALTHLINC INDIVIDUAL CARE,SP0000617
WANDSWORTH COUNCIL,ASC,SOCIAL SERVICES,CUSTOMER & CLIENT RECPTS - EXT,CL CONT EXTERNAL RESIDENT S28A,330110,130280710,15-Jan-14,-315.20,Revenue,METROPOLITAN HOUSING TRUST,SP0000626
WANDSWORTH COUNCIL,ASC,SOCIAL SERVICES,CUSTOMER & CLIENT RECPTS - EXT,CL CONT EXTERNAL RESIDENT S28A,330184,130280710,15-Jan-14,-315.20,Revenue,METROPOLITAN HOUSING TRUST,SP0000626
WANDSWORTH COUNCIL,ASC,SOCIAL SERVICES,CUSTOMER & CLIENT RECPTS - EXT,CL CONT EXTERNAL RESIDENT S28A,324142,130280710,03-Jan-14,-348.97,Revenue,PROGRESS HOUSING MARLOW,SP0000952
WANDSWORTH COUNCIL,ASC,SOCIAL SERVICES,CUSTOMER & CLIENT RECPTS - EXT,CL CONT EXTERNAL RESIDENT S28A,336519,130280710,24-Jan-14,-348.98,Revenue,PROGRESS HOUSING MARLOW,SP0000952
WANDSWORTH COUNCIL,ASC,SOCIAL SERVICES,CUSTOMER & CLIENT RECPTS - EXT,CL CONT EXTERNAL RESIDENTIAL,326492,130280720,07-Jan-14,-957.12,Revenue,THE LYLE PARK TRUST,SP0000070
WANDSWORTH COUNCIL,ASC,SOCIAL SERVICES,CUSTOMER & CLIENT RECPTS - EXT,CL CONT EXTERNAL RESIDENTIAL,324161,130280720,03-Jan-14,-315.20,Revenue,CMG HOMES LTD,SP0000075
WANDSWORTH COUNCIL,ASC,SOCIAL SERVICES,CUSTOMER & CLIENT RECPTS - EXT,CL CONT EXTERNAL RESIDENTIAL,324163,130280720,03-Jan-14,-315.20,Revenue,CMG HOMES LTD,SP0000075
WANDSWORTH COUNCIL,ASC,SOCIAL SERVICES,CUSTOMER & CLIENT RECPTS - EXT,CL CONT EXTERNAL RESIDENTIAL,324167,130280720,03-Jan-14,-315.20,Revenue,CMG HOMES LTD,SP0000075
WANDSWORTH COUNCIL,ASC,SOCIAL SERVICES,CUSTOMER & CLIENT RECPTS - EXT,CL CONT EXTERNAL RESIDENTIAL,324168,130280720,03-Jan-14,-315.20,Revenue,CMG HOMES LTD,SP0000075
WANDSWORTH COUNCIL,ASC,SOCIAL SERVICES,CUSTOMER & CLIENT RECPTS - EXT,CL CONT EXTERNAL RESIDENTIAL,324169,130280720,03-Jan-14,-486.00,Revenue,CMG HOMES LTD,SP0000075
WANDSWORTH COUNCIL,ASC,SOCIAL SERVICES,CUSTOMER & CLIENT RECPTS - EXT,CL CONT EXTERNAL RESIDENTIAL,324172,130280720,03-Jan-14,-352.60,Revenue,CMG HOMES LTD,SP0000075
WANDSWORTH COUNCIL,ASC,SOCIAL SERVICES,CUSTOMER & CLIENT RECPTS - EXT,CL CONT EXTERNAL RESIDENTIAL,324173,130280720,03-Jan-14,-315.20,Revenue,CMG HOMES LTD,SP0000075
WANDSWORTH COUNCIL,ASC,SOCIAL SERVICES,CUSTOMER & CLIENT RECPTS - EXT,CL CONT EXTERNAL RESIDENTIAL,324174,130280720,03-Jan-14,-315.20,Revenue,CMG HOMES LTD,SP0000075
WANDSWORTH COUNCIL,ASC,SOCIAL SERVICES,CUSTOMER & CLIENT RECPTS - EXT,CL CONT EXTERNAL RESIDENTIAL,324114,130280720,03-Jan-14,-348.97,Revenue,COUNTRY CARE,SP0000090
WANDSWORTH COUNCIL,ASC,SOCIAL SERVICES,CUSTOMER & CLIENT RECPTS - EXT,CL CONT EXTERNAL RESIDENTIAL,336078,130280720,23-Jan-14,-352.60,Revenue,NATIONAL SOCIETY FOR EPILEPSY,SP0000120
WANDSWORTH COUNCIL,ASC,SOCIAL SERVICES,CUSTOMER & CLIENT RECPTS - EXT,CL CONT EXTERNAL RESIDENTIAL,326370,130280720,07-Jan-14,-315.20,Revenue,SANCTUARY CARE LTD,SP0000121
WANDSWORTH COUNCIL,ASC,SOCIAL SERVICES,CUSTOMER & CLIENT RECPTS - EXT,CL CONT EXTERNAL RESIDENTIAL,324134,130280720,03-Jan-14,-296.94,Revenue,IN CHORUS LTD,SP0000129
WANDSWORTH COUNCIL,ASC,SOCIAL SERVICES,CUSTOMER & CLIENT RECPTS - EXT,CL CONT EXTERNAL RESIDENTIAL,337872,130280720,27-Jan-14,-296.93,Revenue,IN CHORUS LTD,SP0000129
WANDSWORTH COUNCIL,ASC,SOCIAL SERVICES,CUSTOMER & CLIENT RECPTS - EXT,CL CONT EXTERNAL RESIDENTIAL,324128,130280720,03-Jan-14,-352.91,Revenue,CENTRUST CARE HOMES LTD,SP0000141
WANDSWORTH COUNCIL,ASC,SOCIAL SERVICES,CUSTOMER & CLIENT RECPTS - EXT,CL CONT EXTERNAL RESIDENTIAL,337934,130280720,27-Jan-14,-352.91,Revenue,CENTRUST CARE HOMES LTD,SP0000141
WANDSWORTH COUNCIL,ASC,SOCIAL SERVICES,CUSTOMER & CLIENT RECPTS - EXT,CL CONT EXTERNAL RESIDENTIAL,324078,130280720,03-Jan-14,-348.97,Revenue,FRANCES TAYLOR FOUNDATION,SP0000142
WANDSWORTH COUNCIL,ASC,SOCIAL SERVICES,CUSTOMER & CLIENT RECPTS - EXT,CL CONT EXTERNAL RESIDENTIAL,324079,130280720,03-Jan-14,-348.97,Revenue,FRANCES TAYLOR FOUNDATION,SP0000142
WANDSWORTH COUNCIL,ASC,SOCIAL SERVICES,CUSTOMER & CLIENT RECPTS - EXT,CL CONT EXTERNAL RESIDENTIAL,324081,130280720,03-Jan-14,-348.97,Revenue,FRANCES TAYLOR FOUNDATION,SP0000142
WANDSWORTH COUNCIL,ASC,SOCIAL SERVICES,CUSTOMER & CLIENT RECPTS - EXT,CL CONT EXTERNAL RESIDENTIAL,337865,130280720,27-Jan-14,-348.98,Revenue,FRANCES TAYLOR FOUNDATION,SP0000142
WANDSWORTH COUNCIL,ASC,SOCIAL SERVICES,CUSTOMER & CLIENT RECPTS - EXT,CL CONT EXTERNAL RESIDENTIAL,337866,130280720,27-Jan-14,-348.98,Revenue,FRANCES TAYLOR FOUNDATION,SP0000142
WANDSWORTH COUNCIL,ASC,SOCIAL SERVICES,CUSTOMER & CLIENT RECPTS - EXT,CL CONT EXTERNAL RESIDENTIAL,337867,130280720,27-Jan-14,-348.98,Revenue,FRANCES TAYLOR FOUNDATION,SP0000142
WANDSWORTH COUNCIL,ASC,SOCIAL SERVICES,CUSTOMER & CLIENT RECPTS - EXT,CL CONT EXTERNAL RESIDENTIAL,324211,130280720,03-Jan-14,-348.97,Revenue,RESIDENTIAL CARE SERVICES T/A FRANKLYN L,SP0000147
WANDSWORTH COUNCIL,ASC,SOCIAL SERVICES,CUSTOMER & CLIENT RECPTS - EXT,CL CONT EXTERNAL RESIDENTIAL,341647,130280720,31-Jan-14,-348.98,Revenue,RESIDENTIAL CARE SERVICES T/A FRANKLYN L,SP0000147
WANDSWORTH COUNCIL,ASC,SOCIAL SERVICES,CUSTOMER & CLIENT RECPTS - EXT,CL CONT EXTERNAL RESIDENTIAL,324160,130280720,03-Jan-14,-348.97,Revenue,TANGLEWOOD CARE HOME,SP0000167
WANDSWORTH COUNCIL,ASC,SOCIAL SERVICES,CUSTOMER & CLIENT RECPTS - EXT,CL CONT EXTERNAL RESIDENTIAL,326983,130280720,08-Jan-14,-486.00,Revenue,THE CHESTNUTS,SP0000182
WANDSWORTH COUNCIL,ASC,SOCIAL SERVICES,CUSTOMER & CLIENT RECPTS - EXT,CL CONT EXTERNAL RESIDENTIAL,330093,130280720,15-Jan-14,-315.20,Revenue,THE CHESTNUTS,SP0000182
WANDSWORTH COUNCIL,ASC,SOCIAL SERVICES,CUSTOMER & CLIENT RECPTS - EXT,CL CONT EXTERNAL RESIDENTIAL,326210,130280720,07-Jan-14,-315.20,Revenue,ORCHARD VALE TRUST,SP0000214
WANDSWORTH COUNCIL,ASC,SOCIAL SERVICES,CUSTOMER & CLIENT RECPTS - EXT,CL CONT EXTERNAL RESIDENTIAL,324154,130280720,03-Jan-14,-486.00,Revenue,ST MARYS RESIDENTIAL HOME,SP0000215
WANDSWORTH COUNCIL,ASC,SOCIAL SERVICES,CUSTOMER & CLIENT RECPTS - EXT,CL CONT EXTERNAL RESIDENTIAL,324138,130280720,03-Jan-14,-315.20,Revenue,NAS SERVICES LIMITED,SP0000217
WANDSWORTH COUNCIL,ASC,SOCIAL SERVICES,CUSTOMER & CLIENT RECPTS - EXT,CL CONT EXTERNAL RESIDENTIAL,324139,130280720,03-Jan-14,-315.20,Revenue,NAS SERVICES LIMITED,SP0000217
WANDSWORTH COUNCIL,ASC,SOCIAL SERVICES,CUSTOMER & CLIENT RECPTS - EXT,CL CONT EXTERNAL RESIDENTIAL,330156,130280720,15-Jan-14,-315.20,Revenue,NAS SERVICES LIMITED,SP0000217
WANDSWORTH COUNCIL,ASC,SOCIAL SERVICES,CUSTOMER & CLIENT RECPTS - EXT,CL CONT EXTERNAL RESIDENTIAL,326227,130280720,07-Jan-14,-315.20,Revenue,SPRING LAKE,SP0000223
WANDSWORTH COUNCIL,ASC,SOCIAL SERVICES,CUSTOMER & CLIENT RECPTS - EXT,CL CONT EXTERNAL RESIDENTIAL,326228,130280720,07-Jan-14,-352.60,Revenue,SPRING LAKE,SP0000223
WANDSWORTH COUNCIL,ASC,SOCIAL SERVICES,CUSTOMER & CLIENT RECPTS - EXT,CL CONT EXTERNAL RESIDENTIAL,332148,130280720,17-Jan-14,-315.20,Revenue,HAYDON PARK LODGE LTD,SP0000231
WANDSWORTH COUNCIL,ASC,SOCIAL SERVICES,CUSTOMER & CLIENT RECPTS - EXT,CL CONT EXTERNAL RESIDENTIAL,332166,130280720,17-Jan-14,-605.56,Revenue,CAMERON LODGE LIMITED,SP0000271
WANDSWORTH COUNCIL,ASC,SOCIAL SERVICES,CUSTOMER & CLIENT RECPTS - EXT,CL CONT EXTERNAL RESIDENTIAL,336069,130280720,23-Jan-14,-390.37,Revenue,BROOKDALE CARE,SP0000282
WANDSWORTH COUNCIL,ASC,SOCIAL SERVICES,CUSTOMER & CLIENT RECPTS - EXT,CL CONT EXTERNAL RESIDENTIAL,333026,130280720,20-Jan-14,-315.20,Revenue,CRAEGMOOR FACILITIES CO LTD,SP0000306
WANDSWORTH COUNCIL,ASC,SOCIAL SERVICES,CUSTOMER & CLIENT RECPTS - EXT,CL CONT EXTERNAL RESIDENTIAL,333809,130280720,21-Jan-14,-486.00,Revenue,OXENDEN HOUSE CARE HOME,SP0000322
WANDSWORTH COUNCIL,ASC,SOCIAL SERVICES,CUSTOMER & CLIENT RECPTS - EXT,CL CONT EXTERNAL RESIDENTIAL,324158,130280720,03-Jan-14,-348.97,Revenue,DOLPHIN HOMES LTD,SP0000331
WANDSWORTH COUNCIL,ASC,SOCIAL SERVICES,CUSTOMER & CLIENT RECPTS - EXT,CL CONT EXTERNAL RESIDENTIAL,324159,130280720,03-Jan-14,-348.97,Revenue,DOLPHIN HOMES LTD,SP0000331
WANDSWORTH COUNCIL,ASC,SOCIAL SERVICES,CUSTOMER & CLIENT RECPTS - EXT,CL CONT EXTERNAL RESIDENTIAL,341650,130280720,31-Jan-14,-348.98,Revenue,DOLPHIN HOMES LTD,SP0000331
WANDSWORTH COUNCIL,ASC,SOCIAL SERVICES,CUSTOMER & CLIENT RECPTS - EXT,CL CONT EXTERNAL RESIDENTIAL,324143,130280720,03-Jan-14,-315.20,Revenue,NORWOOD SCHOOLS LTD,SP0000332
WANDSWORTH COUNCIL,ASC,SOCIAL SERVICES,CUSTOMER & CLIENT RECPTS - EXT,CL CONT EXTERNAL RESIDENTIAL,324144,130280720,03-Jan-14,-315.20,Revenue,NORWOOD SCHOOLS LTD,SP0000332
WANDSWORTH COUNCIL,ASC,SOCIAL SERVICES,CUSTOMER & CLIENT RECPTS - EXT,CL CONT EXTERNAL RESIDENTIAL,332163,130280720,17-Jan-14,-315.20,Revenue,NORWOOD SCHOOLS LTD,SP0000332
WANDSWORTH COUNCIL,ASC,SOCIAL SERVICES,CUSTOMER & CLIENT RECPTS - EXT,CL CONT EXTERNAL RESIDENTIAL,332164,130280720,17-Jan-14,-315.20,Revenue,NORWOOD SCHOOLS LTD,SP0000332
WANDSWORTH COUNCIL,ASC,SOCIAL SERVICES,CUSTOMER & CLIENT RECPTS - EXT,CL CONT EXTERNAL RESIDENTIAL,324137,130280720,03-Jan-14,-538.07,Revenue,THE MANOR,SP0000340
WANDSWORTH COUNCIL,ASC,SOCIAL SERVICES,CUSTOMER & CLIENT RECPTS - EXT,CL CONT EXTERNAL RESIDENTIAL,341649,130280720,31-Jan-14,-538.08,Revenue,THE MANOR,SP0000340
WANDSWORTH COUNCIL,ASC,SOCIAL SERVICES,CUSTOMER & CLIENT RECPTS - EXT,CL CONT EXTERNAL RESIDENTIAL,326981,130280720,08-Jan-14,-538.07,Revenue,HEYWOODS GRANGE LTD,SP0000361
WANDSWORTH COUNCIL,ASC,SOCIAL SERVICES,CUSTOMER & CLIENT RECPTS - EXT,CL CONT EXTERNAL RESIDENTIAL,340722,130280720,30-Jan-14,-538.08,Revenue,HEYWOODS GRANGE LTD,SP0000361
WANDSWORTH COUNCIL,ASC,SOCIAL SERVICES,CUSTOMER & CLIENT RECPTS - EXT,CL CONT EXTERNAL RESIDENTIAL,337855,130280720,27-Jan-14,-259.48,Revenue,VOYAGE CARE LTD,SP0000366
WANDSWORTH COUNCIL,ASC,SOCIAL SERVICES,CUSTOMER & CLIENT RECPTS - EXT,CL CONT EXTERNAL RESIDENTIAL,337856,130280720,27-Jan-14,-391.00,Revenue,VOYAGE CARE LTD,SP0000366
WANDSWORTH COUNCIL,ASC,SOCIAL SERVICES,CUSTOMER & CLIENT RECPTS - EXT,CL CONT EXTERNAL RESIDENTIAL,337863,130280720,27-Jan-14,-352.60,Revenue,VOYAGE CARE LTD,SP0000366
WANDSWORTH COUNCIL,ASC,SOCIAL SERVICES,CUSTOMER & CLIENT RECPTS - EXT,CL CONT EXTERNAL RESIDENTIAL,337864,130280720,27-Jan-14,-352.60,Revenue,VOYAGE CARE LTD,SP0000366
WANDSWORTH COUNCIL,ASC,SOCIAL SERVICES,CUSTOMER & CLIENT RECPTS - EXT,CL CONT EXTERNAL RESIDENTIAL,330131,130280720,15-Jan-14,-347.64,Revenue,ST DAVIDS CARE IN THE COMMUNITY,SP0000379
WANDSWORTH COUNCIL,ASC,SOCIAL SERVICES,CUSTOMER & CLIENT RECPTS - EXT,CL CONT EXTERNAL RESIDENTIAL,330132,130280720,15-Jan-14,-348.97,Revenue,ST DAVIDS CARE IN THE COMMUNITY,SP0000379
WANDSWORTH COUNCIL,ASC,SOCIAL SERVICES,CUSTOMER & CLIENT RECPTS - EXT,CL CONT EXTERNAL RESIDENTIAL,324127,130280720,03-Jan-14,-348.97,Revenue,ESSEX CARE CONSORTIUM,SP0000387
WANDSWORTH COUNCIL,ASC,SOCIAL SERVICES,CUSTOMER & CLIENT RECPTS - EXT,CL CONT EXTERNAL RESIDENTIAL,340726,130280720,30-Jan-14,-348.98,Revenue,ESSEX CARE CONSORTIUM,SP0000387
WANDSWORTH COUNCIL,ASC,SOCIAL SERVICES,CUSTOMER & CLIENT RECPTS - EXT,CL CONT EXTERNAL RESIDENTIAL,324240,130280720,03-Jan-14,-315.20,Revenue,POTENSIAL LTD,SP0000395
WANDSWORTH COUNCIL,ASC,SOCIAL SERVICES,CUSTOMER & CLIENT RECPTS - EXT,CL CONT EXTERNAL RESIDENTIAL,336076,130280720,23-Jan-14,-315.20,Revenue,POTENSIAL LTD,SP0000395
WANDSWORTH COUNCIL,ASC,SOCIAL SERVICES,CUSTOMER & CLIENT RECPTS - EXT,CL CONT EXTERNAL RESIDENTIAL,332151,130280720,17-Jan-14,-315.20,Revenue,KENILWORTH RESIDENTIAL HOME,SP0000432
WANDSWORTH COUNCIL,ASC,SOCIAL SERVICES,CUSTOMER & CLIENT RECPTS - EXT,CL CONT EXTERNAL RESIDENTIAL,332152,130280720,17-Jan-14,-486.00,Revenue,KENILWORTH RESIDENTIAL HOME,SP0000432
WANDSWORTH COUNCIL,ASC,SOCIAL SERVICES,CUSTOMER & CLIENT RECPTS - EXT,CL CONT EXTERNAL RESIDENTIAL,337862,130280720,27-Jan-14,-352.60,Revenue,THE WELL HOUSE,SP0000448
WANDSWORTH COUNCIL,ASC,SOCIAL SERVICES,CUSTOMER & CLIENT RECPTS - EXT,CL CONT EXTERNAL RESIDENTIAL,337906,130280720,27-Jan-14,-315.21,Revenue,THE WELL HOUSE,SP0000448
WANDSWORTH COUNCIL,ASC,SOCIAL SERVICES,CUSTOMER & CLIENT RECPTS - EXT,CL CONT EXTERNAL RESIDENTIAL,330138,130280720,15-Jan-14,-315.20,Revenue,MACINTYRE CARE,SP0000473
WANDSWORTH COUNCIL,ASC,SOCIAL SERVICES,CUSTOMER & CLIENT RECPTS - EXT,CL CONT EXTERNAL RESIDENTIAL,330139,130280720,15-Jan-14,-315.20,Revenue,MACINTYRE CARE,SP0000473
WANDSWORTH COUNCIL,ASC,SOCIAL SERVICES,CUSTOMER & CLIENT RECPTS - EXT,CL CONT EXTERNAL RESIDENTIAL,330140,130280720,15-Jan-14,-486.00,Revenue,MACINTYRE CARE,SP0000473
WANDSWORTH COUNCIL,ASC,SOCIAL SERVICES,CUSTOMER & CLIENT RECPTS - EXT,CL CONT EXTERNAL RESIDENTIAL,330141,130280720,15-Jan-14,-315.20,Revenue,MACINTYRE CARE,SP0000473
WANDSWORTH COUNCIL,ASC,SOCIAL SERVICES,CUSTOMER & CLIENT RECPTS - EXT,CL CONT EXTERNAL RESIDENTIAL,330143,130280720,15-Jan-14,-315.20,Revenue,MACINTYRE CARE,SP0000473
WANDSWORTH COUNCIL,ASC,SOCIAL SERVICES,CUSTOMER & CLIENT RECPTS - EXT,CL CONT EXTERNAL RESIDENTIAL,330144,130280720,15-Jan-14,-352.60,Revenue,MACINTYRE CARE,SP0000473
WANDSWORTH COUNCIL,ASC,SOCIAL SERVICES,CUSTOMER & CLIENT RECPTS - EXT,CL CONT EXTERNAL RESIDENTIAL,330145,130280720,15-Jan-14,-315.20,Revenue,MACINTYRE CARE,SP0000473
WANDSWORTH COUNCIL,ASC,SOCIAL SERVICES,CUSTOMER & CLIENT RECPTS - EXT,CL CONT EXTERNAL RESIDENTIAL,330146,130280720,15-Jan-14,-315.20,Revenue,MACINTYRE CARE,SP0000473
WANDSWORTH COUNCIL,ASC,SOCIAL SERVICES,CUSTOMER & CLIENT RECPTS - EXT,CL CONT EXTERNAL RESIDENTIAL,330147,130280720,15-Jan-14,-315.20,Revenue,MACINTYRE CARE,SP0000473
WANDSWORTH COUNCIL,ASC,SOCIAL SERVICES,CUSTOMER & CLIENT RECPTS - EXT,CL CONT EXTERNAL RESIDENTIAL,330153,130280720,15-Jan-14,-315.20,Revenue,MACINTYRE CARE,SP0000473
WANDSWORTH COUNCIL,ASC,SOCIAL SERVICES,CUSTOMER & CLIENT RECPTS - EXT,CL CONT EXTERNAL RESIDENTIAL,330154,130280720,15-Jan-14,-486.00,Revenue,MACINTYRE CARE,SP0000473
WANDSWORTH COUNCIL,ASC,SOCIAL SERVICES,CUSTOMER & CLIENT RECPTS - EXT,CL CONT EXTERNAL RESIDENTIAL,330160,130280720,15-Jan-14,-486.00,Revenue,MACINTYRE CARE,SP0000473
WANDSWORTH COUNCIL,ASC,SOCIAL SERVICES,CUSTOMER & CLIENT RECPTS - EXT,CL CONT EXTERNAL RESIDENTIAL,330162,130280720,15-Jan-14,-315.20,Revenue,MACINTYRE CARE,SP0000473
WANDSWORTH COUNCIL,ASC,SOCIAL SERVICES,CUSTOMER & CLIENT RECPTS - EXT,CL CONT EXTERNAL RESIDENTIAL,330163,130280720,15-Jan-14,-325.48,Revenue,MACINTYRE CARE,SP0000473
WANDSWORTH COUNCIL,ASC,SOCIAL SERVICES,CUSTOMER & CLIENT RECPTS - EXT,CL CONT EXTERNAL RESIDENTIAL,330164,130280720,15-Jan-14,-500.08,Revenue,MACINTYRE CARE,SP0000473
WANDSWORTH COUNCIL,ASC,SOCIAL SERVICES,CUSTOMER & CLIENT RECPTS - EXT,CL CONT EXTERNAL RESIDENTIAL,330165,130280720,15-Jan-14,-315.20,Revenue,MACINTYRE CARE,SP0000473
WANDSWORTH COUNCIL,ASC,SOCIAL SERVICES,CUSTOMER & CLIENT RECPTS - EXT,CL CONT EXTERNAL RESIDENTIAL,337860,130280720,27-Jan-14,-486.00,Revenue,SURREY & BORDERS PARTNERSHIP NHS TRUST,SP0000501
WANDSWORTH COUNCIL,ASC,SOCIAL SERVICES,CUSTOMER & CLIENT RECPTS - EXT,CL CONT EXTERNAL RESIDENTIAL,328692,130280720,09-Jan-14,-348.97,Revenue,SEEABILITY,SP0000572
WANDSWORTH COUNCIL,ASC,SOCIAL SERVICES,CUSTOMER & CLIENT RECPTS - EXT,CL CONT EXTERNAL RESIDENTIAL,324109,130280720,03-Jan-14,-423.11,Revenue,THE COMMUNITY CARE COMPANY UK LTD,SP0000576
WANDSWORTH COUNCIL,ASC,SOCIAL SERVICES,CUSTOMER & CLIENT RECPTS - EXT,CL CONT EXTERNAL RESIDENTIAL,324110,130280720,03-Jan-14,-348.97,Revenue,THE COMMUNITY CARE COMPANY UK LTD,SP0000576
WANDSWORTH COUNCIL,ASC,SOCIAL SERVICES,CUSTOMER & CLIENT RECPTS - EXT,CL CONT EXTERNAL RESIDENTIAL,324111,130280720,03-Jan-14,-348.97,Revenue,THE COMMUNITY CARE COMPANY UK LTD,SP0000576
WANDSWORTH COUNCIL,ASC,SOCIAL SERVICES,CUSTOMER & CLIENT RECPTS - EXT,CL CONT EXTERNAL RESIDENTIAL,324120,130280720,03-Jan-14,-348.97,Revenue,THE COMMUNITY CARE COMPANY UK LTD,SP0000576
WANDSWORTH COUNCIL,ASC,SOCIAL SERVICES,CUSTOMER & CLIENT RECPTS - EXT,CL CONT EXTERNAL RESIDENTIAL,324122,130280720,03-Jan-14,-348.97,Revenue,THE COMMUNITY CARE COMPANY UK LTD,SP0000576
WANDSWORTH COUNCIL,ASC,SOCIAL SERVICES,CUSTOMER & CLIENT RECPTS - EXT,CL CONT EXTERNAL RESIDENTIAL,340708,130280720,30-Jan-14,-423.10,Revenue,THE COMMUNITY CARE COMPANY UK LTD,SP0000576
WANDSWORTH COUNCIL,ASC,SOCIAL SERVICES,CUSTOMER & CLIENT RECPTS - EXT,CL CONT EXTERNAL RESIDENTIAL,340709,130280720,30-Jan-14,-348.98,Revenue,THE COMMUNITY CARE COMPANY UK LTD,SP0000576
WANDSWORTH COUNCIL,ASC,SOCIAL SERVICES,CUSTOMER & CLIENT RECPTS - EXT,CL CONT EXTERNAL RESIDENTIAL,340710,130280720,30-Jan-14,-348.98,Revenue,THE COMMUNITY CARE COMPANY UK LTD,SP0000576
WANDSWORTH COUNCIL,ASC,SOCIAL SERVICES,CUSTOMER & CLIENT RECPTS - EXT,CL CONT EXTERNAL RESIDENTIAL,340721,130280720,30-Jan-14,-348.98,Revenue,THE COMMUNITY CARE COMPANY UK LTD,SP0000576
WANDSWORTH COUNCIL,ASC,SOCIAL SERVICES,CUSTOMER & CLIENT RECPTS - EXT,CL CONT EXTERNAL RESIDENTIAL,340724,130280720,30-Jan-14,-348.98,Revenue,THE COMMUNITY CARE COMPANY UK LTD,SP0000576
WANDSWORTH COUNCIL,ASC,SOCIAL SERVICES,CUSTOMER & CLIENT RECPTS - EXT,CL CONT EXTERNAL RESIDENTIAL,324212,130280720,03-Jan-14,-348.97,Revenue,BIRCC,SP0000584
WANDSWORTH COUNCIL,ASC,SOCIAL SERVICES,CUSTOMER & CLIENT RECPTS - EXT,CL CONT EXTERNAL RESIDENTIAL,340743,130280720,30-Jan-14,-348.98,Revenue,BIRCC,SP0000584
WANDSWORTH COUNCIL,ASC,SOCIAL SERVICES,CUSTOMER & CLIENT RECPTS - EXT,CL CONT EXTERNAL RESIDENTIAL,333816,130280720,21-Jan-14,-315.20,Revenue,THE REGARD PARTNERSHIP,SP0000588
WANDSWORTH COUNCIL,ASC,SOCIAL SERVICES,CUSTOMER & CLIENT RECPTS - EXT,CL CONT EXTERNAL RESIDENTIAL,330155,130280720,15-Jan-14,-315.20,Revenue,EVERGREEN PARTNERSHIP,SP0000597
WANDSWORTH COUNCIL,ASC,SOCIAL SERVICES,CUSTOMER & CLIENT RECPTS - EXT,CL CONT EXTERNAL RESIDENTIAL,330086,130280720,15-Jan-14,-315.20,Revenue,LAETUS LODGE,SP0000600
WANDSWORTH COUNCIL,ASC,SOCIAL SERVICES,CUSTOMER & CLIENT RECPTS - EXT,CL CONT EXTERNAL RESIDENTIAL,330089,130280720,15-Jan-14,-238.64,Revenue,LAETUS LODGE,SP0000600
WANDSWORTH COUNCIL,ASC,SOCIAL SERVICES,CUSTOMER & CLIENT RECPTS - EXT,CL CONT EXTERNAL RESIDENTIAL,330090,130280720,15-Jan-14,-352.60,Revenue,LAETUS LODGE,SP0000600
WANDSWORTH COUNCIL,ASC,SOCIAL SERVICES,CUSTOMER & CLIENT RECPTS - EXT,CL CONT EXTERNAL RESIDENTIAL,330091,130280720,15-Jan-14,-315.20,Revenue,LAETUS LODGE,SP0000600
WANDSWORTH COUNCIL,ASC,SOCIAL SERVICES,CUSTOMER & CLIENT RECPTS - EXT,CL CONT EXTERNAL RESIDENTIAL,330092,130280720,15-Jan-14,-315.20,Revenue,LAETUS LODGE,SP0000600
WANDSWORTH COUNCIL,ASC,SOCIAL SERVICES,CUSTOMER & CLIENT RECPTS - EXT,CL CONT EXTERNAL RESIDENTIAL,333031,130280720,20-Jan-14,-523.65,Revenue,LAETUS LODGE,SP0000600
WANDSWORTH COUNCIL,ASC,SOCIAL SERVICES,CUSTOMER & CLIENT RECPTS - EXT,CL CONT EXTERNAL RESIDENTIAL,333032,130280720,20-Jan-14,-391.00,Revenue,LAETUS LODGE,SP0000600
WANDSWORTH COUNCIL,ASC,SOCIAL SERVICES,CUSTOMER & CLIENT RECPTS - EXT,CL CONT EXTERNAL RESIDENTIAL,333033,130280720,20-Jan-14,-391.00,Revenue,LAETUS LODGE,SP0000600
WANDSWORTH COUNCIL,ASC,SOCIAL SERVICES,CUSTOMER & CLIENT RECPTS - EXT,CL CONT EXTERNAL RESIDENTIAL,324175,130280720,03-Jan-14,-348.97,Revenue,MENCAP,SP0000604
WANDSWORTH COUNCIL,ASC,SOCIAL SERVICES,CUSTOMER & CLIENT RECPTS - EXT,CL CONT EXTERNAL RESIDENTIAL,324176,130280720,03-Jan-14,-348.97,Revenue,MENCAP,SP0000604
WANDSWORTH COUNCIL,ASC,SOCIAL SERVICES,CUSTOMER & CLIENT RECPTS - EXT,CL CONT EXTERNAL RESIDENTIAL,324188,130280720,03-Jan-14,-348.97,Revenue,MENCAP,SP0000604
WANDSWORTH COUNCIL,ASC,SOCIAL SERVICES,CUSTOMER & CLIENT RECPTS - EXT,CL CONT EXTERNAL RESIDENTIAL,336503,130280720,24-Jan-14,-348.98,Revenue,MENCAP,SP0000604
WANDSWORTH COUNCIL,ASC,SOCIAL SERVICES,CUSTOMER & CLIENT RECPTS - EXT,CL CONT EXTERNAL RESIDENTIAL,336504,130280720,24-Jan-14,-348.98,Revenue,MENCAP,SP0000604
WANDSWORTH COUNCIL,ASC,SOCIAL SERVICES,CUSTOMER & CLIENT RECPTS - EXT,CL CONT EXTERNAL RESIDENTIAL,336517,130280720,24-Jan-14,-348.98,Revenue,MENCAP,SP0000604
WANDSWORTH COUNCIL,ASC,SOCIAL SERVICES,CUSTOMER & CLIENT RECPTS - EXT,CL CONT EXTERNAL RESIDENTIAL,330105,130280720,15-Jan-14,-315.20,Revenue,METROPOLITAN HOUSING TRUST,SP0000626
WANDSWORTH COUNCIL,ASC,SOCIAL SERVICES,CUSTOMER & CLIENT RECPTS - EXT,CL CONT EXTERNAL RESIDENTIAL,330106,130280720,15-Jan-14,-486.00,Revenue,METROPOLITAN HOUSING TRUST,SP0000626
WANDSWORTH COUNCIL,ASC,SOCIAL SERVICES,CUSTOMER & CLIENT RECPTS - EXT,CL CONT EXTERNAL RESIDENTIAL,330107,130280720,15-Jan-14,-315.20,Revenue,METROPOLITAN HOUSING TRUST,SP0000626
WANDSWORTH COUNCIL,ASC,SOCIAL SERVICES,CUSTOMER & CLIENT RECPTS - EXT,CL CONT EXTERNAL RESIDENTIAL,330109,130280720,15-Jan-14,-315.20,Revenue,METROPOLITAN HOUSING TRUST,SP0000626
WANDSWORTH COUNCIL,ASC,SOCIAL SERVICES,CUSTOMER & CLIENT RECPTS - EXT,CL CONT EXTERNAL RESIDENTIAL,330111,130280720,15-Jan-14,-486.00,Revenue,METROPOLITAN HOUSING TRUST,SP0000626
WANDSWORTH COUNCIL,ASC,SOCIAL SERVICES,CUSTOMER & CLIENT RECPTS - EXT,CL CONT EXTERNAL RESIDENTIAL,330113,130280720,15-Jan-14,-315.20,Revenue,METROPOLITAN HOUSING TRUST,SP0000626
WANDSWORTH COUNCIL,ASC,SOCIAL SERVICES,CUSTOMER & CLIENT RECPTS - EXT,CL CONT EXTERNAL RESIDENTIAL,330114,130280720,15-Jan-14,-315.20,Revenue,METROPOLITAN HOUSING TRUST,SP0000626
WANDSWORTH COUNCIL,ASC,SOCIAL SERVICES,CUSTOMER & CLIENT RECPTS - EXT,CL CONT EXTERNAL RESIDENTIAL,330179,130280720,15-Jan-14,-380.60,Revenue,METROPOLITAN HOUSING TRUST,SP0000626
WANDSWORTH COUNCIL,ASC,SOCIAL SERVICES,CUSTOMER & CLIENT RECPTS - EXT,CL CONT EXTERNAL RESIDENTIAL,330180,130280720,15-Jan-14,-486.00,Revenue,METROPOLITAN HOUSING TRUST,SP0000626
WANDSWORTH COUNCIL,ASC,SOCIAL SERVICES,CUSTOMER & CLIENT RECPTS - EXT,CL CONT EXTERNAL RESIDENTIAL,330181,130280720,15-Jan-14,-315.20,Revenue,METROPOLITAN HOUSING TRUST,SP0000626
WANDSWORTH COUNCIL,ASC,SOCIAL SERVICES,CUSTOMER & CLIENT RECPTS - EXT,CL CONT EXTERNAL RESIDENTIAL,330182,130280720,15-Jan-14,-380.60,Revenue,METROPOLITAN HOUSING TRUST,SP0000626
WANDSWORTH COUNCIL,ASC,SOCIAL SERVICES,CUSTOMER & CLIENT RECPTS - EXT,CL CONT EXTERNAL RESIDENTIAL,330183,130280720,15-Jan-14,-315.20,Revenue,METROPOLITAN HOUSING TRUST,SP0000626
WANDSWORTH COUNCIL,ASC,SOCIAL SERVICES,CUSTOMER & CLIENT RECPTS - EXT,CL CONT EXTERNAL RESIDENTIAL,333059,130280720,20-Jan-14,-233.55,Revenue,METROPOLITAN HOUSING TRUST,SP0000626
WANDSWORTH COUNCIL,ASC,SOCIAL SERVICES,CUSTOMER & CLIENT RECPTS - EXT,CL CONT EXTERNAL RESIDENTIAL,324108,130280720,03-Jan-14,-348.97,Revenue,SUSSEX AUTISTIC COMMUNITY TRUST(CARE SER,SP0000652
WANDSWORTH COUNCIL,ASC,SOCIAL SERVICES,CUSTOMER & CLIENT RECPTS - EXT,CL CONT EXTERNAL RESIDENTIAL,333057,130280720,20-Jan-14,-315.20,Revenue,LIVABILITY,SP0000669
WANDSWORTH COUNCIL,ASC,SOCIAL SERVICES,CUSTOMER & CLIENT RECPTS - EXT,CL CONT EXTERNAL RESIDENTIAL,333058,130280720,20-Jan-14,-315.20,Revenue,LIVABILITY,SP0000669
WANDSWORTH COUNCIL,ASC,SOCIAL SERVICES,CUSTOMER & CLIENT RECPTS - EXT,CL CONT EXTERNAL RESIDENTIAL,324184,130280720,03-Jan-14,-315.20,Revenue,LOVING CARE LTD,SP0000670
WANDSWORTH COUNCIL,ASC,SOCIAL SERVICES,CUSTOMER & CLIENT RECPTS - EXT,CL CONT EXTERNAL RESIDENTIAL,324185,130280720,03-Jan-14,-315.20,Revenue,LOVING CARE LTD,SP0000670
WANDSWORTH COUNCIL,ASC,SOCIAL SERVICES,CUSTOMER & CLIENT RECPTS - EXT,CL CONT EXTERNAL RESIDENTIAL,324186,130280720,03-Jan-14,-315.20,Revenue,LOVING CARE LTD,SP0000670
WANDSWORTH COUNCIL,ASC,SOCIAL SERVICES,CUSTOMER & CLIENT RECPTS - EXT,CL CONT EXTERNAL RESIDENTIAL,324187,130280720,03-Jan-14,-315.20,Revenue,LOVING CARE LTD,SP0000670
WANDSWORTH COUNCIL,ASC,SOCIAL SERVICES,CUSTOMER & CLIENT RECPTS - EXT,CL CONT EXTERNAL RESIDENTIAL,324190,130280720,03-Jan-14,-315.20,Revenue,LOVING CARE LTD,SP0000670
WANDSWORTH COUNCIL,ASC,SOCIAL SERVICES,CUSTOMER & CLIENT RECPTS - EXT,CL CONT EXTERNAL RESIDENTIAL,326222,130280720,07-Jan-14,-315.20,Revenue,LOVING CARE LTD,SP0000670
WANDSWORTH COUNCIL,ASC,SOCIAL SERVICES,CUSTOMER & CLIENT RECPTS - EXT,CL CONT EXTERNAL RESIDENTIAL,326223,130280720,07-Jan-14,-315.20,Revenue,LOVING CARE LTD,SP0000670
WANDSWORTH COUNCIL,ASC,SOCIAL SERVICES,CUSTOMER & CLIENT RECPTS - EXT,CL CONT EXTERNAL RESIDENTIAL,326224,130280720,07-Jan-14,-315.20,Revenue,LOVING CARE LTD,SP0000670
WANDSWORTH COUNCIL,ASC,SOCIAL SERVICES,CUSTOMER & CLIENT RECPTS - EXT,CL CONT EXTERNAL RESIDENTIAL,326225,130280720,07-Jan-14,-315.20,Revenue,LOVING CARE LTD,SP0000670
WANDSWORTH COUNCIL,ASC,SOCIAL SERVICES,CUSTOMER & CLIENT RECPTS - EXT,CL CONT EXTERNAL RESIDENTIAL,326229,130280720,07-Jan-14,-315.20,Revenue,LOVING CARE LTD,SP0000670
WANDSWORTH COUNCIL,ASC,SOCIAL SERVICES,CUSTOMER & CLIENT RECPTS - EXT,CL CONT EXTERNAL RESIDENTIAL,336058,130280720,23-Jan-14,-315.20,Revenue,LOVING CARE LTD,SP0000670
WANDSWORTH COUNCIL,ASC,SOCIAL SERVICES,CUSTOMER & CLIENT RECPTS - EXT,CL CONT EXTERNAL RESIDENTIAL,336059,130280720,23-Jan-14,-315.20,Revenue,LOVING CARE LTD,SP0000670
WANDSWORTH COUNCIL,ASC,SOCIAL SERVICES,CUSTOMER & CLIENT RECPTS - EXT,CL CONT EXTERNAL RESIDENTIAL,336060,130280720,23-Jan-14,-315.20,Revenue,LOVING CARE LTD,SP0000670
WANDSWORTH COUNCIL,ASC,SOCIAL SERVICES,CUSTOMER & CLIENT RECPTS - EXT,CL CONT EXTERNAL RESIDENTIAL,336061,130280720,23-Jan-14,-315.20,Revenue,LOVING CARE LTD,SP0000670
WANDSWORTH COUNCIL,ASC,SOCIAL SERVICES,CUSTOMER & CLIENT RECPTS - EXT,CL CONT EXTERNAL RESIDENTIAL,336522,130280720,24-Jan-14,-315.21,Revenue,LOVING CARE LTD,SP0000670
WANDSWORTH COUNCIL,ASC,SOCIAL SERVICES,CUSTOMER & CLIENT RECPTS - EXT,CL CONT EXTERNAL RESIDENTIAL,326970,130280720,08-Jan-14,-486.00,Revenue,COTTAGE & RURAL ENTERPRISES LTD,SP0000693
WANDSWORTH COUNCIL,ASC,SOCIAL SERVICES,CUSTOMER & CLIENT RECPTS - EXT,CL CONT EXTERNAL RESIDENTIAL,326971,130280720,08-Jan-14,-490.92,Revenue,COTTAGE & RURAL ENTERPRISES LTD,SP0000693
WANDSWORTH COUNCIL,ASC,SOCIAL SERVICES,CUSTOMER & CLIENT RECPTS - EXT,CL CONT EXTERNAL RESIDENTIAL,326972,130280720,08-Jan-14,-315.20,Revenue,COTTAGE & RURAL ENTERPRISES LTD,SP0000693
WANDSWORTH COUNCIL,ASC,SOCIAL SERVICES,CUSTOMER & CLIENT RECPTS - EXT,CL CONT EXTERNAL RESIDENTIAL,324136,130280720,03-Jan-14,-348.97,Revenue,THE MANOR HOUSE,SP0000728
WANDSWORTH COUNCIL,ASC,SOCIAL SERVICES,CUSTOMER & CLIENT RECPTS - EXT,CL CONT EXTERNAL RESIDENTIAL,330116,130280720,15-Jan-14,-348.98,Revenue,THE MANOR HOUSE,SP0000728
WANDSWORTH COUNCIL,ASC,SOCIAL SERVICES,CUSTOMER & CLIENT RECPTS - EXT,CL CONT EXTERNAL RESIDENTIAL,330117,130280720,15-Jan-14,-337.71,Revenue,THE MANOR HOUSE,SP0000728
WANDSWORTH COUNCIL,ASC,SOCIAL SERVICES,CUSTOMER & CLIENT RECPTS - EXT,CL CONT EXTERNAL RESIDENTIAL,336514,130280720,24-Jan-14,-348.98,Revenue,THE MANOR HOUSE,SP0000728
WANDSWORTH COUNCIL,ASC,SOCIAL SERVICES,CUSTOMER & CLIENT RECPTS - EXT,CL CONT EXTERNAL RESIDENTIAL,336056,130280720,23-Jan-14,-352.60,Revenue,WHITE ROSE CARE,SP0000780
WANDSWORTH COUNCIL,ASC,SOCIAL SERVICES,CUSTOMER & CLIENT RECPTS - EXT,CL CONT EXTERNAL RESIDENTIAL,340749,130280720,30-Jan-14,-352.60,Revenue,WHITE ROSE CARE,SP0000780
WANDSWORTH COUNCIL,ASC,SOCIAL SERVICES,CUSTOMER & CLIENT RECPTS - EXT,CL CONT EXTERNAL RESIDENTIAL,330130,130280720,15-Jan-14,-315.20,Revenue,GLENCARE GROUP,SP0000791
WANDSWORTH COUNCIL,ASC,SOCIAL SERVICES,CUSTOMER & CLIENT RECPTS - EXT,CL CONT EXTERNAL RESIDENTIAL,333820,130280720,21-Jan-14,-315.20,Revenue,GLENCARE GROUP,SP0000791
WANDSWORTH COUNCIL,ASC,SOCIAL SERVICES,CUSTOMER & CLIENT RECPTS - EXT,CL CONT EXTERNAL RESIDENTIAL,330083,130280720,15-Jan-14,-315.20,Revenue,FREEWAYS TRUST LTD,SP0000793
WANDSWORTH COUNCIL,ASC,SOCIAL SERVICES,CUSTOMER & CLIENT RECPTS - EXT,CL CONT EXTERNAL RESIDENTIAL,326968,130280720,08-Jan-14,-315.20,Revenue,UNITED RESPONSE,SP0000797
WANDSWORTH COUNCIL,ASC,SOCIAL SERVICES,CUSTOMER & CLIENT RECPTS - EXT,CL CONT EXTERNAL RESIDENTIAL,340750,130280720,30-Jan-14,-348.98,Revenue,PROSPECTS,SP0000800
WANDSWORTH COUNCIL,ASC,SOCIAL SERVICES,CUSTOMER & CLIENT RECPTS - EXT,CL CONT EXTERNAL RESIDENTIAL,324106,130280720,03-Jan-14,-348.97,Revenue,WESSEX AUTISTIC SOCIETY,SP0000805
WANDSWORTH COUNCIL,ASC,SOCIAL SERVICES,CUSTOMER & CLIENT RECPTS - EXT,CL CONT EXTERNAL RESIDENTIAL,338817,130280720,28-Jan-14,-348.98,Revenue,WESSEX AUTISTIC SOCIETY,SP0000805
WANDSWORTH COUNCIL,ASC,SOCIAL SERVICES,CUSTOMER & CLIENT RECPTS - EXT,CL CONT EXTERNAL RESIDENTIAL,324222,130280720,03-Jan-14,-348.97,Revenue,BEECH LODGE,SP0000807
WANDSWORTH COUNCIL,ASC,SOCIAL SERVICES,CUSTOMER & CLIENT RECPTS - EXT,CL CONT EXTERNAL RESIDENTIAL,324223,130280720,03-Jan-14,-348.97,Revenue,BEECH LODGE,SP0000807
WANDSWORTH COUNCIL,ASC,SOCIAL SERVICES,CUSTOMER & CLIENT RECPTS - EXT,CL CONT EXTERNAL RESIDENTIAL,324224,130280720,03-Jan-14,-348.97,Revenue,BEECH LODGE,SP0000807
WANDSWORTH COUNCIL,ASC,SOCIAL SERVICES,CUSTOMER & CLIENT RECPTS - EXT,CL CONT EXTERNAL RESIDENTIAL,332158,130280720,17-Jan-14,-315.20,Revenue,ROYAL MENCAP SOCIETY,SP0000842
WANDSWORTH COUNCIL,ASC,SOCIAL SERVICES,CUSTOMER & CLIENT RECPTS - EXT,CL CONT EXTERNAL RESIDENTIAL,332159,130280720,17-Jan-14,-315.20,Revenue,ROYAL MENCAP SOCIETY,SP0000842
WANDSWORTH COUNCIL,ASC,SOCIAL SERVICES,CUSTOMER & CLIENT RECPTS - EXT,CL CONT EXTERNAL RESIDENTIAL,332160,130280720,17-Jan-14,-315.20,Revenue,ROYAL MENCAP SOCIETY,SP0000842
WANDSWORTH COUNCIL,ASC,SOCIAL SERVICES,CUSTOMER & CLIENT RECPTS - EXT,CL CONT EXTERNAL RESIDENTIAL,324152,130280720,03-Jan-14,-348.97,Revenue,SCOPE,SP0000852
WANDSWORTH COUNCIL,ASC,SOCIAL SERVICES,CUSTOMER & CLIENT RECPTS - EXT,CL CONT EXTERNAL RESIDENTIAL,324153,130280720,03-Jan-14,-390.38,Revenue,SCOPE,SP0000852
WANDSWORTH COUNCIL,ASC,SOCIAL SERVICES,CUSTOMER & CLIENT RECPTS - EXT,CL CONT EXTERNAL RESIDENTIAL,337894,130280720,27-Jan-14,-348.98,Revenue,SCOPE,SP0000852
WANDSWORTH COUNCIL,ASC,SOCIAL SERVICES,CUSTOMER & CLIENT RECPTS - EXT,CL CONT EXTERNAL RESIDENTIAL,337895,130280720,27-Jan-14,-390.37,Revenue,SCOPE,SP0000852
WANDSWORTH COUNCIL,ASC,SOCIAL SERVICES,CUSTOMER & CLIENT RECPTS - EXT,CL CONT EXTERNAL RESIDENTIAL,324105,130280720,03-Jan-14,-348.97,Revenue,ASHCROFT CARE SERVICES,SP0000872
WANDSWORTH COUNCIL,ASC,SOCIAL SERVICES,CUSTOMER & CLIENT RECPTS - EXT,CL CONT EXTERNAL RESIDENTIAL,324201,130280720,03-Jan-14,-348.97,Revenue,229 MITCHAM LANE LTD,SP0000884
WANDSWORTH COUNCIL,ASC,SOCIAL SERVICES,CUSTOMER & CLIENT RECPTS - EXT,CL CONT EXTERNAL RESIDENTIAL,324203,130280720,03-Jan-14,-348.97,Revenue,229 MITCHAM LANE LTD,SP0000884
WANDSWORTH COUNCIL,ASC,SOCIAL SERVICES,CUSTOMER & CLIENT RECPTS - EXT,CL CONT EXTERNAL RESIDENTIAL,324204,130280720,03-Jan-14,-348.97,Revenue,229 MITCHAM LANE LTD,SP0000884
WANDSWORTH COUNCIL,ASC,SOCIAL SERVICES,CUSTOMER & CLIENT RECPTS - EXT,CL CONT EXTERNAL RESIDENTIAL,337929,130280720,27-Jan-14,-348.97,Revenue,229 MITCHAM LANE LTD,SP0000884
WANDSWORTH COUNCIL,ASC,SOCIAL SERVICES,CUSTOMER & CLIENT RECPTS - EXT,CL CONT EXTERNAL RESIDENTIAL,337930,130280720,27-Jan-14,-348.98,Revenue,229 MITCHAM LANE LTD,SP0000884
WANDSWORTH COUNCIL,ASC,SOCIAL SERVICES,CUSTOMER & CLIENT RECPTS - EXT,CL CONT EXTERNAL RESIDENTIAL,328702,130280720,09-Jan-14,-315.20,Revenue,WINSLOW COURT,SP0000886
WANDSWORTH COUNCIL,ASC,SOCIAL SERVICES,CUSTOMER & CLIENT RECPTS - EXT,CL CONT EXTERNAL RESIDENTIAL,332149,130280720,17-Jan-14,-315.20,Revenue,THE LEO TRUST,SP0000908
WANDSWORTH COUNCIL,ASC,SOCIAL SERVICES,CUSTOMER & CLIENT RECPTS - EXT,CL CONT EXTERNAL RESIDENTIAL,330080,130280720,15-Jan-14,-486.00,Revenue,PURBECK CARE LTD,SP0000913
WANDSWORTH COUNCIL,ASC,SOCIAL SERVICES,CUSTOMER & CLIENT RECPTS - EXT,CL CONT EXTERNAL RESIDENTIAL,340727,130280720,30-Jan-14,-486.00,Revenue,PURBECK CARE LTD,SP0000913
